{"text_format":"1","workbook":"xlsx","n_sheets":7,"sheets":["問題作成_説明中心_1","問題作成_説明中心_2","問題作成_説明中心_3","問題作成_説明中心_4","問題作成_説明中心_5","問題作成_用語中心","用語表"],"not_rendered":{"charts":0,"images":29,"macros":1,"external_links":0,"defined_names":0,"comments":0,"pivot_tables":0},"unopened":[],"bounds":{"document_bytes":16777216,"sheet_cells":100000,"rows_first":2000,"rows_last":500,"rows_between":2000,"halvings":0,"cell_chars":16384,"cell_head_chars":4096},"cells_cut":0,"cells_raw":0,"read":"whole","date_system":"1900"}

{"sheet":"問題作成_説明中心_1","index":0,"n_rows":163,"n_cols":14,"rows_kept":163,"cut":false,"hidden":false,"merged":[[36,1,36,8],[0,1,0,10],[1,1,1,10],[33,1,33,8],[34,1,34,8],[35,1,35,8],[37,1,37,8],[38,1,38,8],[41,1,41,8],[42,1,42,8],[39,1,39,8],[40,1,40,8]]}
[null,"ITパスポート試験　用語確認問題"]
[null,"　　　年　　　組　　　席　名前"]
[]
[1,{"$f":"IF(ISERROR(VLOOKUP(A4,用語表!$C$3:$E$310,3,0)),\"\",VLOOKUP(A4,用語表!$C$3:$E$310,3,0))","v":"５大装置"},null,{"$f":"A31+1","v":29},{"$f":"IF(ISERROR(VLOOKUP(D4,用語表!$C$3:$E$310,3,0)),\"\",VLOOKUP(D4,用語表!$C$3:$E$310,3,0))","v":"ＳＳＤ"},null,{"$f":"D31+1","v":57},{"$f":"IF(ISERROR(VLOOKUP(G4,用語表!$C$3:$E$310,3,0)),\"\",VLOOKUP(G4,用語表!$C$3:$E$310,3,0))","v":"ターンアラウンドタイム"},null,{"$f":"G31+1","v":85},{"$f":"IF(ISERROR(VLOOKUP(J4,用語表!$C$3:$E$310,3,0)),\"\",VLOOKUP(J4,用語表!$C$3:$E$310,3,0))","v":"ＩＴＦ"}]
[{"$f":"A4+1","v":2},{"$f":"IF(ISERROR(VLOOKUP(A5,用語表!$C$3:$E$310,3,0)),\"\",VLOOKUP(A5,用語表!$C$3:$E$310,3,0))","v":"ＣＰＵ"},null,{"$f":"D4+1","v":30},{"$f":"IF(ISERROR(VLOOKUP(D5,用語表!$C$3:$E$310,3,0)),\"\",VLOOKUP(D5,用語表!$C$3:$E$310,3,0))","v":"シリアルインターフェース"},null,{"$f":"G4+1","v":58},{"$f":"IF(ISERROR(VLOOKUP(G5,用語表!$C$3:$E$310,3,0)),\"\",VLOOKUP(G5,用語表!$C$3:$E$310,3,0))","v":"ベンチマークテスト"},null,{"$f":"J4+1","v":86},{"$f":"IF(ISERROR(VLOOKUP(J5,用語表!$C$3:$E$310,3,0)),\"\",VLOOKUP(J5,用語表!$C$3:$E$310,3,0))","v":"インタプリタ"}]
[{"$f":"A5+1","v":3},{"$f":"IF(ISERROR(VLOOKUP(A6,用語表!$C$3:$E$310,3,0)),\"\",VLOOKUP(A6,用語表!$C$3:$E$310,3,0))","v":"マイクロプロセッサ"},null,{"$f":"D5+1","v":31},{"$f":"IF(ISERROR(VLOOKUP(D6,用語表!$C$3:$E$310,3,0)),\"\",VLOOKUP(D6,用語表!$C$3:$E$310,3,0))","v":"パラレルインターフェース"},null,{"$f":"G5+1","v":59},{"$f":"IF(ISERROR(VLOOKUP(G6,用語表!$C$3:$E$310,3,0)),\"\",VLOOKUP(G6,用語表!$C$3:$E$310,3,0))","v":"ＲＡＳＩＳ"},null,{"$f":"J5+1","v":87},{"$f":"IF(ISERROR(VLOOKUP(J6,用語表!$C$3:$E$310,3,0)),\"\",VLOOKUP(J6,用語表!$C$3:$E$310,3,0))","v":"ｄｐｉ"}]
[4,{"$f":"IF(ISERROR(VLOOKUP(A7,用語表!$C$3:$E$310,3,0)),\"\",VLOOKUP(A7,用語表!$C$3:$E$310,3,0))","v":"プログラム内蔵方式"},null,32,{"$f":"IF(ISERROR(VLOOKUP(D7,用語表!$C$3:$E$310,3,0)),\"\",VLOOKUP(D7,用語表!$C$3:$E$310,3,0))","v":"ＰＤＡ"},null,60,{"$f":"IF(ISERROR(VLOOKUP(G7,用語表!$C$3:$E$310,3,0)),\"\",VLOOKUP(G7,用語表!$C$3:$E$310,3,0))","v":"稼働率"},null,88,{"$f":"IF(ISERROR(VLOOKUP(J7,用語表!$C$3:$E$310,3,0)),\"\",VLOOKUP(J7,用語表!$C$3:$E$310,3,0))","v":"ｐｐｍ"}]
[5,{"$f":"IF(ISERROR(VLOOKUP(A8,用語表!$C$3:$E$310,3,0)),\"\",VLOOKUP(A8,用語表!$C$3:$E$310,3,0))","v":"逐次制御方式"},null,33,{"$f":"IF(ISERROR(VLOOKUP(D8,用語表!$C$3:$E$310,3,0)),\"\",VLOOKUP(D8,用語表!$C$3:$E$310,3,0))","v":"ＩｒＤＡ"},null,61,{"$f":"IF(ISERROR(VLOOKUP(G8,用語表!$C$3:$E$310,3,0)),\"\",VLOOKUP(G8,用語表!$C$3:$E$310,3,0))","v":"平均故障間隔（MTBF)"},null,89,{"$f":"IF(ISERROR(VLOOKUP(J8,用語表!$C$3:$E$310,3,0)),\"\",VLOOKUP(J8,用語表!$C$3:$E$310,3,0))","v":"ハイバネーション(休止状態)"}]
[6,{"$f":"IF(ISERROR(VLOOKUP(A9,用語表!$C$3:$E$310,3,0)),\"\",VLOOKUP(A9,用語表!$C$3:$E$310,3,0))","v":"クロック"},null,34,{"$f":"IF(ISERROR(VLOOKUP(D9,用語表!$C$3:$E$310,3,0)),\"\",VLOOKUP(D9,用語表!$C$3:$E$310,3,0))","v":"Ｂｌｕｅｔｏｏｔｈ"},null,62,{"$f":"IF(ISERROR(VLOOKUP(G9,用語表!$C$3:$E$310,3,0)),\"\",VLOOKUP(G9,用語表!$C$3:$E$310,3,0))","v":"平均修復時間（MTTR)"},null,90,{"$f":"IF(ISERROR(VLOOKUP(J9,用語表!$C$3:$E$310,3,0)),\"\",VLOOKUP(J9,用語表!$C$3:$E$310,3,0))","v":"スタンバイ"}]
[7,{"$f":"IF(ISERROR(VLOOKUP(A10,用語表!$C$3:$E$310,3,0)),\"\",VLOOKUP(A10,用語表!$C$3:$E$310,3,0))","v":"MIPS"},null,35,{"$f":"IF(ISERROR(VLOOKUP(D10,用語表!$C$3:$E$310,3,0)),\"\",VLOOKUP(D10,用語表!$C$3:$E$310,3,0))","v":"ＡＴＡ"},null,63,{"$f":"IF(ISERROR(VLOOKUP(G10,用語表!$C$3:$E$310,3,0)),\"\",VLOOKUP(G10,用語表!$C$3:$E$310,3,0))","v":"バスタブ曲線"},null,91,{"$f":"IF(ISERROR(VLOOKUP(J10,用語表!$C$3:$E$310,3,0)),\"\",VLOOKUP(J10,用語表!$C$3:$E$310,3,0))","v":"ＧＵＩ"}]
[8,{"$f":"IF(ISERROR(VLOOKUP(A11,用語表!$C$3:$E$310,3,0)),\"\",VLOOKUP(A11,用語表!$C$3:$E$310,3,0))","v":"ＣＰＩ"},null,36,{"$f":"IF(ISERROR(VLOOKUP(D11,用語表!$C$3:$E$310,3,0)),\"\",VLOOKUP(D11,用語表!$C$3:$E$310,3,0))","v":"バスパワー"},null,64,{"$f":"IF(ISERROR(VLOOKUP(G11,用語表!$C$3:$E$310,3,0)),\"\",VLOOKUP(G11,用語表!$C$3:$E$310,3,0))","v":"フォールトトレランス"},null,92,{"$f":"IF(ISERROR(VLOOKUP(J11,用語表!$C$3:$E$310,3,0)),\"\",VLOOKUP(J11,用語表!$C$3:$E$310,3,0))","v":"CUI"}]
[9,{"$f":"IF(ISERROR(VLOOKUP(A12,用語表!$C$3:$E$310,3,0)),\"\",VLOOKUP(A12,用語表!$C$3:$E$310,3,0))","v":"バス"},null,37,{"$f":"IF(ISERROR(VLOOKUP(D12,用語表!$C$3:$E$310,3,0)),\"\",VLOOKUP(D12,用語表!$C$3:$E$310,3,0))","v":"ホットプラグ"},null,65,{"$f":"IF(ISERROR(VLOOKUP(G12,用語表!$C$3:$E$310,3,0)),\"\",VLOOKUP(G12,用語表!$C$3:$E$310,3,0))","v":"フェールセーフ"},null,93,{"$f":"IF(ISERROR(VLOOKUP(J12,用語表!$C$3:$E$310,3,0)),\"\",VLOOKUP(J12,用語表!$C$3:$E$310,3,0))","v":"フォーマットチェック"}]
[10,{"$f":"IF(ISERROR(VLOOKUP(A13,用語表!$C$3:$E$310,3,0)),\"\",VLOOKUP(A13,用語表!$C$3:$E$310,3,0))","v":"ＲＡＭ"},null,38,{"$f":"IF(ISERROR(VLOOKUP(D13,用語表!$C$3:$E$310,3,0)),\"\",VLOOKUP(D13,用語表!$C$3:$E$310,3,0))","v":"デバイスドライバ"},null,66,{"$f":"IF(ISERROR(VLOOKUP(G13,用語表!$C$3:$E$310,3,0)),\"\",VLOOKUP(G13,用語表!$C$3:$E$310,3,0))","v":"フェールソフト"},null,94,{"$f":"IF(ISERROR(VLOOKUP(J13,用語表!$C$3:$E$310,3,0)),\"\",VLOOKUP(J13,用語表!$C$3:$E$310,3,0))","v":"ニューメリックチェック"}]
[11,{"$f":"IF(ISERROR(VLOOKUP(A14,用語表!$C$3:$E$310,3,0)),\"\",VLOOKUP(A14,用語表!$C$3:$E$310,3,0))","v":"レジスタ"},null,39,{"$f":"IF(ISERROR(VLOOKUP(D14,用語表!$C$3:$E$310,3,0)),\"\",VLOOKUP(D14,用語表!$C$3:$E$310,3,0))","v":"プラグアンドプレイ"},null,67,{"$f":"IF(ISERROR(VLOOKUP(G14,用語表!$C$3:$E$310,3,0)),\"\",VLOOKUP(G14,用語表!$C$3:$E$310,3,0))","v":"フールプルーフ"},null,95,{"$f":"IF(ISERROR(VLOOKUP(J14,用語表!$C$3:$E$310,3,0)),\"\",VLOOKUP(J14,用語表!$C$3:$E$310,3,0))","v":"リミットチェック"}]
[12,{"$f":"IF(ISERROR(VLOOKUP(A15,用語表!$C$3:$E$310,3,0)),\"\",VLOOKUP(A15,用語表!$C$3:$E$310,3,0))","v":"ＲＯＭ"},null,40,{"$f":"IF(ISERROR(VLOOKUP(D15,用語表!$C$3:$E$310,3,0)),\"\",VLOOKUP(D15,用語表!$C$3:$E$310,3,0))","v":"集中処理システム"},null,68,{"$f":"IF(ISERROR(VLOOKUP(G15,用語表!$C$3:$E$310,3,0)),\"\",VLOOKUP(G15,用語表!$C$3:$E$310,3,0))","v":"ＴＣＯ"},null,96,{"$f":"IF(ISERROR(VLOOKUP(J15,用語表!$C$3:$E$310,3,0)),\"\",VLOOKUP(J15,用語表!$C$3:$E$310,3,0))","v":"シーケンスチェック"}]
[13,{"$f":"IF(ISERROR(VLOOKUP(A16,用語表!$C$3:$E$310,3,0)),\"\",VLOOKUP(A16,用語表!$C$3:$E$310,3,0))","v":"フラッシュメモリ"},null,41,{"$f":"IF(ISERROR(VLOOKUP(D16,用語表!$C$3:$E$310,3,0)),\"\",VLOOKUP(D16,用語表!$C$3:$E$310,3,0))","v":"分散処理システム"},null,69,{"$f":"IF(ISERROR(VLOOKUP(G16,用語表!$C$3:$E$310,3,0)),\"\",VLOOKUP(G16,用語表!$C$3:$E$310,3,0))","v":"コストパフォーマンス"},null,97,{"$f":"IF(ISERROR(VLOOKUP(J16,用語表!$C$3:$E$310,3,0)),\"\",VLOOKUP(J16,用語表!$C$3:$E$310,3,0))","v":"チェックディジット"}]
[14,{"$f":"IF(ISERROR(VLOOKUP(A17,用語表!$C$3:$E$310,3,0)),\"\",VLOOKUP(A17,用語表!$C$3:$E$310,3,0))","v":"ＢＩＯＳ"},null,42,{"$f":"IF(ISERROR(VLOOKUP(D17,用語表!$C$3:$E$310,3,0)),\"\",VLOOKUP(D17,用語表!$C$3:$E$310,3,0))","v":"バッチ処理"},null,70,{"$f":"IF(ISERROR(VLOOKUP(G17,用語表!$C$3:$E$310,3,0)),\"\",VLOOKUP(G17,用語表!$C$3:$E$310,3,0))","v":"ユーティリティプログラム"},null,98,{"$f":"IF(ISERROR(VLOOKUP(J17,用語表!$C$3:$E$310,3,0)),\"\",VLOOKUP(J17,用語表!$C$3:$E$310,3,0))","v":"ユーザビリティ\n"}]
[15,{"$f":"IF(ISERROR(VLOOKUP(A18,用語表!$C$3:$E$310,3,0)),\"\",VLOOKUP(A18,用語表!$C$3:$E$310,3,0))","v":"スロットイン"},null,43,{"$f":"IF(ISERROR(VLOOKUP(D18,用語表!$C$3:$E$310,3,0)),\"\",VLOOKUP(D18,用語表!$C$3:$E$310,3,0))","v":"リアルタイム処理"},null,71,{"$f":"IF(ISERROR(VLOOKUP(G18,用語表!$C$3:$E$310,3,0)),\"\",VLOOKUP(G18,用語表!$C$3:$E$310,3,0))","v":"グループウェア"},null,99,{"$f":"IF(ISERROR(VLOOKUP(J18,用語表!$C$3:$E$310,3,0)),\"\",VLOOKUP(J18,用語表!$C$3:$E$310,3,0))","v":"ユニバーサルデザイン"}]
[16,{"$f":"IF(ISERROR(VLOOKUP(A19,用語表!$C$3:$E$310,3,0)),\"\",VLOOKUP(A19,用語表!$C$3:$E$310,3,0))","v":"ＶＲＡＭ"},null,44,{"$f":"IF(ISERROR(VLOOKUP(D19,用語表!$C$3:$E$310,3,0)),\"\",VLOOKUP(D19,用語表!$C$3:$E$310,3,0))","v":"クライアントサーバシステム"},null,72,{"$f":"IF(ISERROR(VLOOKUP(G19,用語表!$C$3:$E$310,3,0)),\"\",VLOOKUP(G19,用語表!$C$3:$E$310,3,0))","v":"ミドルウェア"},null,100,{"$f":"IF(ISERROR(VLOOKUP(J19,用語表!$C$3:$E$310,3,0)),\"\",VLOOKUP(J19,用語表!$C$3:$E$310,3,0))","v":"情報リテラシ"}]
[17,{"$f":"IF(ISERROR(VLOOKUP(A20,用語表!$C$3:$E$310,3,0)),\"\",VLOOKUP(A20,用語表!$C$3:$E$310,3,0))","v":"ＩＰＬ"},null,45,{"$f":"IF(ISERROR(VLOOKUP(D20,用語表!$C$3:$E$310,3,0)),\"\",VLOOKUP(D20,用語表!$C$3:$E$310,3,0))","v":"ファイルサーバ"},null,73,{"$f":"IF(ISERROR(VLOOKUP(G20,用語表!$C$3:$E$310,3,0)),\"\",VLOOKUP(G20,用語表!$C$3:$E$310,3,0))","v":"スワッピング"},null,101,{"$f":"IF(ISERROR(VLOOKUP(J20,用語表!$C$3:$E$310,3,0)),\"\",VLOOKUP(J20,用語表!$C$3:$E$310,3,0))","v":"Webアクセシビリティ"}]
[18,{"$f":"IF(ISERROR(VLOOKUP(A21,用語表!$C$3:$E$310,3,0)),\"\",VLOOKUP(A21,用語表!$C$3:$E$310,3,0))","v":"キャッシュメモリ"},null,46,{"$f":"IF(ISERROR(VLOOKUP(D21,用語表!$C$3:$E$310,3,0)),\"\",VLOOKUP(D21,用語表!$C$3:$E$310,3,0))","v":"データベースサーバ"},null,74,{"$f":"IF(ISERROR(VLOOKUP(G21,用語表!$C$3:$E$310,3,0)),\"\",VLOOKUP(G21,用語表!$C$3:$E$310,3,0))","v":"仮想記憶方式"},null,102,{"$f":"IF(ISERROR(VLOOKUP(J21,用語表!$C$3:$E$310,3,0)),\"\",VLOOKUP(J21,用語表!$C$3:$E$310,3,0))","v":"可逆圧縮方式"}]
[19,{"$f":"IF(ISERROR(VLOOKUP(A22,用語表!$C$3:$E$310,3,0)),\"\",VLOOKUP(A22,用語表!$C$3:$E$310,3,0))","v":"ディスクキャッシュ"},null,47,{"$f":"IF(ISERROR(VLOOKUP(D22,用語表!$C$3:$E$310,3,0)),\"\",VLOOKUP(D22,用語表!$C$3:$E$310,3,0))","v":"プリントサーバ"},null,75,{"$f":"IF(ISERROR(VLOOKUP(G22,用語表!$C$3:$E$310,3,0)),\"\",VLOOKUP(G22,用語表!$C$3:$E$310,3,0))","v":"コンフリクト"},null,103,{"$f":"IF(ISERROR(VLOOKUP(J22,用語表!$C$3:$E$310,3,0)),\"\",VLOOKUP(J22,用語表!$C$3:$E$310,3,0))","v":"非可逆圧縮方式"}]
[20,{"$f":"IF(ISERROR(VLOOKUP(A23,用語表!$C$3:$E$310,3,0)),\"\",VLOOKUP(A23,用語表!$C$3:$E$310,3,0))","v":"ｒｐｍ"},null,48,{"$f":"IF(ISERROR(VLOOKUP(D23,用語表!$C$3:$E$310,3,0)),\"\",VLOOKUP(D23,用語表!$C$3:$E$310,3,0))","v":"サーバの仮想化技術"},null,76,{"$f":"IF(ISERROR(VLOOKUP(G23,用語表!$C$3:$E$310,3,0)),\"\",VLOOKUP(G23,用語表!$C$3:$E$310,3,0))","v":"スプーリング"},null,104,{"$f":"IF(ISERROR(VLOOKUP(J23,用語表!$C$3:$E$310,3,0)),\"\",VLOOKUP(J23,用語表!$C$3:$E$310,3,0))","v":"ＪＰＥＧ"}]
[21,{"$f":"IF(ISERROR(VLOOKUP(A24,用語表!$C$3:$E$310,3,0)),\"\",VLOOKUP(A24,用語表!$C$3:$E$310,3,0))","v":"ヒット率"},null,49,{"$f":"IF(ISERROR(VLOOKUP(D24,用語表!$C$3:$E$310,3,0)),\"\",VLOOKUP(D24,用語表!$C$3:$E$310,3,0))","v":"３層アーキテクチャ"},null,77,{"$f":"IF(ISERROR(VLOOKUP(G24,用語表!$C$3:$E$310,3,0)),\"\",VLOOKUP(G24,用語表!$C$3:$E$310,3,0))","v":"イントラネット"},null,105,{"$f":"IF(ISERROR(VLOOKUP(J24,用語表!$C$3:$E$310,3,0)),\"\",VLOOKUP(J24,用語表!$C$3:$E$310,3,0))","v":"ＧＩＦ"}]
[22,{"$f":"IF(ISERROR(VLOOKUP(A25,用語表!$C$3:$E$310,3,0)),\"\",VLOOKUP(A25,用語表!$C$3:$E$310,3,0))","v":"デフラグメンテーション"},null,50,{"$f":"IF(ISERROR(VLOOKUP(D25,用語表!$C$3:$E$310,3,0)),\"\",VLOOKUP(D25,用語表!$C$3:$E$310,3,0))","v":"オンラインストレージ"},null,78,{"$f":"IF(ISERROR(VLOOKUP(G25,用語表!$C$3:$E$310,3,0)),\"\",VLOOKUP(G25,用語表!$C$3:$E$310,3,0))","v":"ＰＤＦ"},null,106,{"$f":"IF(ISERROR(VLOOKUP(J25,用語表!$C$3:$E$310,3,0)),\"\",VLOOKUP(J25,用語表!$C$3:$E$310,3,0))","v":"ＢＭＰ"}]
[23,{"$f":"IF(ISERROR(VLOOKUP(A26,用語表!$C$3:$E$310,3,0)),\"\",VLOOKUP(A26,用語表!$C$3:$E$310,3,0))","v":"アクセス時間"},null,51,{"$f":"IF(ISERROR(VLOOKUP(D26,用語表!$C$3:$E$310,3,0)),\"\",VLOOKUP(D26,用語表!$C$3:$E$310,3,0))","v":"グリッドコンピューティング"},null,79,{"$f":"IF(ISERROR(VLOOKUP(G26,用語表!$C$3:$E$310,3,0)),\"\",VLOOKUP(G26,用語表!$C$3:$E$310,3,0))","v":"オーサリングソフト"},null,107,{"$f":"IF(ISERROR(VLOOKUP(J26,用語表!$C$3:$E$310,3,0)),\"\",VLOOKUP(J26,用語表!$C$3:$E$310,3,0))","v":"ＰＮＧ"}]
[24,{"$f":"IF(ISERROR(VLOOKUP(A27,用語表!$C$3:$E$310,3,0)),\"\",VLOOKUP(A27,用語表!$C$3:$E$310,3,0))","v":"ＲＡＩＤ"},null,52,{"$f":"IF(ISERROR(VLOOKUP(D27,用語表!$C$3:$E$310,3,0)),\"\",VLOOKUP(D27,用語表!$C$3:$E$310,3,0))","v":"シンクライアントシステム"},null,80,{"$f":"IF(ISERROR(VLOOKUP(G27,用語表!$C$3:$E$310,3,0)),\"\",VLOOKUP(G27,用語表!$C$3:$E$310,3,0))","v":"ｆｐｓ"},null,108,{"$f":"IF(ISERROR(VLOOKUP(J27,用語表!$C$3:$E$310,3,0)),\"\",VLOOKUP(J27,用語表!$C$3:$E$310,3,0))","v":"ＭＰ３"}]
[25,{"$f":"IF(ISERROR(VLOOKUP(A28,用語表!$C$3:$E$310,3,0)),\"\",VLOOKUP(A28,用語表!$C$3:$E$310,3,0))","v":"ストライピング"},null,53,{"$f":"IF(ISERROR(VLOOKUP(D28,用語表!$C$3:$E$310,3,0)),\"\",VLOOKUP(D28,用語表!$C$3:$E$310,3,0))","v":"デュアルシステム"},null,81,{"$f":"IF(ISERROR(VLOOKUP(G28,用語表!$C$3:$E$310,3,0)),\"\",VLOOKUP(G28,用語表!$C$3:$E$310,3,0))","v":"プラグイン"},null,109,{"$f":"IF(ISERROR(VLOOKUP(J28,用語表!$C$3:$E$310,3,0)),\"\",VLOOKUP(J28,用語表!$C$3:$E$310,3,0))","v":"ＭＰＥＧ"}]
[26,{"$f":"IF(ISERROR(VLOOKUP(A29,用語表!$C$3:$E$310,3,0)),\"\",VLOOKUP(A29,用語表!$C$3:$E$310,3,0))","v":"ミラーリング"},null,54,{"$f":"IF(ISERROR(VLOOKUP(D29,用語表!$C$3:$E$310,3,0)),\"\",VLOOKUP(D29,用語表!$C$3:$E$310,3,0))","v":"デュプレックスシステム"},null,82,{"$f":"IF(ISERROR(VLOOKUP(G29,用語表!$C$3:$E$310,3,0)),\"\",VLOOKUP(G29,用語表!$C$3:$E$310,3,0))","v":"オートコンプリート"},null,110,{"$f":"IF(ISERROR(VLOOKUP(J29,用語表!$C$3:$E$310,3,0)),\"\",VLOOKUP(J29,用語表!$C$3:$E$310,3,0))","v":"AVI"}]
[27,{"$f":"IF(ISERROR(VLOOKUP(A30,用語表!$C$3:$E$310,3,0)),\"\",VLOOKUP(A30,用語表!$C$3:$E$310,3,0))","v":"RAID5"},null,55,{"$f":"IF(ISERROR(VLOOKUP(D30,用語表!$C$3:$E$310,3,0)),\"\",VLOOKUP(D30,用語表!$C$3:$E$310,3,0))","v":"スループット"},null,83,{"$f":"IF(ISERROR(VLOOKUP(G30,用語表!$C$3:$E$310,3,0)),\"\",VLOOKUP(G30,用語表!$C$3:$E$310,3,0))","v":"オープンソースソフトウェア"},null,111,{"$f":"IF(ISERROR(VLOOKUP(J30,用語表!$C$3:$E$310,3,0)),\"\",VLOOKUP(J30,用語表!$C$3:$E$310,3,0))","v":"QuickTime"}]
[28,{"$f":"IF(ISERROR(VLOOKUP(A31,用語表!$C$3:$E$310,3,0)),\"\",VLOOKUP(A31,用語表!$C$3:$E$310,3,0))","v":"パリティ"},null,56,{"$f":"IF(ISERROR(VLOOKUP(D31,用語表!$C$3:$E$310,3,0)),\"\",VLOOKUP(D31,用語表!$C$3:$E$310,3,0))","v":"レスポンスタイム"},null,84,{"$f":"IF(ISERROR(VLOOKUP(G31,用語表!$C$3:$E$310,3,0)),\"\",VLOOKUP(G31,用語表!$C$3:$E$310,3,0))","v":"ＪＡＮコード"},null,112,{"$f":"IF(ISERROR(VLOOKUP(J31,用語表!$C$3:$E$310,3,0)),\"\",VLOOKUP(J31,用語表!$C$3:$E$310,3,0))","v":"SWF"}]
[]
[null,{"$f":"\"出題範囲=\"&C45&\":\"&C46","v":"出題範囲=1:108"},null,null,{"$f":"\"印刷範囲=\"&C49&\":\"&C50","v":"印刷範囲=101:110"},null,null,null,null,3]
[1,{"$f":"IF(ISERROR(VLOOKUP(J34,用語表!$C$3:$E$310,2)),\"\",VLOOKUP(J34,用語表!$C$3:$E$310,2))","v":"制御装置と演算装置をまとめたもの"},null,null,null,null,null,null,null,2,null,null,{"$f":"J34","v":2},{"$f":"IFERROR(VLOOKUP(J34,用語表!$C$3:$E$310,3,0),\"\")&\"  \"&VLOOKUP(J34,用語表!$C$3:$F$310,4,0)","v":"ＣＰＵ  Central Processing Unit"}]
[2,{"$f":"IF(ISERROR(VLOOKUP(J35,用語表!$C$3:$E$310,2)),\"\",VLOOKUP(J35,用語表!$C$3:$E$310,2))","v":"分割したデータと誤り訂正のためのパリティ情報を3台以上のハードディスクに分散して書き込むことによって，データの可用性を高め，かつ，書込み動作を高速化する方法。"},null,null,null,null,null,null,null,27,null,null,27,{"$f":"IFERROR(VLOOKUP(J35,用語表!$C$3:$E$310,3,0),\"\")&\"  \"&VLOOKUP(J35,用語表!$C$3:$F$310,4,0)","v":"RAID5  "}]
[3,{"$f":"IF(ISERROR(VLOOKUP(J36,用語表!$C$3:$E$310,2)),\"\",VLOOKUP(J36,用語表!$C$3:$E$310,2))","v":"入力データが定められた書式に従っているかチェックする方法"},null,null,null,null,null,null,null,93,null,null,93,{"$f":"IFERROR(VLOOKUP(J36,用語表!$C$3:$E$310,3,0),\"\")&\"  \"&VLOOKUP(J36,用語表!$C$3:$F$310,4,0)","v":"フォーマットチェック  "}]
[4,{"$f":"IF(ISERROR(VLOOKUP(J37,用語表!$C$3:$E$310,2)),\"\",VLOOKUP(J37,用語表!$C$3:$E$310,2))","v":"Adobe Systems社によって開発された、電子文書のためのフォーマット。レイアウトソフトなどで作成した文書を電子的に配布することができ、相手のコンピュータの機種や環境によらず、オリジナルのイメージをかなりの程度正確に再生することができる。"},null,null,null,null,null,null,null,78,null,null,78,{"$f":"IFERROR(VLOOKUP(J37,用語表!$C$3:$E$310,3,0),\"\")&\"  \"&VLOOKUP(J37,用語表!$C$3:$F$310,4,0)","v":"ＰＤＦ  "}]
[5,{"$f":"IF(ISERROR(VLOOKUP(J38,用語表!$C$3:$E$310,2)),\"\",VLOOKUP(J38,用語表!$C$3:$E$310,2))","v":"画面上のアイコンやボタンをマウスでクリックして操作する、コンピュータの入出力方式。"},null,null,null,null,null,null,null,91,null,null,91,{"$f":"IFERROR(VLOOKUP(J38,用語表!$C$3:$E$310,3,0),\"\")&\"  \"&VLOOKUP(J38,用語表!$C$3:$F$310,4,0)","v":"ＧＵＩ  Graphical User Interface"}]
[6,{"$f":"IF(ISERROR(VLOOKUP(J39,用語表!$C$3:$E$310,2)),\"\",VLOOKUP(J39,用語表!$C$3:$E$310,2))","v":"ＣＰＵがメモリから命令を１つずつ取り出して解釈し、演算を実行したり各装置に指令を送ったりする方式"},null,null,null,null,null,null,null,5,null,null,5,{"$f":"IFERROR(VLOOKUP(J39,用語表!$C$3:$E$310,3,0),\"\")&\"  \"&VLOOKUP(J39,用語表!$C$3:$F$310,4,0)","v":"逐次制御方式  "}]
[7,{"$f":"IF(ISERROR(VLOOKUP(J40,用語表!$C$3:$E$310,2)),\"\",VLOOKUP(J40,用語表!$C$3:$E$310,2))","v":"CDやDVDなどの光学メディアをコンピュータに出し入れする際、トレイがなく、挿入口に直接メディアを挿入する方式のこと。"},null,null,null,null,null,null,null,15,null,null,15,{"$f":"IFERROR(VLOOKUP(J40,用語表!$C$3:$E$310,3,0),\"\")&\"  \"&VLOOKUP(J40,用語表!$C$3:$F$310,4,0)","v":"スロットイン  "}]
[8,{"$f":"IF(ISERROR(VLOOKUP(J41,用語表!$C$3:$E$310,2)),\"\",VLOOKUP(J41,用語表!$C$3:$E$310,2))","v":"情報システムの信頼性を高める手法の一つで、システムを2系統用意して、普段は片方で処理を行い、もう片方は障害発生に備えて待機させておく方式。平常時に処理を行なうシステムを主系または本番系などと呼び、主系に障害が生じたとき肩代わりするシステムを従系または待機系、予備系などと呼ぶ。待機や切り替えの仕方により、ホットスタンバイ、ウォームスタンバイ、コールドスタンバイなどの種類がある。"},null,null,null,null,null,null,null,54,null,null,54,{"$f":"IFERROR(VLOOKUP(J41,用語表!$C$3:$E$310,3,0),\"\")&\"  \"&VLOOKUP(J41,用語表!$C$3:$F$310,4,0)","v":"デュプレックスシステム  duplex System"}]
[9,{"$f":"IF(ISERROR(VLOOKUP(J42,用語表!$C$3:$E$310,2)),\"\",VLOOKUP(J42,用語表!$C$3:$E$310,2))","v":"インターネットに接続されているサーバ上のディスクスペースを，ファイル保管用に貸し出すサービスであり，自宅や外出先などから利用者がデータを読み書きできるものはどれか。"},null,null,null,null,null,null,null,50,null,null,50,{"$f":"IFERROR(VLOOKUP(J42,用語表!$C$3:$E$310,3,0),\"\")&\"  \"&VLOOKUP(J42,用語表!$C$3:$F$310,4,0)","v":"オンラインストレージ  "}]
[10,{"$f":"IF(ISERROR(VLOOKUP(J43,用語表!$C$3:$E$310,2)),\"\",VLOOKUP(J43,用語表!$C$3:$E$310,2))","v":"システムの障害発生時における修復時間の平均。この時間が短いほど保守性に優れている。"},null,null,null,null,null,null,null,62,null,null,62,{"$f":"IFERROR(VLOOKUP(J43,用語表!$C$3:$E$310,3,0),\"\")&\"  \"&VLOOKUP(J43,用語表!$C$3:$F$310,4,0)","v":"平均修復時間（MTTR)  Mean Time To Repair"}]
[]
[null,"開始問題番号",1,null,null,null,null,null,null,null,null,null,null,"０　「開始問題番号」と「終了問題番号」を入力する。"]
[null,"終了問題番号",108,null,null,null,null,null,null,null,null,null,null,"1～１１１までの問題番号"]
[null,"問題数",{"$f":"C46-C45+1","v":108}]
[null,"問題印刷枚数",15,null,null,null,null,null,null,null,null,null,null,"１　問題数の行分の乱数を設定する。"]
[null,"E列　印刷開始問題番号",101,null,null,null,null,null,null,null,null,null,null,"例　問題数が３８の場合は、行５４から行９１まで"]
[null,"E列　印刷終了問題番号",110]
[null,null,null,null,null,null,null,null,null,null,null,null,null,"２　問題番号を値複写する。"]
[]
["問題数","乱数＆問題番号",null,null,"値複写（作成する問題番号）",null,null,"重複の確認（ソート後）",null,null,"重複の確認（\"重複\"の表示）",null,null,"３　「印刷開始問題番号」を入力して「問題の作成」ボタンを押す。"]
[1,{"$f":"RAND()","v":0.70089184573054641},{"$f":"RANK(B54,$B$54:$B$161)+$C$45-1","v":26},null,102,null,null,1,null,null,{"$f":"IF(COUNTIF($E$54:E122,E54)>1,\"重複\",\"\")","v":""}]
[2,0.24812819361116067,{"$f":"RANK(B55,$B$54:$B$161)+$C$45-1","v":77},null,33,null,null,2,null,null,{"$f":"IF(COUNTIF($E$54:E123,E55)>1,\"重複\",\"\")","v":""},null,null,"４　「問題印刷枚数」を入力して「問題の印刷」を押す。"]
[3,0.13674861227479085,90,null,11,null,null,3,null,null,{"$f":"IF(COUNTIF($E$54:E124,E56)>1,\"重複\",\"\")","v":""}]
[4,0.60093363280683476,38,null,24,null,null,4,null,null,{"$f":"IF(COUNTIF($E$54:E125,E57)>1,\"重複\",\"\")","v":""},null,null,"５　「解答の印刷」を押す。"]
[5,0.68757583058324956,30,null,80,null,null,5,null,null,{"$f":"IF(COUNTIF($E$54:E126,E58)>1,\"重複\",\"\")","v":""}]
[6,0.22346406642999705,80,null,64,null,null,6,null,null,{"$f":"IF(COUNTIF($E$54:E127,E59)>1,\"重複\",\"\")","v":""}]
[7,0.51946989593927329,49,null,30,null,null,7,null,null,{"$f":"IF(COUNTIF($E$54:E128,E60)>1,\"重複\",\"\")","v":""}]
[8,0.37503289759530134,68,null,9,null,null,8,null,null,{"$f":"IF(COUNTIF($E$54:E129,E61)>1,\"重複\",\"\")","v":""}]
[9,0.28040787186970861,73,null,103,null,null,9,null,null,{"$f":"IF(COUNTIF($E$54:E130,E62)>1,\"重複\",\"\")","v":""}]
[10,0.52592827210824467,45,null,48,null,null,10,null,null,{"$f":"IF(COUNTIF($E$54:E131,E63)>1,\"重複\",\"\")","v":""}]
[11,0.45709764078400861,58,null,74,null,null,11,null,null,{"$f":"IF(COUNTIF($E$54:E132,E64)>1,\"重複\",\"\")","v":""}]
[12,0.65753241303165766,35,null,90,null,null,12,null,null,{"$f":"IF(COUNTIF($E$54:E133,E65)>1,\"重複\",\"\")","v":""}]
[13,0.39019481094274622,66,null,94,null,null,13,null,null,{"$f":"IF(COUNTIF($E$54:E134,E66)>1,\"重複\",\"\")","v":""}]
[14,3.4364252631527981E-2,105,null,55,null,null,14,null,null,{"$f":"IF(COUNTIF($E$54:E135,E67)>1,\"重複\",\"\")","v":""}]
[15,0.99368515480883213,1,null,28,null,null,15,null,null,{"$f":"IF(COUNTIF($E$54:E136,E68)>1,\"重複\",\"\")","v":""}]
[16,0.95259171061718684,4,null,12,null,null,16,null,null,{"$f":"IF(COUNTIF($E$54:E137,E69)>1,\"重複\",\"\")","v":""}]
[17,1.5754285792838552E-2,106,null,10,null,null,17,null,null,{"$f":"IF(COUNTIF($E$54:E138,E70)>1,\"重複\",\"\")","v":""}]
[18,0.92281853708394268,9,null,37,null,null,18,null,null,{"$f":"IF(COUNTIF($E$54:E139,E71)>1,\"重複\",\"\")","v":""}]
[19,0.51781095315540315,50,null,96,null,null,19,null,null,{"$f":"IF(COUNTIF($E$54:E140,E72)>1,\"重複\",\"\")","v":""}]
[20,0.35246024605442161,70,null,38,null,null,20,null,null,{"$f":"IF(COUNTIF($E$54:E141,E73)>1,\"重複\",\"\")","v":""}]
[21,0.7185516592161818,23,null,51,null,null,21,null,null,{"$f":"IF(COUNTIF($E$54:E142,E74)>1,\"重複\",\"\")","v":""}]
[22,0.10820856148669999,92,null,83,null,null,22,null,null,{"$f":"IF(COUNTIF($E$54:E143,E75)>1,\"重複\",\"\")","v":""}]
[23,0.17703586488671752,85,null,76,null,null,23,null,null,{"$f":"IF(COUNTIF($E$54:E144,E76)>1,\"重複\",\"\")","v":""}]
[24,0.87528576261095781,13,null,88,null,null,24,null,null,{"$f":"IF(COUNTIF($E$54:E145,E77)>1,\"重複\",\"\")","v":""}]
[25,0.2339964890036198,79,null,42,null,null,25,null,null,{"$f":"IF(COUNTIF($E$54:E146,E78)>1,\"重複\",\"\")","v":""}]
[26,0.94870177686836465,6,null,63,null,null,26,null,null,{"$f":"IF(COUNTIF($E$54:E147,E79)>1,\"重複\",\"\")","v":""}]
[27,0.68588848870195807,31,null,49,null,null,27,null,null,{"$f":"IF(COUNTIF($E$54:E148,E80)>1,\"重複\",\"\")","v":""}]
[28,0.10792472536420827,93,null,67,null,null,28,null,null,{"$f":"IF(COUNTIF($E$54:E149,E81)>1,\"重複\",\"\")","v":""}]
[29,0.3770281711146658,67,null,95,null,null,29,null,null,{"$f":"IF(COUNTIF($E$54:E150,E82)>1,\"重複\",\"\")","v":""}]
[30,7.1764176302263505E-2,100,null,52,null,null,30,null,null,{"$f":"IF(COUNTIF($E$54:E151,E83)>1,\"重複\",\"\")","v":""}]
[31,0.40551996048587191,64,null,68,null,null,31,null,null,{"$f":"IF(COUNTIF($E$54:E152,E84)>1,\"重複\",\"\")","v":""}]
[32,5.6402808045090014E-2,103,null,77,null,null,32,null,null,{"$f":"IF(COUNTIF($E$54:E153,E85)>1,\"重複\",\"\")","v":""}]
[33,6.1910044270303999E-2,102,null,25,null,null,33,null,null,{"$f":"IF(COUNTIF($E$54:E154,E86)>1,\"重複\",\"\")","v":""}]
[34,0.45093059764749344,59,null,61,null,null,34,null,null,{"$f":"IF(COUNTIF($E$54:E155,E87)>1,\"重複\",\"\")","v":""}]
[35,0.52249962538984507,48,null,69,null,null,35,null,null,{"$f":"IF(COUNTIF($E$54:E156,E88)>1,\"重複\",\"\")","v":""}]
[36,0.37004714241242687,69,null,39,null,null,36,null,null,{"$f":"IF(COUNTIF($E$54:E157,E89)>1,\"重複\",\"\")","v":""}]
[37,0.26126862999530542,75,null,81,null,null,37,null,null,{"$f":"IF(COUNTIF($E$54:E158,E90)>1,\"重複\",\"\")","v":""}]
[38,9.6165842126079037E-2,94,null,85,null,null,38,null,null,{"$f":"IF(COUNTIF($E$54:E159,E91)>1,\"重複\",\"\")","v":""}]
[39,0.44921639976129235,60,null,40,null,null,39,null,null,{"$f":"IF(COUNTIF($E$54:E160,E92)>1,\"重複\",\"\")","v":""}]
[40,0.89568049172696151,11,null,82,null,null,40,null,null,{"$f":"IF(COUNTIF($E$54:E161,E93)>1,\"重複\",\"\")","v":""}]
[41,0.44204930395082676,61,null,35,null,null,41,null,null,{"$f":"IF(COUNTIF($E$54:E162,E94)>1,\"重複\",\"\")","v":""}]
[42,7.8307413437916917E-3,107,null,16,null,null,42,null,null,{"$f":"IF(COUNTIF($E$54:E163,E95)>1,\"重複\",\"\")","v":""}]
[43,0.59838860586122578,39,null,71,null,null,43,null,null,{"$f":"IF(COUNTIF($E$54:E164,E96)>1,\"重複\",\"\")","v":""}]
[44,8.050065953983021E-2,96,null,97,null,null,44,null,null,{"$f":"IF(COUNTIF($E$54:E165,E97)>1,\"重複\",\"\")","v":""}]
[45,0.69845708587395039,28,null,98,null,null,45,null,null,{"$f":"IF(COUNTIF($E$54:E166,E98)>1,\"重複\",\"\")","v":""}]
[46,3.7843357223334539E-2,104,null,75,null,null,46,null,null,{"$f":"IF(COUNTIF($E$54:E167,E99)>1,\"重複\",\"\")","v":""}]
[47,0.72896674114672633,22,null,60,null,null,47,null,null,{"$f":"IF(COUNTIF($E$54:E168,E100)>1,\"重複\",\"\")","v":""}]
[48,0.73528585737368046,20,null,105,null,null,48,null,null,{"$f":"IF(COUNTIF($E$54:E169,E101)>1,\"重複\",\"\")","v":""}]
[49,7.7936946837014243E-2,98,null,100,null,null,49,null,null,{"$f":"IF(COUNTIF($E$54:E170,E102)>1,\"重複\",\"\")","v":""}]
[50,0.87643117561188011,12,null,22,null,null,50,null,null,{"$f":"IF(COUNTIF($E$54:E171,E103)>1,\"重複\",\"\")","v":""}]
[51,6.5910650542285176E-2,101,null,6,null,null,51,null,null,{"$f":"IF(COUNTIF($E$54:E172,E104)>1,\"重複\",\"\")","v":""}]
[52,0.21740261080810552,82,null,20,null,null,52,null,null,{"$f":"IF(COUNTIF($E$54:E173,E105)>1,\"重複\",\"\")","v":""}]
[53,8.9259396630411492E-2,95,null,47,null,null,53,null,null,{"$f":"IF(COUNTIF($E$54:E174,E106)>1,\"重複\",\"\")","v":""}]
[54,0.1924118789123993,84,null,44,null,null,54,null,null,{"$f":"IF(COUNTIF($E$54:E175,E107)>1,\"重複\",\"\")","v":""}]
[55,0.1499341815172005,89,null,56,null,null,55,null,null,{"$f":"IF(COUNTIF($E$54:E176,E108)>1,\"重複\",\"\")","v":""}]
[56,0.17013547969609033,86,null,19,null,null,56,null,null,{"$f":"IF(COUNTIF($E$54:E177,E109)>1,\"重複\",\"\")","v":""}]
[57,0.2858349620438525,71,null,3,null,null,57,null,null,{"$f":"IF(COUNTIF($E$54:E178,E110)>1,\"重複\",\"\")","v":""}]
[58,0.95266201102168824,3,null,99,null,null,58,null,null,{"$f":"IF(COUNTIF($E$54:E179,E111)>1,\"重複\",\"\")","v":""}]
[59,0.69688541016275651,29,null,84,null,null,59,null,null,{"$f":"IF(COUNTIF($E$54:E180,E112)>1,\"重複\",\"\")","v":""}]
[60,0.53909927404534197,43,null,29,null,null,60,null,null,{"$f":"IF(COUNTIF($E$54:E181,E113)>1,\"重複\",\"\")","v":""}]
[61,0.5251842837947962,46,null,87,null,null,61,null,null,{"$f":"IF(COUNTIF($E$54:E182,E114)>1,\"重複\",\"\")","v":""}]
[62,0.48279021414088563,54,null,108,null,null,62,null,null,{"$f":"IF(COUNTIF($E$54:E183,E115)>1,\"重複\",\"\")","v":""}]
[63,0.52820649939970887,44,null,106,null,null,63,null,null,{"$f":"IF(COUNTIF($E$54:E184,E116)>1,\"重複\",\"\")","v":""}]
[64,0.84128535247660785,17,null,13,null,null,null,null,null,{"$f":"IF(COUNTIF($E$54:E185,E117)>1,\"重複\",\"\")","v":""}]
[65,{"$f":"RAND()","v":0.72957716550115093},21,null,107,null,null,null,null,null,{"$f":"IF(COUNTIF($E$54:E186,E118)>1,\"重複\",\"\")","v":""}]
[66,0.58645391367104449,{"$f":"RANK(B119,$B$54:$B$161)+$C$45-1","v":40},null,86,null,null,null,null,null,{"$f":"IF(COUNTIF($E$54:E187,E119)>1,\"重複\",\"\")","v":""}]
[67,0.85938782168081185,15,null,26,null,null,null,null,null,{"$f":"IF(COUNTIF($E$54:E188,E120)>1,\"重複\",\"\")","v":""}]
[68,0.4766018100368099,56,null,79,null,null,null,null,null,{"$f":"IF(COUNTIF($E$54:E189,E121)>1,\"重複\",\"\")","v":""}]
[69,0.94880439572581166,5,null,14,null,null,null,null,null,{"$f":"IF(COUNTIF($E$54:E190,E122)>1,\"重複\",\"\")","v":""}]
[70,0.6579584231002561,34,null,101]
[71,0.21774784669456271,81,null,21]
[72,0.41586053794649336,62,null,18]
[73,0.92323593748868327,8,null,43]
[74,0.50344806770648631,53,null,7]
[75,0.28549360422691383,72,null,45]
[76,0.52387599563009146,47,null,73]
[77,0.62511606469919867,36,null,70]
[78,0.93925825672322327,7,null,92]
[79,0.19343565362284898,83,null,57]
[80,0.85679018751802261,16,null,31]
[81,0.45978476598746698,57,null,23]
[82,0.50711245874747735,52,null,58]
[83,0.67091175535888858,32,null,1]
[84,0.27813618236640159,74,null,53]
[85,0.89795123076877181,10,null,4]
[86,0.15847783904592083,87,null,8]
[87,0.39449752089406742,65,null,36]
[88,0.51253139726347641,51,null,17]
[89,0.1275932877122018,91,null,66]
[90,0.66924657995195636,33,null,59]
[91,0.25133603244923974,76,null,41]
[92,0.15605029426434391,88,null,65]
[93,0.69960642854130051,27,null,50]
[94,0.79844574214440223,18,null,62]
[95,2.187208182800604E-3,108,null,104]
[96,0.57131056388690649,41,null,46]
[97,7.8598105710422361E-2,97,null,72]
[98,0.4771667067829739,55,null,34]
[99,0.61883826862687574,37,null,89]
[100,0.79443663905039985,19,null,32]
[101,0.71689517833543182,24,null,2]
[102,0.98314389285283488,2,null,27]
[103,0.8675281844082936,14,null,93]
[104,0.53959025751347189,42,null,78]
[105,0.4088657016384396,63,null,91]
[106,0.24629320634245444,78,null,5]
[107,0.70239038046533508,25,null,15]
[108,7.6627756347010245E-2,99,null,54]
[null,null,null,null,50]
[null,null,null,null,62]

{"sheet":"問題作成_説明中心_2","index":1,"n_rows":153,"n_cols":14,"rows_kept":153,"cut":false,"hidden":false,"merged":[[44,4,50,10],[36,1,36,8],[0,1,0,10],[1,1,1,10],[33,1,33,8],[34,1,34,8],[35,1,35,8],[41,1,41,8],[42,1,42,8],[39,1,39,8],[40,1,40,8],[37,1,37,8],[38,1,38,8]]}
[null,"ITパスポート試験　用語確認問題"]
[null,"　　　年　　　組　　　席　名前"]
[]
[113,{"$f":"IF(ISERROR(VLOOKUP(A4,用語表!$C$3:$E$310,3,0)),\"\",VLOOKUP(A4,用語表!$C$3:$E$310,3,0))","v":"VRML"},null,{"$f":"A31+1","v":141},{"$f":"IF(ISERROR(VLOOKUP(D4,用語表!$C$3:$E$310,3,0)),\"\",VLOOKUP(D4,用語表!$C$3:$E$310,3,0))","v":"結合"},null,{"$f":"D31+1","v":169},{"$f":"IF(ISERROR(VLOOKUP(G4,用語表!$C$3:$E$310,3,0)),\"\",VLOOKUP(G4,用語表!$C$3:$E$310,3,0))","v":"HTTP"},null,{"$f":"G31+1","v":197},{"$f":"IF(ISERROR(VLOOKUP(J4,用語表!$C$3:$E$464,3,0)),\"\",VLOOKUP(J4,用語表!$C$3:$E$464,3,0))","v":"クロスサイトスクリプティング"}]
[{"$f":"A4+1","v":114},{"$f":"IF(ISERROR(VLOOKUP(A5,用語表!$C$3:$E$310,3,0)),\"\",VLOOKUP(A5,用語表!$C$3:$E$310,3,0))","v":"ＭＩＤＩ"},null,{"$f":"D4+1","v":142},{"$f":"IF(ISERROR(VLOOKUP(D5,用語表!$C$3:$E$310,3,0)),\"\",VLOOKUP(D5,用語表!$C$3:$E$310,3,0))","v":"ロールバック"},null,{"$f":"G4+1","v":170},{"$f":"IF(ISERROR(VLOOKUP(G5,用語表!$C$3:$E$310,3,0)),\"\",VLOOKUP(G5,用語表!$C$3:$E$310,3,0))","v":"FTP"},null,{"$f":"J4+1","v":198},{"$f":"IF(ISERROR(VLOOKUP(J5,用語表!$C$3:$E$464,3,0)),\"\",VLOOKUP(J5,用語表!$C$3:$E$464,3,0))","v":"セッションハイジャック"}]
[{"$f":"A5+1","v":115},{"$f":"IF(ISERROR(VLOOKUP(A6,用語表!$C$3:$E$310,3,0)),\"\",VLOOKUP(A6,用語表!$C$3:$E$310,3,0))","v":"キャプチャカード"},null,{"$f":"D5+1","v":143},{"$f":"IF(ISERROR(VLOOKUP(D6,用語表!$C$3:$E$310,3,0)),\"\",VLOOKUP(D6,用語表!$C$3:$E$310,3,0))","v":"ロールフォワード"},null,{"$f":"G5+1","v":171},{"$f":"IF(ISERROR(VLOOKUP(G6,用語表!$C$3:$E$310,3,0)),\"\",VLOOKUP(G6,用語表!$C$3:$E$310,3,0))","v":"IPアドレス"},null,199,{"$f":"IF(ISERROR(VLOOKUP(J6,用語表!$C$3:$E$464,3,0)),\"\",VLOOKUP(J6,用語表!$C$3:$E$464,3,0))","v":"SQLインジェクション"}]
[116,{"$f":"IF(ISERROR(VLOOKUP(A7,用語表!$C$3:$E$310,3,0)),\"\",VLOOKUP(A7,用語表!$C$3:$E$310,3,0))","v":"DTMソフト"},null,144,{"$f":"IF(ISERROR(VLOOKUP(D7,用語表!$C$3:$E$310,3,0)),\"\",VLOOKUP(D7,用語表!$C$3:$E$310,3,0))","v":"データウェアハウス"},null,172,{"$f":"IF(ISERROR(VLOOKUP(G7,用語表!$C$3:$E$310,3,0)),\"\",VLOOKUP(G7,用語表!$C$3:$E$310,3,0))","v":"プライベートIPアドレス"},null,200,{"$f":"IF(ISERROR(VLOOKUP(J7,用語表!$C$3:$E$464,3,0)),\"\",VLOOKUP(J7,用語表!$C$3:$E$464,3,0))","v":"フィッシング"}]
[117,{"$f":"IF(ISERROR(VLOOKUP(A8,用語表!$C$3:$E$310,3,0)),\"\",VLOOKUP(A8,用語表!$C$3:$E$310,3,0))","v":"エージェントソフトウェア"},null,145,{"$f":"IF(ISERROR(VLOOKUP(D8,用語表!$C$3:$E$310,3,0)),\"\",VLOOKUP(D8,用語表!$C$3:$E$310,3,0))","v":"データマート"},null,173,{"$f":"IF(ISERROR(VLOOKUP(G8,用語表!$C$3:$E$310,3,0)),\"\",VLOOKUP(G8,用語表!$C$3:$E$310,3,0))","v":"グローバルIPアドレス"},null,201,{"$f":"IF(ISERROR(VLOOKUP(J8,用語表!$C$3:$E$464,3,0)),\"\",VLOOKUP(J8,用語表!$C$3:$E$464,3,0))","v":"コンテンツフィルタリング"}]
[118,{"$f":"IF(ISERROR(VLOOKUP(A9,用語表!$C$3:$E$310,3,0)),\"\",VLOOKUP(A9,用語表!$C$3:$E$310,3,0))","v":"ノンリニア編集"},null,146,{"$f":"IF(ISERROR(VLOOKUP(D9,用語表!$C$3:$E$310,3,0)),\"\",VLOOKUP(D9,用語表!$C$3:$E$310,3,0))","v":"データマイニング"},null,174,{"$f":"IF(ISERROR(VLOOKUP(G9,用語表!$C$3:$E$310,3,0)),\"\",VLOOKUP(G9,用語表!$C$3:$E$310,3,0))","v":"サブネットマスク"},null,202,{"$f":"IF(ISERROR(VLOOKUP(J9,用語表!$C$3:$E$464,3,0)),\"\",VLOOKUP(J9,用語表!$C$3:$E$464,3,0))","v":"脆弱性"}]
[119,{"$f":"IF(ISERROR(VLOOKUP(A10,用語表!$C$3:$E$310,3,0)),\"\",VLOOKUP(A10,用語表!$C$3:$E$310,3,0))","v":"リレーショナルデータベース"},null,147,{"$f":"IF(ISERROR(VLOOKUP(D10,用語表!$C$3:$E$310,3,0)),\"\",VLOOKUP(D10,用語表!$C$3:$E$310,3,0))","v":"リポジトリ　"},null,175,{"$f":"IF(ISERROR(VLOOKUP(G10,用語表!$C$3:$E$310,3,0)),\"\",VLOOKUP(G10,用語表!$C$3:$E$310,3,0))","v":"ネットワークアドレス"},null,203,{"$f":"IF(ISERROR(VLOOKUP(J10,用語表!$C$3:$E$464,3,0)),\"\",VLOOKUP(J10,用語表!$C$3:$E$464,3,0))","v":"セキュリティポリシ"}]
[120,{"$f":"IF(ISERROR(VLOOKUP(A11,用語表!$C$3:$E$310,3,0)),\"\",VLOOKUP(A11,用語表!$C$3:$E$310,3,0))","v":"Ｅ－Ｒ図"},null,148,{"$f":"IF(ISERROR(VLOOKUP(D11,用語表!$C$3:$E$310,3,0)),\"\",VLOOKUP(D11,用語表!$C$3:$E$310,3,0))","v":"ＷＡＮ"},null,176,{"$f":"IF(ISERROR(VLOOKUP(G11,用語表!$C$3:$E$310,3,0)),\"\",VLOOKUP(G11,用語表!$C$3:$E$310,3,0))","v":"ホストアドレス"},null,204,{"$f":"IF(ISERROR(VLOOKUP(J11,用語表!$C$3:$E$464,3,0)),\"\",VLOOKUP(J11,用語表!$C$3:$E$464,3,0))","v":"ディジタル署名"}]
[121,{"$f":"IF(ISERROR(VLOOKUP(A12,用語表!$C$3:$E$310,3,0)),\"\",VLOOKUP(A12,用語表!$C$3:$E$310,3,0))","v":"エンティティ（実体）"},null,149,{"$f":"IF(ISERROR(VLOOKUP(D12,用語表!$C$3:$E$310,3,0)),\"\",VLOOKUP(D12,用語表!$C$3:$E$310,3,0))","v":"トポロジ"},null,177,{"$f":"IF(ISERROR(VLOOKUP(G12,用語表!$C$3:$E$310,3,0)),\"\",VLOOKUP(G12,用語表!$C$3:$E$310,3,0))","v":"URL"},null,205,{"$f":"IF(ISERROR(VLOOKUP(J12,用語表!$C$3:$E$464,3,0)),\"\",VLOOKUP(J12,用語表!$C$3:$E$464,3,0))","v":"トロイの木馬"}]
[122,{"$f":"IF(ISERROR(VLOOKUP(A13,用語表!$C$3:$E$310,3,0)),\"\",VLOOKUP(A13,用語表!$C$3:$E$310,3,0))","v":"アトリビュート（属性）"},null,150,{"$f":"IF(ISERROR(VLOOKUP(D13,用語表!$C$3:$E$310,3,0)),\"\",VLOOKUP(D13,用語表!$C$3:$E$310,3,0))","v":"ノード"},null,178,{"$f":"IF(ISERROR(VLOOKUP(G13,用語表!$C$3:$E$310,3,0)),\"\",VLOOKUP(G13,用語表!$C$3:$E$310,3,0))","v":"DNSサーバ"},null,206,{"$f":"IF(ISERROR(VLOOKUP(J13,用語表!$C$3:$E$464,3,0)),\"\",VLOOKUP(J13,用語表!$C$3:$E$464,3,0))","v":"認証局（CA)"}]
[123,{"$f":"IF(ISERROR(VLOOKUP(A14,用語表!$C$3:$E$310,3,0)),\"\",VLOOKUP(A14,用語表!$C$3:$E$310,3,0))","v":"リレーションシップ（関係）"},null,151,{"$f":"IF(ISERROR(VLOOKUP(D14,用語表!$C$3:$E$310,3,0)),\"\",VLOOKUP(D14,用語表!$C$3:$E$310,3,0))","v":"ＣＳＭＡ／ＣＤ方式"},null,179,{"$f":"IF(ISERROR(VLOOKUP(G14,用語表!$C$3:$E$310,3,0)),\"\",VLOOKUP(G14,用語表!$C$3:$E$310,3,0))","v":"POPサーバ"},null,207,{"$f":"IF(ISERROR(VLOOKUP(J14,用語表!$C$3:$E$464,3,0)),\"\",VLOOKUP(J14,用語表!$C$3:$E$464,3,0))","v":"バイオメトリクス認証"}]
[124,{"$f":"IF(ISERROR(VLOOKUP(A15,用語表!$C$3:$E$310,3,0)),\"\",VLOOKUP(A15,用語表!$C$3:$E$310,3,0))","v":"主キー"},null,152,{"$f":"IF(ISERROR(VLOOKUP(D15,用語表!$C$3:$E$310,3,0)),\"\",VLOOKUP(D15,用語表!$C$3:$E$310,3,0))","v":"FDDI"},null,180,{"$f":"IF(ISERROR(VLOOKUP(G15,用語表!$C$3:$E$310,3,0)),\"\",VLOOKUP(G15,用語表!$C$3:$E$310,3,0))","v":"SMTPサーバ"},null,208,{"$f":"IF(ISERROR(VLOOKUP(J15,用語表!$C$3:$E$464,3,0)),\"\",VLOOKUP(J15,用語表!$C$3:$E$464,3,0))","v":"パケットフィルタリング"}]
[125,{"$f":"IF(ISERROR(VLOOKUP(A16,用語表!$C$3:$E$310,3,0)),\"\",VLOOKUP(A16,用語表!$C$3:$E$310,3,0))","v":"整合性制約（参照整合性）"},null,153,{"$f":"IF(ISERROR(VLOOKUP(D16,用語表!$C$3:$E$310,3,0)),\"\",VLOOKUP(D16,用語表!$C$3:$E$310,3,0))","v":"ESSID(ESS-ID)"},null,181,{"$f":"IF(ISERROR(VLOOKUP(G16,用語表!$C$3:$E$310,3,0)),\"\",VLOOKUP(G16,用語表!$C$3:$E$310,3,0))","v":"DHCPサーバ"},null,209,{"$f":"IF(ISERROR(VLOOKUP(J16,用語表!$C$3:$E$464,3,0)),\"\",VLOOKUP(J16,用語表!$C$3:$E$464,3,0))","v":"パターンファイル(ウィルス定義ファイル）"}]
[126,{"$f":"IF(ISERROR(VLOOKUP(A17,用語表!$C$3:$E$310,3,0)),\"\",VLOOKUP(A17,用語表!$C$3:$E$310,3,0))","v":"排他制御"},null,154,{"$f":"IF(ISERROR(VLOOKUP(D17,用語表!$C$3:$E$310,3,0)),\"\",VLOOKUP(D17,用語表!$C$3:$E$310,3,0))","v":"ツイストペアケーブル"},null,182,{"$f":"IF(ISERROR(VLOOKUP(G17,用語表!$C$3:$E$310,3,0)),\"\",VLOOKUP(G17,用語表!$C$3:$E$310,3,0))","v":"プロキシサーバ"},null,210,{"$f":"IF(ISERROR(VLOOKUP(J17,用語表!$C$3:$E$464,3,0)),\"\",VLOOKUP(J17,用語表!$C$3:$E$464,3,0))","v":"ファイアウォール"}]
[127,{"$f":"IF(ISERROR(VLOOKUP(A18,用語表!$C$3:$E$310,3,0)),\"\",VLOOKUP(A18,用語表!$C$3:$E$310,3,0))","v":"２相ロック"},null,155,{"$f":"IF(ISERROR(VLOOKUP(D18,用語表!$C$3:$E$310,3,0)),\"\",VLOOKUP(D18,用語表!$C$3:$E$310,3,0))","v":"ハブ"},null,183,{"$f":"IF(ISERROR(VLOOKUP(G18,用語表!$C$3:$E$310,3,0)),\"\",VLOOKUP(G18,用語表!$C$3:$E$310,3,0))","v":"アクセスログ"},null,211,{"$f":"IF(ISERROR(VLOOKUP(J18,用語表!$C$3:$E$464,3,0)),\"\",VLOOKUP(J18,用語表!$C$3:$E$464,3,0))","v":"マクロ"}]
[128,{"$f":"IF(ISERROR(VLOOKUP(A19,用語表!$C$3:$E$310,3,0)),\"\",VLOOKUP(A19,用語表!$C$3:$E$310,3,0))","v":"デッドロック"},null,156,{"$f":"IF(ISERROR(VLOOKUP(D19,用語表!$C$3:$E$310,3,0)),\"\",VLOOKUP(D19,用語表!$C$3:$E$310,3,0))","v":"ルータ"},null,184,{"$f":"IF(ISERROR(VLOOKUP(G19,用語表!$C$3:$E$310,3,0)),\"\",VLOOKUP(G19,用語表!$C$3:$E$310,3,0))","v":"ｂｐｓ"},null,212,{"$f":"IF(ISERROR(VLOOKUP(J19,用語表!$C$3:$E$464,3,0)),\"\",VLOOKUP(J19,用語表!$C$3:$E$464,3,0))","v":"マクロウィルス"}]
[129,{"$f":"IF(ISERROR(VLOOKUP(A20,用語表!$C$3:$E$310,3,0)),\"\",VLOOKUP(A20,用語表!$C$3:$E$310,3,0))","v":"トランザクションスケジューリング"},null,157,{"$f":"IF(ISERROR(VLOOKUP(D20,用語表!$C$3:$E$310,3,0)),\"\",VLOOKUP(D20,用語表!$C$3:$E$310,3,0))","v":"カスケード接続"},null,185,{"$f":"IF(ISERROR(VLOOKUP(G20,用語表!$C$3:$E$310,3,0)),\"\",VLOOKUP(G20,用語表!$C$3:$E$310,3,0))","v":"パケット"},null,213,{"$f":"IF(ISERROR(VLOOKUP(J20,用語表!$C$3:$E$464,3,0)),\"\",VLOOKUP(J20,用語表!$C$3:$E$464,3,0))","v":"マルウェア"}]
[130,{"$f":"IF(ISERROR(VLOOKUP(A21,用語表!$C$3:$E$310,3,0)),\"\",VLOOKUP(A21,用語表!$C$3:$E$310,3,0))","v":"副問合せ"},null,158,{"$f":"IF(ISERROR(VLOOKUP(D21,用語表!$C$3:$E$310,3,0)),\"\",VLOOKUP(D21,用語表!$C$3:$E$310,3,0))","v":"リピータ"},null,186,{"$f":"IF(ISERROR(VLOOKUP(G21,用語表!$C$3:$E$310,3,0)),\"\",VLOOKUP(G21,用語表!$C$3:$E$310,3,0))","v":"ＡＲＰ"},null,214,{"$f":"IF(ISERROR(VLOOKUP(J21,用語表!$C$3:$E$464,3,0)),\"\",VLOOKUP(J21,用語表!$C$3:$E$464,3,0))","v":"スパイウェア"}]
[131,{"$f":"IF(ISERROR(VLOOKUP(A22,用語表!$C$3:$E$310,3,0)),\"\",VLOOKUP(A22,用語表!$C$3:$E$310,3,0))","v":"概念設計"},null,159,{"$f":"IF(ISERROR(VLOOKUP(D22,用語表!$C$3:$E$310,3,0)),\"\",VLOOKUP(D22,用語表!$C$3:$E$310,3,0))","v":"ブリッジ"},null,187,{"$f":"IF(ISERROR(VLOOKUP(G22,用語表!$C$3:$E$310,3,0)),\"\",VLOOKUP(G22,用語表!$C$3:$E$310,3,0))","v":"ＮＡＴ"},null,215,{"$f":"IF(ISERROR(VLOOKUP(J22,用語表!$C$3:$E$464,3,0)),\"\",VLOOKUP(J22,用語表!$C$3:$E$464,3,0))","v":"ワーム"}]
[132,{"$f":"IF(ISERROR(VLOOKUP(A23,用語表!$C$3:$E$310,3,0)),\"\",VLOOKUP(A23,用語表!$C$3:$E$310,3,0))","v":"論理設計"},null,160,{"$f":"IF(ISERROR(VLOOKUP(D23,用語表!$C$3:$E$310,3,0)),\"\",VLOOKUP(D23,用語表!$C$3:$E$310,3,0))","v":"ゲートウェイ"},null,188,{"$f":"IF(ISERROR(VLOOKUP(G23,用語表!$C$3:$E$310,3,0)),\"\",VLOOKUP(G23,用語表!$C$3:$E$310,3,0))","v":"ＩＰマスカレード"},null,216,{"$f":"IF(ISERROR(VLOOKUP(J23,用語表!$C$3:$E$464,3,0)),\"\",VLOOKUP(J23,用語表!$C$3:$E$464,3,0))","v":"キーロガー"}]
[133,{"$f":"IF(ISERROR(VLOOKUP(A24,用語表!$C$3:$E$310,3,0)),\"\",VLOOKUP(A24,用語表!$C$3:$E$310,3,0))","v":"物理設計"},null,161,{"$f":"IF(ISERROR(VLOOKUP(D24,用語表!$C$3:$E$310,3,0)),\"\",VLOOKUP(D24,用語表!$C$3:$E$310,3,0))","v":"ＦＴＴＨ"},null,189,{"$f":"IF(ISERROR(VLOOKUP(G24,用語表!$C$3:$E$310,3,0)),\"\",VLOOKUP(G24,用語表!$C$3:$E$310,3,0))","v":"ＩＰルーティング"},null,217,{"$f":"IF(ISERROR(VLOOKUP(J24,用語表!$C$3:$E$464,3,0)),\"\",VLOOKUP(J24,用語表!$C$3:$E$464,3,0))","v":"war driving"}]
[134,{"$f":"IF(ISERROR(VLOOKUP(A25,用語表!$C$3:$E$310,3,0)),\"\",VLOOKUP(A25,用語表!$C$3:$E$310,3,0))","v":"データの冗長性"},null,162,{"$f":"IF(ISERROR(VLOOKUP(D25,用語表!$C$3:$E$310,3,0)),\"\",VLOOKUP(D25,用語表!$C$3:$E$310,3,0))","v":"ＡＤＳＬ"},null,190,{"$f":"IF(ISERROR(VLOOKUP(G25,用語表!$C$3:$E$310,3,0)),\"\",VLOOKUP(G25,用語表!$C$3:$E$310,3,0))","v":"ＭＩＭＥ"},null,218,{"$f":"IF(ISERROR(VLOOKUP(J25,用語表!$C$3:$E$464,3,0)),\"\",VLOOKUP(J25,用語表!$C$3:$E$464,3,0))","v":"ハニーポット"}]
[135,{"$f":"IF(ISERROR(VLOOKUP(A26,用語表!$C$3:$E$310,3,0)),\"\",VLOOKUP(A26,用語表!$C$3:$E$310,3,0))","v":"データの正規化"},null,163,{"$f":"IF(ISERROR(VLOOKUP(D26,用語表!$C$3:$E$310,3,0)),\"\",VLOOKUP(D26,用語表!$C$3:$E$310,3,0))","v":"PLCモデム"},null,191,{"$f":"IF(ISERROR(VLOOKUP(G26,用語表!$C$3:$E$310,3,0)),\"\",VLOOKUP(G26,用語表!$C$3:$E$310,3,0))","v":"ストリーミング"},null,219,{"$f":"IF(ISERROR(VLOOKUP(J26,用語表!$C$3:$E$464,3,0)),\"\",VLOOKUP(J26,用語表!$C$3:$E$464,3,0))","v":"インシデント"}]
[136,{"$f":"IF(ISERROR(VLOOKUP(A27,用語表!$C$3:$E$310,3,0)),\"\",VLOOKUP(A27,用語表!$C$3:$E$310,3,0))","v":"第１正規化"},null,164,{"$f":"IF(ISERROR(VLOOKUP(D27,用語表!$C$3:$E$310,3,0)),\"\",VLOOKUP(D27,用語表!$C$3:$E$310,3,0))","v":"MACアドレス"},null,192,{"$f":"IF(ISERROR(VLOOKUP(G27,用語表!$C$3:$E$310,3,0)),\"\",VLOOKUP(G27,用語表!$C$3:$E$310,3,0))","v":"IP電話、VoIP"},null,220,{"$f":"IF(ISERROR(VLOOKUP(J27,用語表!$C$3:$E$464,3,0)),\"\",VLOOKUP(J27,用語表!$C$3:$E$464,3,0))","v":"クッキー"}]
[137,{"$f":"IF(ISERROR(VLOOKUP(A28,用語表!$C$3:$E$310,3,0)),\"\",VLOOKUP(A28,用語表!$C$3:$E$310,3,0))","v":"第２正規化"},null,165,{"$f":"IF(ISERROR(VLOOKUP(D28,用語表!$C$3:$E$310,3,0)),\"\",VLOOKUP(D28,用語表!$C$3:$E$310,3,0))","v":"Wi-Fi"},null,193,{"$f":"IF(ISERROR(VLOOKUP(G28,用語表!$C$3:$E$310,3,0)),\"\",VLOOKUP(G28,用語表!$C$3:$E$310,3,0))","v":"クラッキング"},null,221,{"$f":"IF(ISERROR(VLOOKUP(J28,用語表!$C$3:$E$464,3,0)),\"\",VLOOKUP(J28,用語表!$C$3:$E$464,3,0))","v":"ＤＭＺ"}]
[138,{"$f":"IF(ISERROR(VLOOKUP(A29,用語表!$C$3:$E$310,3,0)),\"\",VLOOKUP(A29,用語表!$C$3:$E$310,3,0))","v":"第３正規化"},null,166,{"$f":"IF(ISERROR(VLOOKUP(D29,用語表!$C$3:$E$310,3,0)),\"\",VLOOKUP(D29,用語表!$C$3:$E$310,3,0))","v":"TCP/IP"},null,194,{"$f":"IF(ISERROR(VLOOKUP(G29,用語表!$C$3:$E$310,3,0)),\"\",VLOOKUP(G29,用語表!$C$3:$E$310,3,0))","v":"ソーシャルエンジニアリング"},null,222,{"$f":"IF(ISERROR(VLOOKUP(J29,用語表!$C$3:$E$464,3,0)),\"\",VLOOKUP(J29,用語表!$C$3:$E$464,3,0))","v":"個人情報保護方針(プライバシーポリシー)"}]
[139,{"$f":"IF(ISERROR(VLOOKUP(A30,用語表!$C$3:$E$310,3,0)),\"\",VLOOKUP(A30,用語表!$C$3:$E$310,3,0))","v":"選択"},null,167,{"$f":"IF(ISERROR(VLOOKUP(D30,用語表!$C$3:$E$310,3,0)),\"\",VLOOKUP(D30,用語表!$C$3:$E$310,3,0))","v":"プロトコル"},null,195,{"$f":"IF(ISERROR(VLOOKUP(G30,用語表!$C$3:$E$310,3,0)),\"\",VLOOKUP(G30,用語表!$C$3:$E$310,3,0))","v":"Ｄoｓ攻撃"},null,223,{"$f":"IF(ISERROR(VLOOKUP(J30,用語表!$C$3:$E$464,3,0)),\"\",VLOOKUP(J30,用語表!$C$3:$E$464,3,0))","v":"秘密鍵"}]
[140,{"$f":"IF(ISERROR(VLOOKUP(A31,用語表!$C$3:$E$310,3,0)),\"\",VLOOKUP(A31,用語表!$C$3:$E$310,3,0))","v":"射影"},null,{"$f":"D30+1","v":168},{"$f":"IF(ISERROR(VLOOKUP(D31,用語表!$C$3:$E$310,3,0)),\"\",VLOOKUP(D31,用語表!$C$3:$E$310,3,0))","v":"NTP"},null,196,{"$f":"IF(ISERROR(VLOOKUP(G31,用語表!$C$3:$E$310,3,0)),\"\",VLOOKUP(G31,用語表!$C$3:$E$310,3,0))","v":"バッファオーバーフロー攻撃"},null,224,{"$f":"IF(ISERROR(VLOOKUP(J31,用語表!$C$3:$E$464,3,0)),\"\",VLOOKUP(J31,用語表!$C$3:$E$464,3,0))","v":"公開鍵"}]
[]
[null,{"$f":"\"出題範囲=\"&C45&\":\"&C46","v":"出題範囲=90:187"},null,null,{"$f":"\"印刷範囲=\"&C49&\":\"&C50","v":"印刷範囲=91:100"},null,null,null,null,7]
[1,{"$f":"IF(ISERROR(VLOOKUP(J34,用語表!$C$3:$E$310,2)),\"\",VLOOKUP(J34,用語表!$C$3:$E$310,2))","v":"スター型ネットワークで使われる集線装置のこと。各機器に接続されたケーブルはいったんここに接続され、これを介して相互に通信する。"},null,null,null,null,null,null,null,155,null,null,{"$f":"J34","v":155},{"$f":"IF(ISERROR(VLOOKUP(J34,用語表!$C$3:$E$513,3,0)),\"\",VLOOKUP(J34,用語表!$C$3:$E$513,3,0)&\"  \"&VLOOKUP(J34,用語表!$C$3:$F$513,4,0))","v":"ハブ  "}]
[2,{"$f":"IF(ISERROR(VLOOKUP(J35,用語表!$C$3:$E$310,2)),\"\",VLOOKUP(J35,用語表!$C$3:$E$310,2))","v":"論理設計の結果を用いて、利用するデータベース管理システムに応じた設計を行う作業。"},null,null,null,null,null,null,null,133,null,null,133,{"$f":"IF(ISERROR(VLOOKUP(J35,用語表!$C$3:$E$513,3,0)),\"\",VLOOKUP(J35,用語表!$C$3:$E$513,3,0)&\"  \"&VLOOKUP(J35,用語表!$C$3:$F$513,4,0))","v":"物理設計  "}]
[3,{"$f":"IF(ISERROR(VLOOKUP(J36,用語表!$C$3:$E$310,2)),\"\",VLOOKUP(J36,用語表!$C$3:$E$310,2))","v":"利用するデータベース管理システムに合わせて、データベースの論理的な構造として表と索引を設計する作業。"},null,null,null,null,null,null,null,132,null,null,132,{"$f":"IF(ISERROR(VLOOKUP(J36,用語表!$C$3:$E$513,3,0)),\"\",VLOOKUP(J36,用語表!$C$3:$E$513,3,0)&\"  \"&VLOOKUP(J36,用語表!$C$3:$F$513,4,0))","v":"論理設計  "}]
[4,{"$f":"IF(ISERROR(VLOOKUP(J37,用語表!$C$3:$E$310,2)),\"\",VLOOKUP(J37,用語表!$C$3:$E$310,2))","v":"電子メールを送信するためのサーバのこと。ユーザから送信されたメールを受け取り、送信先を探して、そこに送信する。"},null,null,null,null,null,null,null,180,null,null,180,{"$f":"IF(ISERROR(VLOOKUP(J37,用語表!$C$3:$E$513,3,0)),\"\",VLOOKUP(J37,用語表!$C$3:$E$513,3,0)&\"  \"&VLOOKUP(J37,用語表!$C$3:$F$513,4,0))","v":"SMTPサーバ  "}]
[5,{"$f":"IF(ISERROR(VLOOKUP(J38,用語表!$C$3:$E$310,2)),\"\",VLOOKUP(J38,用語表!$C$3:$E$310,2))","v":"「広域通信網」の略。電話回線や専用線を使って、本社－支社間など地理的に離れた地点にあるコンピュータ同士を接続し、データをやり取りすることを言う。"},null,null,null,null,null,null,null,148,null,null,148,{"$f":"IF(ISERROR(VLOOKUP(J38,用語表!$C$3:$E$513,3,0)),\"\",VLOOKUP(J38,用語表!$C$3:$E$513,3,0)&\"  \"&VLOOKUP(J38,用語表!$C$3:$F$513,4,0))","v":"ＷＡＮ  Wide Area Network"}]
[6,{"$f":"IF(ISERROR(VLOOKUP(J39,用語表!$C$3:$E$310,2)),\"\",VLOOKUP(J39,用語表!$C$3:$E$310,2))","v":"高齢者や障がい者などを含めて、Webサイトが誰もが利用できるかどうかということ"},null,null,null,null,null,null,null,101,null,null,101,{"$f":"IF(ISERROR(VLOOKUP(J39,用語表!$C$3:$E$513,3,0)),\"\",VLOOKUP(J39,用語表!$C$3:$E$513,3,0)&\"  \"&VLOOKUP(J39,用語表!$C$3:$F$513,4,0))","v":"Webアクセシビリティ  "}]
[7,{"$f":"IF(ISERROR(VLOOKUP(J40,用語表!$C$3:$E$310,2)),\"\",VLOOKUP(J40,用語表!$C$3:$E$310,2))","v":"ＮＴＴのＢフレッツなど、光ファイバーによる家庭向けのデータ通信サービス。"},null,null,null,null,null,null,null,161,null,null,161,{"$f":"IF(ISERROR(VLOOKUP(J40,用語表!$C$3:$E$513,3,0)),\"\",VLOOKUP(J40,用語表!$C$3:$E$513,3,0)&\"  \"&VLOOKUP(J40,用語表!$C$3:$F$513,4,0))","v":"ＦＴＴＨ  Fiber To The Home"}]
[8,{"$f":"IF(ISERROR(VLOOKUP(J41,用語表!$C$3:$E$310,2)),\"\",VLOOKUP(J41,用語表!$C$3:$E$310,2))","v":"構内ネットワークとインターネットの境にあって、直接インターネットに接続できない内部ネットワークのコンピュータに代わってインターネットとの接続を行うサーバのこと。"},null,null,null,null,null,null,null,182,null,null,182,{"$f":"IF(ISERROR(VLOOKUP(J41,用語表!$C$3:$E$513,3,0)),\"\",VLOOKUP(J41,用語表!$C$3:$E$513,3,0)&\"  \"&VLOOKUP(J41,用語表!$C$3:$F$513,4,0))","v":"プロキシサーバ  "}]
[9,{"$f":"IF(ISERROR(VLOOKUP(J42,用語表!$C$3:$E$310,2)),\"\",VLOOKUP(J42,用語表!$C$3:$E$310,2))","v":"ネットワークに接続される機器が持つ時計を同期させるためのプロトコル。\n複数の装置で処理を行うシステムにおいて、装置毎の時間が合っていないと、クライアントサーバシステムのように複数台の装置で行った処理の記録(ログ)などの時刻にずれがあるため、検証のために処理の追跡を行うときや、障害発生時の原因の特定、データの復旧が困難になってしまうために同期させる。"},null,null,null,null,null,null,null,168,null,null,168,{"$f":"IF(ISERROR(VLOOKUP(J42,用語表!$C$3:$E$513,3,0)),\"\",VLOOKUP(J42,用語表!$C$3:$E$513,3,0)&\"  \"&VLOOKUP(J42,用語表!$C$3:$F$513,4,0))","v":"NTP  Network Time Protocol"}]
[10,{"$f":"IF(ISERROR(VLOOKUP(J43,用語表!$C$3:$E$310,2)),\"\",VLOOKUP(J43,用語表!$C$3:$E$310,2))","v":"分散データベース環境において、使用するすべてのリソース(資源)をロックする第1フェーズと、操作の終了したリソースのロックを解除する第2フェーズからなる制御方式。この方式では、トランザクション中に一度でもロックの解除を行ったら、それ以降はロックを行わない。デッドロックを回避しながら排他制御を実現する手法。"},null,null,null,null,null,null,null,127,null,null,127,{"$f":"IF(ISERROR(VLOOKUP(J43,用語表!$C$3:$E$513,3,0)),\"\",VLOOKUP(J43,用語表!$C$3:$E$513,3,0)&\"  \"&VLOOKUP(J43,用語表!$C$3:$F$513,4,0))","v":"２相ロック  Two-Phase Locking"}]
[]
[null,"開始問題番号",90,null,null,null,null,null,null,null,null,null,null,"０　「開始問題番号」と「終了問題番号」を入力する。"]
[null,"終了問題番号",187,null,null,null,null,null,null,null,null,null,null,"1～１１１までの問題番号"]
[null,"問題数",{"$f":"C46-C45+1","v":98}]
[null,"問題印刷枚数",17,null,null,null,null,null,null,null,null,null,null,"１　問題数の行分の乱数を設定する。"]
[null,"E列　印刷開始問題番号",91,null,null,null,null,null,null,null,null,null,null,"例　問題数が３８の場合は、行５４から行９１まで"]
[null,"E列　印刷終了問題番号",100]
[null,null,null,null,null,null,null,null,null,null,null,null,null,"２　問題番号を値複写する。"]
[]
["問題数","乱数＆問題番号",null,null,"値複写（作成する問題番号）",null,null,"用語範囲の確認（範囲エラー）",null,null,"重複の確認（\"重複\"の表示）",null,null,"３　「印刷開始問題番号」を入力して「問題の作成」ボタンを押す。"]
[1,{"$f":"RAND()","v":0.69306283088794496},{"$f":"RANK(B54,$B$54:$B$160)+$C$45-1","v":115},null,169,null,null,{"$f":"IF(AND(E54>=$C$45,E54<=$C$46),\"\",\"範囲エラー\")","v":""},null,null,{"$f":"IF(COUNTIF($E$54:E160,E54)>1,\"重複\",\"\")","v":""}]
[2,0.82408024952046899,{"$f":"RANK(B55,$B$54:$B$160)+$C$45-1","v":105},null,96,null,null,{"$f":"IF(AND(E55>=$C$45,E55<=$C$46),\"\",\"範囲エラー\")","v":""},null,null,{"$f":"IF(COUNTIF($E$54:E161,E55)>1,\"重複\",\"\")","v":""},null,null,"４　「問題印刷枚数」を入力して「問題の印刷」を押す。"]
[3,0.4689737841648105,141,null,93,null,null,"",null,null,{"$f":"IF(COUNTIF($E$54:E162,E56)>1,\"重複\",\"\")","v":""}]
[4,0.15282825714369164,171,null,98,null,null,"",null,null,{"$f":"IF(COUNTIF($E$54:E163,E57)>1,\"重複\",\"\")","v":""},null,null,"５　「解答の印刷」を押す。"]
[5,0.30145817289576882,155,null,160,null,null,"",null,null,{"$f":"IF(COUNTIF($E$54:E164,E58)>1,\"重複\",\"\")","v":""}]
[6,6.9829597901375329E-2,177,null,122,null,null,"",null,null,{"$f":"IF(COUNTIF($E$54:E165,E59)>1,\"重複\",\"\")","v":""}]
[7,0.29349228009257056,157,null,183,null,null,"",null,null,{"$f":"IF(COUNTIF($E$54:E166,E60)>1,\"重複\",\"\")","v":""}]
[8,0.68016531401118152,117,null,112,null,null,"",null,null,{"$f":"IF(COUNTIF($E$54:E167,E61)>1,\"重複\",\"\")","v":""}]
[9,0.17149759705504253,166,null,107,null,null,"",null,null,{"$f":"IF(COUNTIF($E$54:E168,E62)>1,\"重複\",\"\")","v":""}]
[10,0.97610296197278412,91,null,113,null,null,"",null,null,{"$f":"IF(COUNTIF($E$54:E169,E63)>1,\"重複\",\"\")","v":""}]
[11,0.16861793714982942,170,null,146,null,null,"",null,null,{"$f":"IF(COUNTIF($E$54:E170,E64)>1,\"重複\",\"\")","v":""}]
[12,0.13691512087680002,174,null,152,null,null,"",null,null,{"$f":"IF(COUNTIF($E$54:E171,E65)>1,\"重複\",\"\")","v":""}]
[13,0.65130312972316107,119,null,153,null,null,"",null,null,{"$f":"IF(COUNTIF($E$54:E172,E66)>1,\"重複\",\"\")","v":""}]
[14,0.80075630207466886,108,null,164,null,null,"",null,null,{"$f":"IF(COUNTIF($E$54:E173,E67)>1,\"重複\",\"\")","v":""}]
[15,0.1290492618107989,175,null,120,null,null,"",null,null,{"$f":"IF(COUNTIF($E$54:E174,E68)>1,\"重複\",\"\")","v":""}]
[16,0.71362452198557225,113,null,151,null,null,"",null,null,{"$f":"IF(COUNTIF($E$54:E175,E69)>1,\"重複\",\"\")","v":""}]
[17,6.8468520101560681E-2,178,null,131,null,null,"",null,null,{"$f":"IF(COUNTIF($E$54:E176,E70)>1,\"重複\",\"\")","v":""}]
[18,0.87310379481725031,97,null,114,null,null,"",null,null,{"$f":"IF(COUNTIF($E$54:E177,E71)>1,\"重複\",\"\")","v":""}]
[19,0.87542048947587403,95,null,187,null,null,"",null,null,{"$f":"IF(COUNTIF($E$54:E178,E72)>1,\"重複\",\"\")","v":""}]
[20,0.82657155842659991,104,null,116,null,null,"",null,null,{"$f":"IF(COUNTIF($E$54:E179,E73)>1,\"重複\",\"\")","v":""}]
[21,0.8319812624003291,101,null,95,null,null,"",null,null,{"$f":"IF(COUNTIF($E$54:E180,E74)>1,\"重複\",\"\")","v":""}]
[22,0.62942214471617353,122,null,110,null,null,"",null,null,{"$f":"IF(COUNTIF($E$54:E181,E75)>1,\"重複\",\"\")","v":""}]
[23,0.49749455376959262,140,null,135,null,null,"",null,null,{"$f":"IF(COUNTIF($E$54:E182,E76)>1,\"重複\",\"\")","v":""}]
[24,0.17062510353991633,168,null,134,null,null,"",null,null,{"$f":"IF(COUNTIF($E$54:E183,E77)>1,\"重複\",\"\")","v":""}]
[25,0.62240040271365826,124,null,186,null,null,"",null,null,{"$f":"IF(COUNTIF($E$54:E184,E78)>1,\"重複\",\"\")","v":""}]
[26,0.78400274275134874,110,null,137,null,null,"",null,null,{"$f":"IF(COUNTIF($E$54:E185,E79)>1,\"重複\",\"\")","v":""}]
[27,0.7750736955425841,111,null,125,null,null,"",null,null,{"$f":"IF(COUNTIF($E$54:E186,E80)>1,\"重複\",\"\")","v":""}]
[28,0.52145479971046194,139,null,94,null,null,"",null,null,{"$f":"IF(COUNTIF($E$54:E187,E81)>1,\"重複\",\"\")","v":""}]
[29,0.85615017995822296,100,null,154,null,null,"",null,null,{"$f":"IF(COUNTIF($E$54:E188,E82)>1,\"重複\",\"\")","v":""}]
[30,0.66323556250757365,118,null,140,null,null,"",null,null,{"$f":"IF(COUNTIF($E$54:E189,E83)>1,\"重複\",\"\")","v":""}]
[31,0.22045883783680364,160,null,141,null,null,"",null,null,{"$f":"IF(COUNTIF($E$54:E190,E84)>1,\"重複\",\"\")","v":""}]
[32,4.1642655270689999E-2,183,null,111,null,null,"",null,null,{"$f":"IF(COUNTIF($E$54:E191,E85)>1,\"重複\",\"\")","v":""}]
[33,0.17037166460138586,169,null,123,null,null,"",null,null,{"$f":"IF(COUNTIF($E$54:E192,E86)>1,\"重複\",\"\")","v":""}]
[34,0.29510026351148466,156,null,119,null,null,"",null,null,{"$f":"IF(COUNTIF($E$54:E193,E87)>1,\"重複\",\"\")","v":""}]
[35,0.46801963229722732,142,null,162,null,null,"",null,null,{"$f":"IF(COUNTIF($E$54:E194,E88)>1,\"重複\",\"\")","v":""}]
[36,0.79155201633014949,109,null,145,null,null,"",null,null,{"$f":"IF(COUNTIF($E$54:E195,E89)>1,\"重複\",\"\")","v":""}]
[37,0.34881800297390486,152,null,115,null,null,"",null,null,{"$f":"IF(COUNTIF($E$54:E196,E90)>1,\"重複\",\"\")","v":""}]
[38,0.69557675540041164,114,null,127,null,null,"",null,null,{"$f":"IF(COUNTIF($E$54:E197,E91)>1,\"重複\",\"\")","v":"重複"}]
[39,0.4426140261436794,144,null,185,null,null,"",null,null,{"$f":"IF(COUNTIF($E$54:E198,E92)>1,\"重複\",\"\")","v":""}]
[40,0.98096408720756312,90,null,124,null,null,"",null,null,{"$f":"IF(COUNTIF($E$54:E199,E93)>1,\"重複\",\"\")","v":""}]
[41,0.17069788174391798,167,null,130,null,null,"",null,null,{"$f":"IF(COUNTIF($E$54:E200,E94)>1,\"重複\",\"\")","v":""}]
[42,0.14866705898296262,173,null,97,null,null,"",null,null,{"$f":"IF(COUNTIF($E$54:E201,E95)>1,\"重複\",\"\")","v":""}]
[43,0.23912004919207797,159,null,184,null,null,"",null,null,{"$f":"IF(COUNTIF($E$54:E202,E96)>1,\"重複\",\"\")","v":""}]
[44,0.17296919543572287,165,null,159,null,null,"",null,null,{"$f":"IF(COUNTIF($E$54:E203,E97)>1,\"重複\",\"\")","v":""}]
[45,0.59861637092455644,128,null,138,null,null,"",null,null,{"$f":"IF(COUNTIF($E$54:E204,E98)>1,\"重複\",\"\")","v":""}]
[46,5.9260898176034527E-2,180,null,172,null,null,"",null,null,{"$f":"IF(COUNTIF($E$54:E205,E99)>1,\"重複\",\"\")","v":""}]
[47,0.53043779004681979,137,null,92,null,null,"",null,null,{"$f":"IF(COUNTIF($E$54:E206,E100)>1,\"重複\",\"\")","v":""}]
[48,0.59355698799202372,130,null,99,null,null,"",null,null,{"$f":"IF(COUNTIF($E$54:E207,E101)>1,\"重複\",\"\")","v":""}]
[49,0.42505351171958528,145,null,102,null,null,"",null,null,{"$f":"IF(COUNTIF($E$54:E208,E102)>1,\"重複\",\"\")","v":""}]
[50,0.95240391846162198,92,null,181,null,null,"",null,null,{"$f":"IF(COUNTIF($E$54:E209,E103)>1,\"重複\",\"\")","v":""}]
[51,0.82840649613559925,102,null,128,null,null,"",null,null,{"$f":"IF(COUNTIF($E$54:E210,E104)>1,\"重複\",\"\")","v":""}]
[52,0.45928378831557781,143,null,129,null,null,"",null,null,{"$f":"IF(COUNTIF($E$54:E211,E105)>1,\"重複\",\"\")","v":""}]
[53,0.54619912332407339,134,null,177,null,null,"",null,null,{"$f":"IF(COUNTIF($E$54:E212,E106)>1,\"重複\",\"\")","v":""}]
[54,0.87428105529781897,96,null,90,null,null,"",null,null,{"$f":"IF(COUNTIF($E$54:E213,E107)>1,\"重複\",\"\")","v":""}]
[55,0.15089597524626319,172,null,157,null,null,"",null,null,{"$f":"IF(COUNTIF($E$54:E214,E108)>1,\"重複\",\"\")","v":""}]
[56,0.82679206191736054,103,null,144,null,null,"",null,null,{"$f":"IF(COUNTIF($E$54:E215,E109)>1,\"重複\",\"\")","v":""}]
[57,0.52659236562587131,138,null,170,null,null,"",null,null,{"$f":"IF(COUNTIF($E$54:E216,E110)>1,\"重複\",\"\")","v":""}]
[58,0.74255358143020933,112,null,156,null,null,"",null,null,{"$f":"IF(COUNTIF($E$54:E217,E111)>1,\"重複\",\"\")","v":""}]
[59,0.62711749680800655,123,null,147,null,null,"",null,null,{"$f":"IF(COUNTIF($E$54:E218,E112)>1,\"重複\",\"\")","v":""}]
[60,0.5425238793865701,136,null,168,null,null,"",null,null,{"$f":"IF(COUNTIF($E$54:E219,E113)>1,\"重複\",\"\")","v":"重複"}]
[61,0.6341240302436747,121,null,178,null,null,"",null,null,{"$f":"IF(COUNTIF($E$54:E220,E114)>1,\"重複\",\"\")","v":""}]
[62,0.21695417608957335,161,null,174,null,null,"",null,null,{"$f":"IF(COUNTIF($E$54:E221,E115)>1,\"重複\",\"\")","v":""}]
[63,0.24923309207579736,158,null,149,null,null,"",null,null,{"$f":"IF(COUNTIF($E$54:E222,E116)>1,\"重複\",\"\")","v":""}]
[64,0.61240217430822552,125,null,105,null,null,"",null,null,{"$f":"IF(COUNTIF($E$54:E223,E117)>1,\"重複\",\"\")","v":""}]
[65,{"$f":"RAND()","v":0.59259939986832244},131,null,142,null,null,"",null,null,{"$f":"IF(COUNTIF($E$54:E224,E118)>1,\"重複\",\"\")","v":""}]
[66,0.31875900083604281,{"$f":"RANK(B119,$B$54:$B$160)+$C$45-1","v":153},null,126,null,null,{"$f":"IF(AND(E119>=$C$45,E119<=$C$46),\"\",\"範囲エラー\")","v":""},null,null,{"$f":"IF(COUNTIF($E$54:E225,E119)>1,\"重複\",\"\")","v":""}]
[67,0.38586940704362716,150,null,108,null,null,"",null,null,{"$f":"IF(COUNTIF($E$54:E226,E120)>1,\"重複\",\"\")","v":""}]
[68,0.86566769941265875,99,null,173,null,null,"",null,null,{"$f":"IF(COUNTIF($E$54:E227,E121)>1,\"重複\",\"\")","v":""}]
[69,5.6791843325539437E-2,181,null,158,null,null,"",null,null,{"$f":"IF(COUNTIF($E$54:E228,E122)>1,\"重複\",\"\")","v":""}]
[70,0.19163634606756452,164,null,176,null,null,"",null,null,{"$f":"IF(COUNTIF($E$54:E229,E123)>1,\"重複\",\"\")","v":""}]
[71,0.57362551517336002,133,null,109,null,null,"",null,null,{"$f":"IF(COUNTIF($E$54:E230,E124)>1,\"重複\",\"\")","v":""}]
[72,0.59554641863589119,129,null,100,null,null,"",null,null,{"$f":"IF(COUNTIF($E$54:E231,E125)>1,\"重複\",\"\")","v":""}]
[73,0.1282369147023914,176,null,121,null,null,"",null,null,{"$f":"IF(COUNTIF($E$54:E232,E126)>1,\"重複\",\"\")","v":""}]
[74,0.59246138335400866,132,null,103,null,null,"",null,null,{"$f":"IF(COUNTIF($E$54:E233,E127)>1,\"重複\",\"\")","v":""}]
[75,5.6821798193800177E-3,186,null,165,null,null,"",null,null,{"$f":"IF(COUNTIF($E$54:E234,E128)>1,\"重複\",\"\")","v":""}]
[76,0.42214341086647811,146,null,106,null,null,"",null,null,{"$f":"IF(COUNTIF($E$54:E235,E129)>1,\"重複\",\"\")","v":""}]
[77,0.60560248042564424,126,null,166,null,null,"",null,null,{"$f":"IF(COUNTIF($E$54:E236,E130)>1,\"重複\",\"\")","v":""}]
[78,0.68016663384112852,116,null,104,null,null,"",null,null,{"$f":"IF(COUNTIF($E$54:E237,E131)>1,\"重複\",\"\")","v":""}]
[79,5.5761711869762309E-2,182,null,143,null,null,"",null,null,{"$f":"IF(COUNTIF($E$54:E238,E132)>1,\"重複\",\"\")","v":""}]
[80,0.38137622945353988,151,null,175,null,null,"",null,null,{"$f":"IF(COUNTIF($E$54:E239,E133)>1,\"重複\",\"\")","v":""}]
[81,0.38952780777640239,149,null,171,null,null,"",null,null,{"$f":"IF(COUNTIF($E$54:E240,E134)>1,\"重複\",\"\")","v":""}]
[82,0.6007785559254355,127,null,150,null,null,"",null,null,{"$f":"IF(COUNTIF($E$54:E241,E135)>1,\"重複\",\"\")","v":""}]
[83,0.31190577553134313,154,null,91,null,null,"",null,null,{"$f":"IF(COUNTIF($E$54:E242,E136)>1,\"重複\",\"\")","v":""}]
[84,0.21256903863154875,162,null,118,null,null,"",null,null,{"$f":"IF(COUNTIF($E$54:E243,E137)>1,\"重複\",\"\")","v":""}]
[85,2.5146112111270602E-3,187,null,179,null,null,"",null,null,{"$f":"IF(COUNTIF($E$54:E244,E138)>1,\"重複\",\"\")","v":""}]
[86,0.82198977407312979,106,null,167,null,null,"",null,null,{"$f":"IF(COUNTIF($E$54:E245,E139)>1,\"重複\",\"\")","v":""}]
[87,6.2359873580221881E-2,179,null,139,null,null,"",null,null,{"$f":"IF(COUNTIF($E$54:E246,E140)>1,\"重複\",\"\")","v":""}]
[88,0.80140131919577617,107,null,136,null,null,"",null,null,{"$f":"IF(COUNTIF($E$54:E247,E141)>1,\"重複\",\"\")","v":""}]
[89,0.8722717561336043,98,null,117,null,null,"",null,null,{"$f":"IF(COUNTIF($E$54:E248,E142)>1,\"重複\",\"\")","v":""}]
[90,0.89843036487174566,94,null,163,null,null,"",null,null,{"$f":"IF(COUNTIF($E$54:E249,E143)>1,\"重複\",\"\")","v":""}]
[91,0.19710212311010344,163,null,155,null,null,"",null,null,{"$f":"IF(COUNTIF($E$54:E250,E144)>1,\"重複\",\"\")","v":""}]
[92,0.6361346458987005,120,null,133,null,null,"",null,null,{"$f":"IF(COUNTIF($E$54:E251,E145)>1,\"重複\",\"\")","v":""}]
[93,0.40410241215550857,148,null,132,null,null,"",null,null,{"$f":"IF(COUNTIF($E$54:E252,E146)>1,\"重複\",\"\")","v":""}]
[94,0.92976377157794599,93,null,180,null,null,"",null,null,{"$f":"IF(COUNTIF($E$54:E253,E147)>1,\"重複\",\"\")","v":""}]
[95,4.1003712532788006E-2,184,null,148,null,null,"",null,null,{"$f":"IF(COUNTIF($E$54:E254,E148)>1,\"重複\",\"\")","v":""}]
[96,0.40967245854315359,147,96,101,null,null,"",null,null,{"$f":"IF(COUNTIF($E$54:E255,E149)>1,\"重複\",\"\")","v":""}]
[97,0.54556760603279464,{"$f":"RANK(B150,$B$54:$B$160)+$C$45-1","v":135},97,161,null,null,"",null,null,{"$f":"IF(COUNTIF($E$54:E256,E150)>1,\"重複\",\"\")","v":""}]
[98,8.0035051462410411E-3,185,98,182,null,null,"",null,null,{"$f":"IF(COUNTIF($E$54:E257,E151)>1,\"重複\",\"\")","v":""}]
[null,null,null,99,168,null,null,"",null,null,{"$f":"IF(COUNTIF($E$54:E258,E152)>1,\"重複\",\"\")","v":"重複"}]
[null,null,null,100,127,null,null,"",null,null,{"$f":"IF(COUNTIF($E$54:E259,E153)>1,\"重複\",\"\")","v":"重複"}]

{"sheet":"問題作成_説明中心_3","index":2,"n_rows":123,"n_cols":14,"rows_kept":123,"cut":false,"hidden":false,"merged":[[36,1,36,8],[41,1,41,8],[42,1,42,8],[39,1,39,8],[40,1,40,8],[37,1,37,8],[38,1,38,8],[0,1,0,10],[1,1,1,10],[33,1,33,8],[34,1,34,8],[35,1,35,8]]}
[null,"ITパスポート試験　用語確認問題"]
[null,"　　　年　　　組　　　席　名前"]
[]
[225,{"$f":"IF(ISERROR(VLOOKUP(A4,用語表!$C$3:$E$310,3,0)),\"\",VLOOKUP(A4,用語表!$C$3:$E$310,3,0))","v":"共通鍵暗号方式"},null,{"$f":"A31+1","v":253},{"$f":"IF(ISERROR(VLOOKUP(D4,用語表!$C$3:$E$310,3,0)),\"\",VLOOKUP(D4,用語表!$C$3:$E$310,3,0))","v":"ＰＤＣＡサイクル"},null,{"$f":"D31+1","v":281},{"$f":"IF(ISERROR(VLOOKUP(G4,用語表!$C$3:$E$602,3,0)),\"\",VLOOKUP(G4,用語表!$C$3:$E$602,3,0))","v":"リードタイム"},null,{"$f":"G31+1","v":309},{"$f":"IF(ISERROR(VLOOKUP(J4,用語表!$C$3:$E$602,3,0)),\"\",VLOOKUP(J4,用語表!$C$3:$E$602,3,0))","v":"実用新案権"}]
[{"$f":"A4+1","v":226},{"$f":"IF(ISERROR(VLOOKUP(A5,用語表!$C$3:$E$310,3,0)),\"\",VLOOKUP(A5,用語表!$C$3:$E$310,3,0))","v":"公開鍵暗号方式"},null,{"$f":"D4+1","v":254},{"$f":"IF(ISERROR(VLOOKUP(D5,用語表!$C$3:$E$310,3,0)),\"\",VLOOKUP(D5,用語表!$C$3:$E$310,3,0))","v":"プロジェクト制組織"},null,{"$f":"G4+1","v":282},{"$f":"IF(ISERROR(VLOOKUP(G5,用語表!$C$3:$E$602,3,0)),\"\",VLOOKUP(G5,用語表!$C$3:$E$602,3,0))","v":"回帰分析"},null,{"$f":"J4+1","v":310},{"$f":"IF(ISERROR(VLOOKUP(J5,用語表!$C$3:$E$602,3,0)),\"\",VLOOKUP(J5,用語表!$C$3:$E$602,3,0))","v":"意匠権"}]
[227,{"$f":"IF(ISERROR(VLOOKUP(A6,用語表!$C$3:$E$310,3,0)),\"\",VLOOKUP(A6,用語表!$C$3:$E$310,3,0))","v":"SSL"},null,255,{"$f":"IF(ISERROR(VLOOKUP(D6,用語表!$C$3:$E$310,3,0)),\"\",VLOOKUP(D6,用語表!$C$3:$E$310,3,0))","v":"マトリックス組織"},null,283,{"$f":"IF(ISERROR(VLOOKUP(G6,用語表!$C$3:$E$602,3,0)),\"\",VLOOKUP(G6,用語表!$C$3:$E$602,3,0))","v":"損益計算書"},null,{"$f":"J5+1","v":311},{"$f":"IF(ISERROR(VLOOKUP(J6,用語表!$C$3:$E$602,3,0)),\"\",VLOOKUP(J6,用語表!$C$3:$E$602,3,0))","v":"商標権"}]
[228,{"$f":"IF(ISERROR(VLOOKUP(A7,用語表!$C$3:$E$310,3,0)),\"\",VLOOKUP(A7,用語表!$C$3:$E$310,3,0))","v":"シングルサインオン"},null,256,{"$f":"IF(ISERROR(VLOOKUP(D7,用語表!$C$3:$E$310,3,0)),\"\",VLOOKUP(D7,用語表!$C$3:$E$310,3,0))","v":"持株会社(ホールディングカンパニー)"},null,284,{"$f":"IF(ISERROR(VLOOKUP(G7,用語表!$C$3:$E$602,3,0)),\"\",VLOOKUP(G7,用語表!$C$3:$E$602,3,0))","v":"貸借対照表"},null,312,{"$f":"IF(ISERROR(VLOOKUP(J7,用語表!$C$3:$E$602,3,0)),\"\",VLOOKUP(J7,用語表!$C$3:$E$602,3,0))","v":"クロスライセンス"}]
[229,{"$f":"IF(ISERROR(VLOOKUP(A8,用語表!$C$3:$E$310,3,0)),\"\",VLOOKUP(A8,用語表!$C$3:$E$310,3,0))","v":"ワンタイムパスワード"},null,257,{"$f":"IF(ISERROR(VLOOKUP(D8,用語表!$C$3:$E$310,3,0)),\"\",VLOOKUP(D8,用語表!$C$3:$E$310,3,0))","v":"QCサークル"},null,285,{"$f":"IF(ISERROR(VLOOKUP(G8,用語表!$C$3:$E$602,3,0)),\"\",VLOOKUP(G8,用語表!$C$3:$E$602,3,0))","v":"資本回転率"},null,313,{"$f":"IF(ISERROR(VLOOKUP(J8,用語表!$C$3:$E$602,3,0)),\"\",VLOOKUP(J8,用語表!$C$3:$E$602,3,0))","v":"不正競争防止法"}]
[230,{"$f":"IF(ISERROR(VLOOKUP(A9,用語表!$C$3:$E$310,3,0)),\"\",VLOOKUP(A9,用語表!$C$3:$E$310,3,0))","v":"TKIP"},null,258,{"$f":"IF(ISERROR(VLOOKUP(D9,用語表!$C$3:$E$310,3,0)),\"\",VLOOKUP(D9,用語表!$C$3:$E$310,3,0))","v":"TQC"},null,286,{"$f":"IF(ISERROR(VLOOKUP(G9,用語表!$C$3:$E$602,3,0)),\"\",VLOOKUP(G9,用語表!$C$3:$E$602,3,0))","v":"流動比率"},null,314,{"$f":"IF(ISERROR(VLOOKUP(J9,用語表!$C$3:$E$602,3,0)),\"\",VLOOKUP(J9,用語表!$C$3:$E$602,3,0))","v":"不正アクセス禁止法"}]
[231,{"$f":"IF(ISERROR(VLOOKUP(A10,用語表!$C$3:$E$310,3,0)),\"\",VLOOKUP(A10,用語表!$C$3:$E$310,3,0))","v":"タイムスタンプ"},null,259,{"$f":"IF(ISERROR(VLOOKUP(D10,用語表!$C$3:$E$310,3,0)),\"\",VLOOKUP(D10,用語表!$C$3:$E$310,3,0))","v":"Ｘバー管理図"},null,287,{"$f":"IF(ISERROR(VLOOKUP(G10,用語表!$C$3:$E$602,3,0)),\"\",VLOOKUP(G10,用語表!$C$3:$E$602,3,0))","v":"キャッシュフロー計算書"},null,315,{"$f":"IF(ISERROR(VLOOKUP(J10,用語表!$C$3:$E$602,3,0)),\"\",VLOOKUP(J10,用語表!$C$3:$E$602,3,0))","v":"個人情報保護法"}]
[232,{"$f":"IF(ISERROR(VLOOKUP(A11,用語表!$C$3:$E$310,3,0)),\"\",VLOOKUP(A11,用語表!$C$3:$E$310,3,0))","v":"HTTPS"},null,260,{"$f":"IF(ISERROR(VLOOKUP(D11,用語表!$C$3:$E$310,3,0)),\"\",VLOOKUP(D11,用語表!$C$3:$E$310,3,0))","v":"管理図"},null,288,{"$f":"IF(ISERROR(VLOOKUP(G11,用語表!$C$3:$E$602,3,0)),\"\",VLOOKUP(G11,用語表!$C$3:$E$602,3,0))","v":"損益分岐点"},null,316,{"$f":"IF(ISERROR(VLOOKUP(J11,用語表!$C$3:$E$602,3,0)),\"\",VLOOKUP(J11,用語表!$C$3:$E$602,3,0))","v":"労働基準法"}]
[233,{"$f":"IF(ISERROR(VLOOKUP(A12,用語表!$C$3:$E$310,3,0)),\"\",VLOOKUP(A12,用語表!$C$3:$E$310,3,0))","v":"フィルタリング"},null,261,{"$f":"IF(ISERROR(VLOOKUP(D12,用語表!$C$3:$E$310,3,0)),\"\",VLOOKUP(D12,用語表!$C$3:$E$310,3,0))","v":"散布図"},null,289,{"$f":"IF(ISERROR(VLOOKUP(G12,用語表!$C$3:$E$602,3,0)),\"\",VLOOKUP(G12,用語表!$C$3:$E$602,3,0))","v":"有価証券報告書"},null,317,{"$f":"IF(ISERROR(VLOOKUP(J12,用語表!$C$3:$E$602,3,0)),\"\",VLOOKUP(J12,用語表!$C$3:$E$602,3,0))","v":"労働者派遣法"}]
[234,{"$f":"IF(ISERROR(VLOOKUP(A13,用語表!$C$3:$E$310,3,0)),\"\",VLOOKUP(A13,用語表!$C$3:$E$310,3,0))","v":"ログファイル"},null,262,{"$f":"IF(ISERROR(VLOOKUP(D13,用語表!$C$3:$E$310,3,0)),\"\",VLOOKUP(D13,用語表!$C$3:$E$310,3,0))","v":"Ｚグラフ"},null,290,{"$f":"IF(ISERROR(VLOOKUP(G13,用語表!$C$3:$E$602,3,0)),\"\",VLOOKUP(G13,用語表!$C$3:$E$602,3,0))","v":"直接原価計算"},null,318,{"$f":"IF(ISERROR(VLOOKUP(J13,用語表!$C$3:$E$602,3,0)),\"\",VLOOKUP(J13,用語表!$C$3:$E$602,3,0))","v":"請負契約"}]
[235,{"$f":"IF(ISERROR(VLOOKUP(A14,用語表!$C$3:$E$310,3,0)),\"\",VLOOKUP(A14,用語表!$C$3:$E$310,3,0))","v":"経営理念"},null,263,{"$f":"IF(ISERROR(VLOOKUP(D14,用語表!$C$3:$E$310,3,0)),\"\",VLOOKUP(D14,用語表!$C$3:$E$310,3,0))","v":"パレート図"},null,291,{"$f":"IF(ISERROR(VLOOKUP(G14,用語表!$C$3:$E$602,3,0)),\"\",VLOOKUP(G14,用語表!$C$3:$E$602,3,0))","v":"変動費率"},null,319,{"$f":"IF(ISERROR(VLOOKUP(J14,用語表!$C$3:$E$602,3,0)),\"\",VLOOKUP(J14,用語表!$C$3:$E$602,3,0))","v":"下請法"}]
[236,{"$f":"IF(ISERROR(VLOOKUP(A15,用語表!$C$3:$E$310,3,0)),\"\",VLOOKUP(A15,用語表!$C$3:$E$310,3,0))","v":"経営資源"},null,264,{"$f":"IF(ISERROR(VLOOKUP(D15,用語表!$C$3:$E$310,3,0)),\"\",VLOOKUP(D15,用語表!$C$3:$E$310,3,0))","v":"マトリックス図法"},null,292,{"$f":"IF(ISERROR(VLOOKUP(G15,用語表!$C$3:$E$602,3,0)),\"\",VLOOKUP(G15,用語表!$C$3:$E$602,3,0))","v":"売上高営業利益率"},null,320,{"$f":"IF(ISERROR(VLOOKUP(J15,用語表!$C$3:$E$602,3,0)),\"\",VLOOKUP(J15,用語表!$C$3:$E$602,3,0))","v":"製造物責任法(PL法)"}]
[237,{"$f":"IF(ISERROR(VLOOKUP(A16,用語表!$C$3:$E$310,3,0)),\"\",VLOOKUP(A16,用語表!$C$3:$E$310,3,0))","v":"ＣＩＯ"},null,265,{"$f":"IF(ISERROR(VLOOKUP(D16,用語表!$C$3:$E$310,3,0)),\"\",VLOOKUP(D16,用語表!$C$3:$E$310,3,0))","v":"レーダチャート"},null,293,{"$f":"IF(ISERROR(VLOOKUP(G16,用語表!$C$3:$E$602,3,0)),\"\",VLOOKUP(G16,用語表!$C$3:$E$602,3,0))","v":"ROE（自己資本利益率）"},null,321,{"$f":"IF(ISERROR(VLOOKUP(J16,用語表!$C$3:$E$602,3,0)),\"\",VLOOKUP(J16,用語表!$C$3:$E$602,3,0))","v":"プロバイダ責任制限法"}]
[238,{"$f":"IF(ISERROR(VLOOKUP(A17,用語表!$C$3:$E$310,3,0)),\"\",VLOOKUP(A17,用語表!$C$3:$E$310,3,0))","v":"CHO"},null,266,{"$f":"IF(ISERROR(VLOOKUP(D17,用語表!$C$3:$E$310,3,0)),\"\",VLOOKUP(D17,用語表!$C$3:$E$310,3,0))","v":"オペレーティングリサーチ(OR)"},null,294,{"$f":"IF(ISERROR(VLOOKUP(G17,用語表!$C$3:$E$602,3,0)),\"\",VLOOKUP(G17,用語表!$C$3:$E$602,3,0))","v":"EVA(経済付加価値)"},null,322,{"$f":"IF(ISERROR(VLOOKUP(J17,用語表!$C$3:$E$602,3,0)),\"\",VLOOKUP(J17,用語表!$C$3:$E$602,3,0))","v":"会社法"}]
[239,{"$f":"IF(ISERROR(VLOOKUP(A18,用語表!$C$3:$E$310,3,0)),\"\",VLOOKUP(A18,用語表!$C$3:$E$310,3,0))","v":"CFO"},null,267,{"$f":"IF(ISERROR(VLOOKUP(D18,用語表!$C$3:$E$310,3,0)),\"\",VLOOKUP(D18,用語表!$C$3:$E$310,3,0))","v":"マトリックスデータ解析法"},null,295,{"$f":"IF(ISERROR(VLOOKUP(G18,用語表!$C$3:$E$602,3,0)),\"\",VLOOKUP(G18,用語表!$C$3:$E$602,3,0))","v":"PER(株価収益率)"},null,323,{"$f":"IF(ISERROR(VLOOKUP(J18,用語表!$C$3:$E$602,3,0)),\"\",VLOOKUP(J18,用語表!$C$3:$E$602,3,0))","v":"コーポレートガバナンス"}]
[240,{"$f":"IF(ISERROR(VLOOKUP(A19,用語表!$C$3:$E$310,3,0)),\"\",VLOOKUP(A19,用語表!$C$3:$E$310,3,0))","v":"COO"},null,268,{"$f":"IF(ISERROR(VLOOKUP(D19,用語表!$C$3:$E$310,3,0)),\"\",VLOOKUP(D19,用語表!$C$3:$E$310,3,0))","v":"ヒストグラム"},null,296,{"$f":"IF(ISERROR(VLOOKUP(G19,用語表!$C$3:$E$602,3,0)),\"\",VLOOKUP(G19,用語表!$C$3:$E$602,3,0))","v":"ROA(総資産利益率)"},null,324,{"$f":"IF(ISERROR(VLOOKUP(J19,用語表!$C$3:$E$602,3,0)),\"\",VLOOKUP(J19,用語表!$C$3:$E$602,3,0))","v":"コンプライアンス"}]
[241,{"$f":"IF(ISERROR(VLOOKUP(A20,用語表!$C$3:$E$310,3,0)),\"\",VLOOKUP(A20,用語表!$C$3:$E$310,3,0))","v":"CEO"},null,269,{"$f":"IF(ISERROR(VLOOKUP(D20,用語表!$C$3:$E$310,3,0)),\"\",VLOOKUP(D20,用語表!$C$3:$E$310,3,0))","v":"現状分析"},null,297,{"$f":"IF(ISERROR(VLOOKUP(G20,用語表!$C$3:$E$602,3,0)),\"\",VLOOKUP(G20,用語表!$C$3:$E$602,3,0))","v":"先入れ先出し法"},null,325,{"$f":"IF(ISERROR(VLOOKUP(J20,用語表!$C$3:$E$602,3,0)),\"\",VLOOKUP(J20,用語表!$C$3:$E$602,3,0))","v":"アカウンタビリティ"}]
[242,{"$f":"IF(ISERROR(VLOOKUP(A21,用語表!$C$3:$E$310,3,0)),\"\",VLOOKUP(A21,用語表!$C$3:$E$310,3,0))","v":"ＣＳＲ"},null,270,{"$f":"IF(ISERROR(VLOOKUP(D21,用語表!$C$3:$E$310,3,0)),\"\",VLOOKUP(D21,用語表!$C$3:$E$310,3,0))","v":"ブレーンストーミング"},null,298,{"$f":"IF(ISERROR(VLOOKUP(G21,用語表!$C$3:$E$602,3,0)),\"\",VLOOKUP(G21,用語表!$C$3:$E$602,3,0))","v":"移動平均法"},null,326,{"$f":"IF(ISERROR(VLOOKUP(J21,用語表!$C$3:$E$602,3,0)),\"\",VLOOKUP(J21,用語表!$C$3:$E$602,3,0))","v":"チェーンメール"}]
[243,{"$f":"IF(ISERROR(VLOOKUP(A22,用語表!$C$3:$E$310,3,0)),\"\",VLOOKUP(A22,用語表!$C$3:$E$310,3,0))","v":"ディスクロージャー"},null,271,{"$f":"IF(ISERROR(VLOOKUP(D22,用語表!$C$3:$E$310,3,0)),\"\",VLOOKUP(D22,用語表!$C$3:$E$310,3,0))","v":"KJ法"},null,299,{"$f":"IF(ISERROR(VLOOKUP(G22,用語表!$C$3:$E$602,3,0)),\"\",VLOOKUP(G22,用語表!$C$3:$E$602,3,0))","v":"定額法"},null,327,{"$f":"IF(ISERROR(VLOOKUP(J22,用語表!$C$3:$E$602,3,0)),\"\",VLOOKUP(J22,用語表!$C$3:$E$602,3,0))","v":"スパムメール"}]
[244,{"$f":"IF(ISERROR(VLOOKUP(A23,用語表!$C$3:$E$310,3,0)),\"\",VLOOKUP(A23,用語表!$C$3:$E$310,3,0))","v":"OJT"},null,272,{"$f":"IF(ISERROR(VLOOKUP(D23,用語表!$C$3:$E$310,3,0)),\"\",VLOOKUP(D23,用語表!$C$3:$E$310,3,0))","v":"決定表（デシジョンテーブル）"},null,300,{"$f":"IF(ISERROR(VLOOKUP(G23,用語表!$C$3:$E$602,3,0)),\"\",VLOOKUP(G23,用語表!$C$3:$E$602,3,0))","v":"定率法"},null,328,{"$f":"IF(ISERROR(VLOOKUP(J23,用語表!$C$3:$E$602,3,0)),\"\",VLOOKUP(J23,用語表!$C$3:$E$602,3,0))","v":"ＩＳＯ"}]
[245,{"$f":"IF(ISERROR(VLOOKUP(A24,用語表!$C$3:$E$310,3,0)),\"\",VLOOKUP(A24,用語表!$C$3:$E$310,3,0))","v":"ＩＲ"},null,273,{"$f":"IF(ISERROR(VLOOKUP(D24,用語表!$C$3:$E$310,3,0)),\"\",VLOOKUP(D24,用語表!$C$3:$E$310,3,0))","v":"DFD"},null,301,{"$f":"IF(ISERROR(VLOOKUP(G24,用語表!$C$3:$E$602,3,0)),\"\",VLOOKUP(G24,用語表!$C$3:$E$602,3,0))","v":"知的財産権"},null,329,{"$f":"IF(ISERROR(VLOOKUP(J24,用語表!$C$3:$E$602,3,0)),\"\",VLOOKUP(J24,用語表!$C$3:$E$602,3,0))","v":"ＩＳＯ／ＩＥＣ　１５４０８"}]
[246,{"$f":"IF(ISERROR(VLOOKUP(A25,用語表!$C$3:$E$310,3,0)),\"\",VLOOKUP(A25,用語表!$C$3:$E$310,3,0))","v":"グリーンIT"},null,274,{"$f":"IF(ISERROR(VLOOKUP(D25,用語表!$C$3:$E$310,3,0)),\"\",VLOOKUP(D25,用語表!$C$3:$E$310,3,0))","v":"パート図"},null,302,{"$f":"IF(ISERROR(VLOOKUP(G25,用語表!$C$3:$E$602,3,0)),\"\",VLOOKUP(G25,用語表!$C$3:$E$602,3,0))","v":"著作権"},null,330,{"$f":"IF(ISERROR(VLOOKUP(J25,用語表!$C$3:$E$602,3,0)),\"\",VLOOKUP(J25,用語表!$C$3:$E$602,3,0))","v":"ＱＲコード"}]
[247,{"$f":"IF(ISERROR(VLOOKUP(A26,用語表!$C$3:$E$310,3,0)),\"\",VLOOKUP(A26,用語表!$C$3:$E$310,3,0))","v":"階層別組織"},null,275,{"$f":"IF(ISERROR(VLOOKUP(D26,用語表!$C$3:$E$310,3,0)),\"\",VLOOKUP(D26,用語表!$C$3:$E$310,3,0))","v":"クリティカルパス"},null,303,{"$f":"IF(ISERROR(VLOOKUP(G26,用語表!$C$3:$E$602,3,0)),\"\",VLOOKUP(G26,用語表!$C$3:$E$602,3,0))","v":"著作隣接権"},null,331,{"$f":"IF(ISERROR(VLOOKUP(J26,用語表!$C$3:$E$602,3,0)),\"\",VLOOKUP(J26,用語表!$C$3:$E$602,3,0))","v":"ＩＥＣ"}]
[248,{"$f":"IF(ISERROR(VLOOKUP(A27,用語表!$C$3:$E$310,3,0)),\"\",VLOOKUP(A27,用語表!$C$3:$E$310,3,0))","v":"株主総会"},null,276,{"$f":"IF(ISERROR(VLOOKUP(D27,用語表!$C$3:$E$310,3,0)),\"\",VLOOKUP(D27,用語表!$C$3:$E$310,3,0))","v":"ABC分析"},null,304,{"$f":"IF(ISERROR(VLOOKUP(G27,用語表!$C$3:$E$602,3,0)),\"\",VLOOKUP(G27,用語表!$C$3:$E$602,3,0))","v":"ソフトウェアライセンス"},null,332,{"$f":"IF(ISERROR(VLOOKUP(J27,用語表!$C$3:$E$602,3,0)),\"\",VLOOKUP(J27,用語表!$C$3:$E$602,3,0))","v":"ＩＥＥＥ"}]
[249,{"$f":"IF(ISERROR(VLOOKUP(A28,用語表!$C$3:$E$310,3,0)),\"\",VLOOKUP(A28,用語表!$C$3:$E$310,3,0))","v":"カンパニー制組織"},null,277,{"$f":"IF(ISERROR(VLOOKUP(D28,用語表!$C$3:$E$310,3,0)),\"\",VLOOKUP(D28,用語表!$C$3:$E$310,3,0))","v":"正の相関"},null,305,{"$f":"IF(ISERROR(VLOOKUP(G28,用語表!$C$3:$E$602,3,0)),\"\",VLOOKUP(G28,用語表!$C$3:$E$602,3,0))","v":"ボリュームライセンス契約"},null,333,{"$f":"IF(ISERROR(VLOOKUP(J28,用語表!$C$3:$E$602,3,0)),\"\",VLOOKUP(J28,用語表!$C$3:$E$602,3,0))","v":"ＡＮＳＩ"}]
[250,{"$f":"IF(ISERROR(VLOOKUP(A29,用語表!$C$3:$E$310,3,0)),\"\",VLOOKUP(A29,用語表!$C$3:$E$310,3,0))","v":"事業部制組織"},null,278,{"$f":"IF(ISERROR(VLOOKUP(D29,用語表!$C$3:$E$310,3,0)),\"\",VLOOKUP(D29,用語表!$C$3:$E$310,3,0))","v":"負の相関"},null,306,{"$f":"IF(ISERROR(VLOOKUP(G29,用語表!$C$3:$E$602,3,0)),\"\",VLOOKUP(G29,用語表!$C$3:$E$602,3,0))","v":"シェアウェア"},null,334,{"$f":"IF(ISERROR(VLOOKUP(J29,用語表!$C$3:$E$602,3,0)),\"\",VLOOKUP(J29,用語表!$C$3:$E$602,3,0))","v":"ＪＩＳ"}]
[251,{"$f":"IF(ISERROR(VLOOKUP(A30,用語表!$C$3:$E$310,3,0)),\"\",VLOOKUP(A30,用語表!$C$3:$E$310,3,0))","v":"社内ベンチャー組織"},null,279,{"$f":"IF(ISERROR(VLOOKUP(D30,用語表!$C$3:$E$310,3,0)),\"\",VLOOKUP(D30,用語表!$C$3:$E$310,3,0))","v":"特性要因図"},null,307,{"$f":"IF(ISERROR(VLOOKUP(G30,用語表!$C$3:$E$602,3,0)),\"\",VLOOKUP(G30,用語表!$C$3:$E$602,3,0))","v":"産業財産権"},null,335,{"$f":"IF(ISERROR(VLOOKUP(J30,用語表!$C$3:$E$602,3,0)),\"\",VLOOKUP(J30,用語表!$C$3:$E$602,3,0))","v":"企業理念"}]
[252,{"$f":"IF(ISERROR(VLOOKUP(A31,用語表!$C$3:$E$310,3,0)),\"\",VLOOKUP(A31,用語表!$C$3:$E$310,3,0))","v":"職能別組織"},null,280,{"$f":"IF(ISERROR(VLOOKUP(D31,用語表!$C$3:$E$310,3,0)),\"\",VLOOKUP(D31,用語表!$C$3:$E$310,3,0))","v":"在庫引当"},null,308,{"$f":"IF(ISERROR(VLOOKUP(G31,用語表!$C$3:$E$602,3,0)),\"\",VLOOKUP(G31,用語表!$C$3:$E$602,3,0))","v":"特許権"},null,null,{"$f":"IF(ISERROR(VLOOKUP(J31,用語表!$C$3:$E$602,3,0)),\"\",VLOOKUP(J31,用語表!$C$3:$E$602,3,0))","v":""}]
[]
[null,{"$f":"\"出題範囲=\"&C45&\":\"&C46","v":"出題範囲=235:300"},null,null,{"$f":"\"印刷範囲=\"&C49&\":\"&C50","v":"印刷範囲=61:70"},null,null,null,null,7]
[1,{"$f":"IF(ISERROR(VLOOKUP(J34,用語表!$C$3:$E$513,2)),\"\",VLOOKUP(J34,用語表!$C$3:$E$513,2))","v":"売上高や生産高の変化に応じて、原価がどのように変化するのかいという原価計算の方法。費用を固定費と変動費に分けて管理する。"},null,null,null,null,null,null,null,290,null,null,{"$f":"J34","v":290},{"$f":"IF(ISERROR(VLOOKUP(J34,用語表!$C$3:$E$513,3,0)),\"\",VLOOKUP(J34,用語表!$C$3:$E$513,3,0)&\"  \"&VLOOKUP(J34,用語表!$C$3:$F$513,4,0))","v":"直接原価計算  "}]
[2,{"$f":"IF(ISERROR(VLOOKUP(J35,用語表!$C$3:$E$513,2)),\"\",VLOOKUP(J35,用語表!$C$3:$E$513,2))","v":"ある時点での企業の財務状態を表す。資産、負債、純資産で構成され、資産＝負債＋純資産となる。バランスシート（Balance Sheet,B/S）ともいう。"},null,null,null,null,null,null,null,284,null,null,284,{"$f":"IF(ISERROR(VLOOKUP(J35,用語表!$C$3:$E$513,3,0)),\"\",VLOOKUP(J35,用語表!$C$3:$E$513,3,0)&\"  \"&VLOOKUP(J35,用語表!$C$3:$F$513,4,0))","v":"貸借対照表  "}]
[3,{"$f":"IF(ISERROR(VLOOKUP(J36,用語表!$C$3:$E$513,2)),\"\",VLOOKUP(J36,用語表!$C$3:$E$513,2))","v":"件数の多い順に並べた棒グラフと、累計を表す折れ線グラフを組み合わせたグラフ。重点項目を調べるABC分析によく使われる。"},null,null,null,null,null,null,null,263,null,null,263,{"$f":"IF(ISERROR(VLOOKUP(J36,用語表!$C$3:$E$513,3,0)),\"\",VLOOKUP(J36,用語表!$C$3:$E$513,3,0)&\"  \"&VLOOKUP(J36,用語表!$C$3:$F$513,4,0))","v":"パレート図  "}]
[4,{"$f":"IF(ISERROR(VLOOKUP(J37,用語表!$C$3:$E$513,2)),\"\",VLOOKUP(J37,用語表!$C$3:$E$513,2))","v":"組織全体を職種ごとに生産や販売を担当するライン部門と経理など専門化された職種を担当するスタック部門に分けて組織化するもの。一般的な会社の組織。"},null,null,null,null,null,null,null,252,null,null,252,{"$f":"IF(ISERROR(VLOOKUP(J37,用語表!$C$3:$E$513,3,0)),\"\",VLOOKUP(J37,用語表!$C$3:$E$513,3,0)&\"  \"&VLOOKUP(J37,用語表!$C$3:$F$513,4,0))","v":"職能別組織  "}]
[5,{"$f":"IF(ISERROR(VLOOKUP(J38,用語表!$C$3:$E$513,2)),\"\",VLOOKUP(J38,用語表!$C$3:$E$513,2))","v":"投資家向け広報活動。\n投資家やアナリストに対して、投資判断に必要な正確な経営情報を適時に、かつ継続して提供すること。"},null,null,null,null,null,null,null,245,null,null,245,{"$f":"IF(ISERROR(VLOOKUP(J38,用語表!$C$3:$E$513,3,0)),\"\",VLOOKUP(J38,用語表!$C$3:$E$513,3,0)&\"  \"&VLOOKUP(J38,用語表!$C$3:$F$513,4,0))","v":"ＩＲ  Investor Relations"}]
[6,{"$f":"IF(ISERROR(VLOOKUP(J39,用語表!$C$3:$E$513,2)),\"\",VLOOKUP(J39,用語表!$C$3:$E$513,2))","v":"品質に関する活動を手順化・文書化・記録化することによって，品質の保証と顧客満足の向上を図ること。"},null,null,null,null,null,null,null,258,null,null,258,{"$f":"IF(ISERROR(VLOOKUP(J39,用語表!$C$3:$E$513,3,0)),\"\",VLOOKUP(J39,用語表!$C$3:$E$513,3,0)&\"  \"&VLOOKUP(J39,用語表!$C$3:$F$513,4,0))","v":"TQC  Total Quality Management"}]
[7,{"$f":"IF(ISERROR(VLOOKUP(J40,用語表!$C$3:$E$513,2)),\"\",VLOOKUP(J40,用語表!$C$3:$E$513,2))","v":"新QC７つ道具の１つで、関係を分析したい２つの要素を縦軸と横軸にとり、その交点に関係の有無や関係の度合いを書き込むことで、問題の所在を明らかにしていく手法。"},null,null,null,null,null,null,null,264,null,null,264,{"$f":"IF(ISERROR(VLOOKUP(J40,用語表!$C$3:$E$513,3,0)),\"\",VLOOKUP(J40,用語表!$C$3:$E$513,3,0)&\"  \"&VLOOKUP(J40,用語表!$C$3:$F$513,4,0))","v":"マトリックス図法  "}]
[8,{"$f":"IF(ISERROR(VLOOKUP(J41,用語表!$C$3:$E$513,2)),\"\",VLOOKUP(J41,用語表!$C$3:$E$513,2))","v":"最高執行責任者のこと。日々の業務執行、特に営業活動の責任を請け負う。"},null,null,null,null,null,null,null,240,null,null,240,{"$f":"IF(ISERROR(VLOOKUP(J41,用語表!$C$3:$E$513,3,0)),\"\",VLOOKUP(J41,用語表!$C$3:$E$513,3,0)&\"  \"&VLOOKUP(J41,用語表!$C$3:$F$513,4,0))","v":"COO  Chief Operating Officer"}]
[9,{"$f":"IF(ISERROR(VLOOKUP(J42,用語表!$C$3:$E$513,2)),\"\",VLOOKUP(J42,用語表!$C$3:$E$513,2))","v":"対象の要素を重要な順に並べ、上位からABCの３グループにわけて分析すること。"},null,null,null,null,null,null,null,276,null,null,276,{"$f":"IF(ISERROR(VLOOKUP(J42,用語表!$C$3:$E$513,3,0)),\"\",VLOOKUP(J42,用語表!$C$3:$E$513,3,0)&\"  \"&VLOOKUP(J42,用語表!$C$3:$F$513,4,0))","v":"ABC分析  "}]
[10,{"$f":"IF(ISERROR(VLOOKUP(J43,用語表!$C$3:$E$513,2)),\"\",VLOOKUP(J43,用語表!$C$3:$E$513,2))","v":"日本語訳は自己資本利益率や株主資本利益率といわれるもの。企業の自己資本(株主資本)に対する当期純利益の割合のことをで、値が大きいほど利益率が高く、資産(設備投資など)がうまくまわっている(機能している)ことを表す。"},null,null,null,null,null,null,null,293,null,null,293,{"$f":"IF(ISERROR(VLOOKUP(J43,用語表!$C$3:$E$513,3,0)),\"\",VLOOKUP(J43,用語表!$C$3:$E$513,3,0)&\"  \"&VLOOKUP(J43,用語表!$C$3:$F$513,4,0))","v":"ROE（自己資本利益率）  Return On Equity"}]
[]
[null,"開始問題番号",235,null,null,null,null,null,null,null,null,null,null,"０　「開始問題番号」と「終了問題番号」を入力する。"]
[null,"終了問題番号",300,null,null,null,null,null,null,null,null,null,null,"1～１１１までの問題番号"]
[null,"問題数",{"$f":"C46-C45+1","v":66}]
[null,"問題印刷枚数",11,null,null,null,null,null,null,null,null,null,null,"１　問題数の行分の乱数を設定する。"]
[null,"E列　印刷開始問題番号",61,null,null,null,null,null,null,null,null,null,null,"例　問題数が３８の場合は、行５４から行９１まで"]
[null,"E列　印刷終了問題番号",70]
[null,null,null,null,null,null,null,null,null,null,null,null,null,"２　問題番号を値複写する。"]
[]
["問題数","乱数＆問題番号",null,null,"値複写（作成する問題番号）",null,null,"用語範囲の確認（範囲エラー）",null,null,"重複の確認（\"重複\"の表示）",null,null,"３　「印刷開始問題番号」を入力して「問題の作成」ボタンを押す。"]
[1,{"$f":"RAND()","v":0.52459132904405215},{"$f":"RANK(B54,$B$54:$B$150)+$C$45-1","v":262},null,246,null,null,{"$f":"IF(AND(E54>=$C$45,E54<=$C$46),\"\",\"範囲エラー\")","v":""},null,null,{"$f":"IF(COUNTIF($E$54:$E$123,E54)>1,\"重複\",\"\")","v":""}]
[2,0.27484862486953454,{"$f":"RANK(B55,$B$54:$B$150)+$C$45-1","v":281},null,254,null,null,"",null,null,{"$f":"IF(COUNTIF($E$54:$E$123,E55)>1,\"重複\",\"\")","v":""},null,null,"４　「問題印刷枚数」を入力して「問題の印刷」を押す。"]
[3,0.77000410557097776,248,null,235,null,null,"",null,null,""]
[4,2.5338497034422258E-2,299,null,274,null,null,"",null,null,"",null,null,"５　「解答の印刷」を押す。"]
[5,0.34531726656052264,275,null,288,null,null,"",null,null,""]
[6,0.72912248884155761,252,null,236,null,null,"",null,null,""]
[7,0.36819987829621059,274,null,248,null,null,"",null,null,""]
[8,6.7373655387088283E-2,296,null,297,null,null,"",null,null,""]
[9,0.99932466606369408,235,null,237,null,null,"",null,null,""]
[10,0.10431669734483628,294,null,242,null,null,"",null,null,""]
[11,0.11879816017201039,292,null,240,null,null,"",null,null,"重複"]
[12,0.16524805156904876,288,null,255,null,null,"",null,null,""]
[13,0.50288875274973077,263,null,276,null,null,"",null,null,"重複"]
[14,0.37626431291427032,273,null,249,null,null,"",null,null,""]
[15,0.40334411754733868,271,null,256,null,null,"",null,null,""]
[16,0.56725916754897965,258,null,292,null,null,"",null,null,""]
[17,2.5707629555898559E-2,298,null,283,null,null,"",null,null,""]
[18,2.3235828369128075E-4,300,null,264,null,null,"",null,null,"重複"]
[19,0.77770192278241701,247,null,261,null,null,"",null,null,""]
[20,0.18015609395537058,286,null,272,null,null,"",null,null,""]
[21,2.6375038526105676E-2,297,null,280,null,null,"",null,null,""]
[22,0.70191281711986053,253,null,238,null,null,"",null,null,""]
[23,0.52561198827585742,261,null,253,null,null,"",null,null,""]
[24,0.11875877750179253,293,null,286,null,null,"",null,null,""]
[25,0.7461686829138453,250,null,285,null,null,"",null,null,""]
[26,0.12260536972253433,290,null,247,null,null,"",null,null,""]
[27,0.55229513226640348,259,null,251,null,null,"",null,null,""]
[28,0.43440678854654213,267,null,262,null,null,"",null,null,""]
[29,0.42747074662838669,268,null,287,null,null,"",null,null,""]
[30,0.41254287760147124,270,null,293,null,null,"",null,null,"重複"]
[31,0.93671838219328019,240,null,278,null,null,"",null,null,""]
[32,0.93932430205902606,239,null,289,null,null,"",null,null,""]
[33,0.29141882757818216,280,null,267,null,null,"",null,null,""]
[34,0.95232811795584671,237,null,268,null,null,"",null,null,""]
[35,0.42385375108607959,269,null,294,null,null,"",null,null,""]
[36,0.66364903754767479,255,null,295,null,null,"",null,null,""]
[37,0.91327686157750931,241,null,300,null,null,"",null,null,""]
[38,0.97284863274824007,236,null,243,null,null,"",null,null,""]
[39,0.12888096098038326,289,null,259,null,null,"",null,null,""]
[40,0.94631229168015651,238,null,296,null,null,"",null,null,""]
[41,0.5846991480819872,{"$f":"RANK(B94,$B$54:$B$150)+$C$45-1","v":257},null,271,null,null,"",null,null,""]
[42,0.29629770914803721,279,null,239,null,null,"",null,null,""]
[43,0.44701891245274794,265,null,279,null,null,"",null,null,""]
[44,0.24978538004540995,284,null,298,null,null,"",null,null,""]
[45,0.46525312470967128,264,null,250,null,null,"",null,null,""]
[46,0.73740278167190154,251,null,241,null,null,"",null,null,""]
[47,0.64204336824494701,256,null,257,null,null,"",null,null,""]
[48,7.8936431254344575E-2,295,null,275,null,null,"",null,null,""]
[49,0.85009573941493222,243,null,266,null,null,"",null,null,""]
[50,0.17889978030556353,287,null,244,null,null,"",null,null,""]
[51,0.78735499527607367,246,null,277,null,null,"",null,null,""]
[52,0.11932889895636889,291,null,260,null,null,"",null,null,""]
[53,0.53090546787850357,260,null,269,null,null,"",null,null,""]
[54,0.43916643477282347,266,null,270,null,null,"",null,null,""]
[55,0.80121892718941301,245,null,281,null,null,"",null,null,""]
[56,0.32417034790657695,278,null,291,null,null,"",null,null,""]
[57,0.23786047905112995,285,null,299,null,null,"",null,null,""]
[58,0.26922247934629395,282,null,282,null,null,"",null,null,""]
[59,0.66479175411748048,254,null,265,null,null,"",null,null,""]
[60,0.33174398287541884,276,null,273,null,null,"",null,null,""]
[61,0.32635346482529981,277,null,290,null,null,"",null,null,""]
[62,0.75465369774833202,249,null,284,null,null,"",null,null,""]
[63,0.39477169931078915,272,null,263,null,null,"",null,null,""]
[64,0.26209404841393891,283,null,252,null,null,"",null,null,""]
[65,{"$f":"RAND()","v":0.88798633992042453},242,null,245,null,null,{"$f":"IF(AND(E118>=$C$45,E118<=$C$46),\"\",\"範囲エラー\")","v":""},null,null,""]
[66,0.80788527416493372,244,null,258,null,null,"",null,null,{"$f":"IF(COUNTIF($E$54:$E$123,E119)>1,\"重複\",\"\")","v":""}]
[67,null,null,null,264,null,null,"",null,null,"重複"]
[68,null,null,null,240,null,null,"",null,null,"重複"]
[69,null,null,null,276,null,null,"",null,null,"重複"]
[70,null,null,null,293,null,null,"",null,null,"重複"]

{"sheet":"問題作成_説明中心_4","index":3,"n_rows":133,"n_cols":14,"rows_kept":133,"cut":false,"hidden":false,"merged":[[36,1,36,8],[0,1,0,10],[1,1,1,10],[33,1,33,8],[34,1,34,8],[35,1,35,8],[41,1,41,8],[42,1,42,8],[39,1,39,8],[40,1,40,8],[37,1,37,8],[38,1,38,8]]}
[null,"ITパスポート試験　用語確認問題"]
[null,"　　　年　　　組　　　席　名前"]
[]
[388,{"$f":"IF(ISERROR(VLOOKUP(A4,用語表!$C$3:$E$602,3,0)),\"\",VLOOKUP(A4,用語表!$C$3:$E$602,3,0))","v":"ＰＯＳ"},null,{"$f":"A31+1","v":416},{"$f":"IF(ISERROR(VLOOKUP(D4,用語表!$C$3:$E$602,3,0)),\"\",VLOOKUP(D4,用語表!$C$3:$E$602,3,0))","v":"ユビキタスコンピューティング"},null,{"$f":"D31+1","v":444},{"$f":"IF(ISERROR(VLOOKUP(G4,用語表!$C$3:$E$602,3,0)),\"\",VLOOKUP(G4,用語表!$C$3:$E$602,3,0))","v":"ファブレス"},null,{"$f":"G31+1","v":472},{"$f":"IF(ISERROR(VLOOKUP(J4,用語表!$C$3:$E$602,3,0)),\"\",VLOOKUP(J4,用語表!$C$3:$E$602,3,0))","v":"RAD"}]
[{"$f":"A4+1","v":389},{"$f":"IF(ISERROR(VLOOKUP(A5,用語表!$C$3:$E$602,3,0)),\"\",VLOOKUP(A5,用語表!$C$3:$E$602,3,0))","v":"ＪＡＮコード"},null,{"$f":"D4+1","v":417},{"$f":"IF(ISERROR(VLOOKUP(D5,用語表!$C$3:$E$602,3,0)),\"\",VLOOKUP(D5,用語表!$C$3:$E$602,3,0))","v":"アクセシビリティ"},null,{"$f":"G4+1","v":445},{"$f":"IF(ISERROR(VLOOKUP(G5,用語表!$C$3:$E$602,3,0)),\"\",VLOOKUP(G5,用語表!$C$3:$E$602,3,0))","v":"ファウンドリ"},null,{"$f":"J4+1","v":473},{"$f":"IF(ISERROR(VLOOKUP(J5,用語表!$C$3:$E$602,3,0)),\"\",VLOOKUP(J5,用語表!$C$3:$E$602,3,0))","v":"CASEツール"}]
[390,{"$f":"IF(ISERROR(VLOOKUP(A6,用語表!$C$3:$E$602,3,0)),\"\",VLOOKUP(A6,用語表!$C$3:$E$602,3,0))","v":"ＩＴＦ"},null,418,{"$f":"IF(ISERROR(VLOOKUP(D6,用語表!$C$3:$E$602,3,0)),\"\",VLOOKUP(D6,用語表!$C$3:$E$602,3,0))","v":"バーチャルリアリティ"},null,446,{"$f":"IF(ISERROR(VLOOKUP(G6,用語表!$C$3:$E$602,3,0)),\"\",VLOOKUP(G6,用語表!$C$3:$E$602,3,0))","v":"ＥＭＳ"},null,474,{"$f":"IF(ISERROR(VLOOKUP(J6,用語表!$C$3:$E$602,3,0)),\"\",VLOOKUP(J6,用語表!$C$3:$E$602,3,0))","v":"構造化手法"}]
[391,{"$f":"IF(ISERROR(VLOOKUP(A7,用語表!$C$3:$E$602,3,0)),\"\",VLOOKUP(A7,用語表!$C$3:$E$602,3,0))","v":"ＥＯＳ"},null,419,{"$f":"IF(ISERROR(VLOOKUP(D7,用語表!$C$3:$E$602,3,0)),\"\",VLOOKUP(D7,用語表!$C$3:$E$602,3,0))","v":"ディジタルディバイド"},null,447,{"$f":"IF(ISERROR(VLOOKUP(G7,用語表!$C$3:$E$602,3,0)),\"\",VLOOKUP(G7,用語表!$C$3:$E$602,3,0))","v":"ISP"},null,475,{"$f":"IF(ISERROR(VLOOKUP(J7,用語表!$C$3:$E$602,3,0)),\"\",VLOOKUP(J7,用語表!$C$3:$E$602,3,0))","v":"CMMＩ"}]
[392,{"$f":"IF(ISERROR(VLOOKUP(A8,用語表!$C$3:$E$602,3,0)),\"\",VLOOKUP(A8,用語表!$C$3:$E$602,3,0))","v":"ＲＦＩＤ"},null,420,{"$f":"IF(ISERROR(VLOOKUP(D8,用語表!$C$3:$E$602,3,0)),\"\",VLOOKUP(D8,用語表!$C$3:$E$602,3,0))","v":"クラウドコンピューティング"},null,448,{"$f":"IF(ISERROR(VLOOKUP(G8,用語表!$C$3:$E$602,3,0)),\"\",VLOOKUP(G8,用語表!$C$3:$E$602,3,0))","v":"システム化計画"},null,476,{"$f":"IF(ISERROR(VLOOKUP(J8,用語表!$C$3:$E$602,3,0)),\"\",VLOOKUP(J8,用語表!$C$3:$E$602,3,0))","v":"プロセス中心設計（ＰＯＡ）"}]
[393,{"$f":"IF(ISERROR(VLOOKUP(A9,用語表!$C$3:$E$602,3,0)),\"\",VLOOKUP(A9,用語表!$C$3:$E$602,3,0))","v":"ＩＣカード"},null,421,{"$f":"IF(ISERROR(VLOOKUP(D9,用語表!$C$3:$E$602,3,0)),\"\",VLOOKUP(D9,用語表!$C$3:$E$602,3,0))","v":"ビジネスモデル"},null,449,{"$f":"IF(ISERROR(VLOOKUP(G9,用語表!$C$3:$E$602,3,0)),\"\",VLOOKUP(G9,用語表!$C$3:$E$602,3,0))","v":"要求定義"},null,477,{"$f":"IF(ISERROR(VLOOKUP(J9,用語表!$C$3:$E$602,3,0)),\"\",VLOOKUP(J9,用語表!$C$3:$E$602,3,0))","v":"データ中心設計（ＤＯＡ）"}]
[394,{"$f":"IF(ISERROR(VLOOKUP(A10,用語表!$C$3:$E$602,3,0)),\"\",VLOOKUP(A10,用語表!$C$3:$E$602,3,0))","v":"ＰＡＳＭＯ"},null,422,{"$f":"IF(ISERROR(VLOOKUP(D10,用語表!$C$3:$E$602,3,0)),\"\",VLOOKUP(D10,用語表!$C$3:$E$602,3,0))","v":"ビジネスプロセスモデル"},null,450,{"$f":"IF(ISERROR(VLOOKUP(G10,用語表!$C$3:$E$602,3,0)),\"\",VLOOKUP(G10,用語表!$C$3:$E$602,3,0))","v":"ＲＦＩ"},null,478,{"$f":"IF(ISERROR(VLOOKUP(J10,用語表!$C$3:$E$602,3,0)),\"\",VLOOKUP(J10,用語表!$C$3:$E$602,3,0))","v":"オブジェクト指向設計"}]
[395,{"$f":"IF(ISERROR(VLOOKUP(A11,用語表!$C$3:$E$602,3,0)),\"\",VLOOKUP(A11,用語表!$C$3:$E$602,3,0))","v":"ＥＴＣ"},null,423,{"$f":"IF(ISERROR(VLOOKUP(D11,用語表!$C$3:$E$602,3,0)),\"\",VLOOKUP(D11,用語表!$C$3:$E$602,3,0))","v":"情報システムモデル"},null,451,{"$f":"IF(ISERROR(VLOOKUP(G11,用語表!$C$3:$E$602,3,0)),\"\",VLOOKUP(G11,用語表!$C$3:$E$602,3,0))","v":"ＲＦＰ"},null,479,{"$f":"IF(ISERROR(VLOOKUP(J11,用語表!$C$3:$E$602,3,0)),\"\",VLOOKUP(J11,用語表!$C$3:$E$602,3,0))","v":"プロジェクト憲章"}]
[396,{"$f":"IF(ISERROR(VLOOKUP(A12,用語表!$C$3:$E$602,3,0)),\"\",VLOOKUP(A12,用語表!$C$3:$E$602,3,0))","v":"フランチャイズチェーン"},null,424,{"$f":"IF(ISERROR(VLOOKUP(D12,用語表!$C$3:$E$602,3,0)),\"\",VLOOKUP(D12,用語表!$C$3:$E$602,3,0))","v":"システム管理基準"},null,452,{"$f":"IF(ISERROR(VLOOKUP(G12,用語表!$C$3:$E$602,3,0)),\"\",VLOOKUP(G12,用語表!$C$3:$E$602,3,0))","v":"システム方式設計"},null,480,{"$f":"IF(ISERROR(VLOOKUP(J12,用語表!$C$3:$E$602,3,0)),\"\",VLOOKUP(J12,用語表!$C$3:$E$602,3,0))","v":"プロジェクト"}]
[397,{"$f":"IF(ISERROR(VLOOKUP(A13,用語表!$C$3:$E$602,3,0)),\"\",VLOOKUP(A13,用語表!$C$3:$E$602,3,0))","v":"ボランタリチェーン"},null,425,{"$f":"IF(ISERROR(VLOOKUP(D13,用語表!$C$3:$E$602,3,0)),\"\",VLOOKUP(D13,用語表!$C$3:$E$602,3,0))","v":"ワークフロー分析"},null,453,{"$f":"IF(ISERROR(VLOOKUP(G13,用語表!$C$3:$E$602,3,0)),\"\",VLOOKUP(G13,用語表!$C$3:$E$602,3,0))","v":"ソフトウェア方式設計"},null,481,{"$f":"IF(ISERROR(VLOOKUP(J13,用語表!$C$3:$E$602,3,0)),\"\",VLOOKUP(J13,用語表!$C$3:$E$602,3,0))","v":"プロジェクトマネージャー"}]
[398,{"$f":"IF(ISERROR(VLOOKUP(A14,用語表!$C$3:$E$602,3,0)),\"\",VLOOKUP(A14,用語表!$C$3:$E$602,3,0))","v":"ＥＲＰ"},null,426,{"$f":"IF(ISERROR(VLOOKUP(D14,用語表!$C$3:$E$602,3,0)),\"\",VLOOKUP(D14,用語表!$C$3:$E$602,3,0))","v":"データモデリング／モデル化"},null,454,{"$f":"IF(ISERROR(VLOOKUP(G14,用語表!$C$3:$E$602,3,0)),\"\",VLOOKUP(G14,用語表!$C$3:$E$602,3,0))","v":"ソフトウェア詳細設計"},null,482,{"$f":"IF(ISERROR(VLOOKUP(J14,用語表!$C$3:$E$602,3,0)),\"\",VLOOKUP(J14,用語表!$C$3:$E$602,3,0))","v":"ＰＤＣＡサイクル"}]
[399,{"$f":"IF(ISERROR(VLOOKUP(A15,用語表!$C$3:$E$602,3,0)),\"\",VLOOKUP(A15,用語表!$C$3:$E$602,3,0))","v":"ＧＰＳ"},null,427,{"$f":"IF(ISERROR(VLOOKUP(D15,用語表!$C$3:$E$602,3,0)),\"\",VLOOKUP(D15,用語表!$C$3:$E$602,3,0))","v":"Ｅ－Ｒ図"},null,455,{"$f":"IF(ISERROR(VLOOKUP(G15,用語表!$C$3:$E$602,3,0)),\"\",VLOOKUP(G15,用語表!$C$3:$E$602,3,0))","v":"ソフトウェア保守"},null,483,{"$f":"IF(ISERROR(VLOOKUP(J15,用語表!$C$3:$E$602,3,0)),\"\",VLOOKUP(J15,用語表!$C$3:$E$602,3,0))","v":"PDPC"}]
[400,{"$f":"IF(ISERROR(VLOOKUP(A16,用語表!$C$3:$E$602,3,0)),\"\",VLOOKUP(A16,用語表!$C$3:$E$602,3,0))","v":"ＣＡＤ"},null,428,{"$f":"IF(ISERROR(VLOOKUP(D16,用語表!$C$3:$E$602,3,0)),\"\",VLOOKUP(D16,用語表!$C$3:$E$602,3,0))","v":"ＤＦＤ"},null,456,{"$f":"IF(ISERROR(VLOOKUP(G16,用語表!$C$3:$E$602,3,0)),\"\",VLOOKUP(G16,用語表!$C$3:$E$602,3,0))","v":"単体テスト"},null,484,{"$f":"IF(ISERROR(VLOOKUP(J16,用語表!$C$3:$E$602,3,0)),\"\",VLOOKUP(J16,用語表!$C$3:$E$602,3,0))","v":"ステークホルダ"}]
[401,{"$f":"IF(ISERROR(VLOOKUP(A17,用語表!$C$3:$E$602,3,0)),\"\",VLOOKUP(A17,用語表!$C$3:$E$602,3,0))","v":"ＣＡＭ"},null,429,{"$f":"IF(ISERROR(VLOOKUP(D17,用語表!$C$3:$E$602,3,0)),\"\",VLOOKUP(D17,用語表!$C$3:$E$602,3,0))","v":"マキシミン戦略(マクシミン原理)"},null,457,{"$f":"IF(ISERROR(VLOOKUP(G17,用語表!$C$3:$E$602,3,0)),\"\",VLOOKUP(G17,用語表!$C$3:$E$602,3,0))","v":"ホワイトボックステスト"},null,485,{"$f":"IF(ISERROR(VLOOKUP(J17,用語表!$C$3:$E$602,3,0)),\"\",VLOOKUP(J17,用語表!$C$3:$E$602,3,0))","v":"インセンティブ"}]
[402,{"$f":"IF(ISERROR(VLOOKUP(A18,用語表!$C$3:$E$602,3,0)),\"\",VLOOKUP(A18,用語表!$C$3:$E$602,3,0))","v":"ＣＩＭ"},null,430,{"$f":"IF(ISERROR(VLOOKUP(D18,用語表!$C$3:$E$602,3,0)),\"\",VLOOKUP(D18,用語表!$C$3:$E$602,3,0))","v":"ＢＰＲ"},null,458,{"$f":"IF(ISERROR(VLOOKUP(G18,用語表!$C$3:$E$602,3,0)),\"\",VLOOKUP(G18,用語表!$C$3:$E$602,3,0))","v":"ブラックボックステスト"},null,486,{"$f":"IF(ISERROR(VLOOKUP(J18,用語表!$C$3:$E$602,3,0)),\"\",VLOOKUP(J18,用語表!$C$3:$E$602,3,0))","v":"ＰＭＢＯＫ"}]
[403,{"$f":"IF(ISERROR(VLOOKUP(A19,用語表!$C$3:$E$602,3,0)),\"\",VLOOKUP(A19,用語表!$C$3:$E$602,3,0))","v":"ＣＡＥ"},null,431,{"$f":"IF(ISERROR(VLOOKUP(D19,用語表!$C$3:$E$602,3,0)),\"\",VLOOKUP(D19,用語表!$C$3:$E$602,3,0))","v":"ＢＰＭ"},null,459,{"$f":"IF(ISERROR(VLOOKUP(G19,用語表!$C$3:$E$602,3,0)),\"\",VLOOKUP(G19,用語表!$C$3:$E$602,3,0))","v":"同値分割"},null,487,{"$f":"IF(ISERROR(VLOOKUP(J19,用語表!$C$3:$E$602,3,0)),\"\",VLOOKUP(J19,用語表!$C$3:$E$602,3,0))","v":"コンピテンシ"}]
[404,{"$f":"IF(ISERROR(VLOOKUP(A20,用語表!$C$3:$E$602,3,0)),\"\",VLOOKUP(A20,用語表!$C$3:$E$602,3,0))","v":"ＦＡシステム"},null,432,{"$f":"IF(ISERROR(VLOOKUP(D20,用語表!$C$3:$E$602,3,0)),\"\",VLOOKUP(D20,用語表!$C$3:$E$602,3,0))","v":"ワークフローシステム"},null,460,{"$f":"IF(ISERROR(VLOOKUP(G20,用語表!$C$3:$E$602,3,0)),\"\",VLOOKUP(G20,用語表!$C$3:$E$602,3,0))","v":"限界値分析"},null,488,{"$f":"IF(ISERROR(VLOOKUP(J20,用語表!$C$3:$E$602,3,0)),\"\",VLOOKUP(J20,用語表!$C$3:$E$602,3,0))","v":"ＷＢＳ"}]
[405,{"$f":"IF(ISERROR(VLOOKUP(A21,用語表!$C$3:$E$602,3,0)),\"\",VLOOKUP(A21,用語表!$C$3:$E$602,3,0))","v":"電子商取引（ＥＣ）"},null,433,{"$f":"IF(ISERROR(VLOOKUP(D21,用語表!$C$3:$E$602,3,0)),\"\",VLOOKUP(D21,用語表!$C$3:$E$602,3,0))","v":"グループウェア"},null,461,{"$f":"IF(ISERROR(VLOOKUP(G21,用語表!$C$3:$E$602,3,0)),\"\",VLOOKUP(G21,用語表!$C$3:$E$602,3,0))","v":"トップダウンテスト"},null,489,{"$f":"IF(ISERROR(VLOOKUP(J21,用語表!$C$3:$E$602,3,0)),\"\",VLOOKUP(J21,用語表!$C$3:$E$602,3,0))","v":"ＰＥＲＴ図"}]
[406,{"$f":"IF(ISERROR(VLOOKUP(A22,用語表!$C$3:$E$602,3,0)),\"\",VLOOKUP(A22,用語表!$C$3:$E$602,3,0))","v":"ＥＤＩ"},null,434,{"$f":"IF(ISERROR(VLOOKUP(D22,用語表!$C$3:$E$602,3,0)),\"\",VLOOKUP(D22,用語表!$C$3:$E$602,3,0))","v":"ソリューションビジネス"},null,462,{"$f":"IF(ISERROR(VLOOKUP(G22,用語表!$C$3:$E$602,3,0)),\"\",VLOOKUP(G22,用語表!$C$3:$E$602,3,0))","v":"ボトムアップテスト"},null,490,{"$f":"IF(ISERROR(VLOOKUP(J22,用語表!$C$3:$E$602,3,0)),\"\",VLOOKUP(J22,用語表!$C$3:$E$602,3,0))","v":"ガントチャート"}]
[407,{"$f":"IF(ISERROR(VLOOKUP(A23,用語表!$C$3:$E$602,3,0)),\"\",VLOOKUP(A23,用語表!$C$3:$E$602,3,0))","v":"ＣＡＬＳ"},null,435,{"$f":"IF(ISERROR(VLOOKUP(D23,用語表!$C$3:$E$602,3,0)),\"\",VLOOKUP(D23,用語表!$C$3:$E$602,3,0))","v":"ＳＯＡ"},null,463,{"$f":"IF(ISERROR(VLOOKUP(G23,用語表!$C$3:$E$602,3,0)),\"\",VLOOKUP(G23,用語表!$C$3:$E$602,3,0))","v":"サンドイッチテスト"},null,491,{"$f":"IF(ISERROR(VLOOKUP(J23,用語表!$C$3:$E$602,3,0)),\"\",VLOOKUP(J23,用語表!$C$3:$E$602,3,0))","v":"マイルストーン"}]
[408,{"$f":"IF(ISERROR(VLOOKUP(A24,用語表!$C$3:$E$602,3,0)),\"\",VLOOKUP(A24,用語表!$C$3:$E$602,3,0))","v":"ＢｔｏＢ"},null,436,{"$f":"IF(ISERROR(VLOOKUP(D24,用語表!$C$3:$E$602,3,0)),\"\",VLOOKUP(D24,用語表!$C$3:$E$602,3,0))","v":"ハウジングサービス"},null,464,{"$f":"IF(ISERROR(VLOOKUP(G24,用語表!$C$3:$E$602,3,0)),\"\",VLOOKUP(G24,用語表!$C$3:$E$602,3,0))","v":"ビックバンテスト"},null,492,{"$f":"IF(ISERROR(VLOOKUP(J24,用語表!$C$3:$E$602,3,0)),\"\",VLOOKUP(J24,用語表!$C$3:$E$602,3,0))","v":"進捗管理"}]
[409,{"$f":"IF(ISERROR(VLOOKUP(A25,用語表!$C$3:$E$602,3,0)),\"\",VLOOKUP(A25,用語表!$C$3:$E$602,3,0))","v":"ＢｔｏＣ"},null,437,{"$f":"IF(ISERROR(VLOOKUP(D25,用語表!$C$3:$E$602,3,0)),\"\",VLOOKUP(D25,用語表!$C$3:$E$602,3,0))","v":"ホスティングサービス"},null,465,{"$f":"IF(ISERROR(VLOOKUP(G25,用語表!$C$3:$E$602,3,0)),\"\",VLOOKUP(G25,用語表!$C$3:$E$602,3,0))","v":"リグレッションテスト"},null,493,{"$f":"IF(ISERROR(VLOOKUP(J25,用語表!$C$3:$E$602,3,0)),\"\",VLOOKUP(J25,用語表!$C$3:$E$602,3,0))","v":"BCP(事業継続計画)"}]
[410,{"$f":"IF(ISERROR(VLOOKUP(A26,用語表!$C$3:$E$602,3,0)),\"\",VLOOKUP(A26,用語表!$C$3:$E$602,3,0))","v":"ＢｔｏＧ"},null,438,{"$f":"IF(ISERROR(VLOOKUP(D26,用語表!$C$3:$E$602,3,0)),\"\",VLOOKUP(D26,用語表!$C$3:$E$602,3,0))","v":"ＡＳＰ"},null,466,{"$f":"IF(ISERROR(VLOOKUP(G26,用語表!$C$3:$E$602,3,0)),\"\",VLOOKUP(G26,用語表!$C$3:$E$602,3,0))","v":"プログラムステップ法"},null,494,{"$f":"IF(ISERROR(VLOOKUP(J26,用語表!$C$3:$E$602,3,0)),\"\",VLOOKUP(J26,用語表!$C$3:$E$602,3,0))","v":"ＥＶＭ"}]
[411,{"$f":"IF(ISERROR(VLOOKUP(A27,用語表!$C$3:$E$602,3,0)),\"\",VLOOKUP(A27,用語表!$C$3:$E$602,3,0))","v":"ＣｔｏＣ"},null,439,{"$f":"IF(ISERROR(VLOOKUP(D27,用語表!$C$3:$E$602,3,0)),\"\",VLOOKUP(D27,用語表!$C$3:$E$602,3,0))","v":"ＳａａＳ"},null,467,{"$f":"IF(ISERROR(VLOOKUP(G27,用語表!$C$3:$E$602,3,0)),\"\",VLOOKUP(G27,用語表!$C$3:$E$602,3,0))","v":"ファンクション・ポイント法"},null,495,{"$f":"IF(ISERROR(VLOOKUP(J27,用語表!$C$3:$E$602,3,0)),\"\",VLOOKUP(J27,用語表!$C$3:$E$602,3,0))","v":"ソフトウェア品質特性(JIS X 0129-1)"}]
[412,{"$f":"IF(ISERROR(VLOOKUP(A28,用語表!$C$3:$E$602,3,0)),\"\",VLOOKUP(A28,用語表!$C$3:$E$602,3,0))","v":"バーチャルモール"},null,440,{"$f":"IF(ISERROR(VLOOKUP(D28,用語表!$C$3:$E$602,3,0)),\"\",VLOOKUP(D28,用語表!$C$3:$E$602,3,0))","v":"PaaS"},null,468,{"$f":"IF(ISERROR(VLOOKUP(G28,用語表!$C$3:$E$602,3,0)),\"\",VLOOKUP(G28,用語表!$C$3:$E$602,3,0))","v":"システム特性係数"},null,496,{"$f":"IF(ISERROR(VLOOKUP(J28,用語表!$C$3:$E$602,3,0)),\"\",VLOOKUP(J28,用語表!$C$3:$E$602,3,0))","v":"ＩＴサービスマネジメント"}]
[413,{"$f":"IF(ISERROR(VLOOKUP(A29,用語表!$C$3:$E$602,3,0)),\"\",VLOOKUP(A29,用語表!$C$3:$E$602,3,0))","v":"逆オークション"},null,441,{"$f":"IF(ISERROR(VLOOKUP(D29,用語表!$C$3:$E$602,3,0)),\"\",VLOOKUP(D29,用語表!$C$3:$E$602,3,0))","v":"IaaS"},null,469,{"$f":"IF(ISERROR(VLOOKUP(G29,用語表!$C$3:$E$602,3,0)),\"\",VLOOKUP(G29,用語表!$C$3:$E$602,3,0))","v":"ウォータフォールモデル"},null,497,{"$f":"IF(ISERROR(VLOOKUP(J29,用語表!$C$3:$E$602,3,0)),\"\",VLOOKUP(J29,用語表!$C$3:$E$602,3,0))","v":"ＩＴＩＬ"}]
[414,{"$f":"IF(ISERROR(VLOOKUP(A30,用語表!$C$3:$E$602,3,0)),\"\",VLOOKUP(A30,用語表!$C$3:$E$602,3,0))","v":"組込みシステム"},null,442,{"$f":"IF(ISERROR(VLOOKUP(D30,用語表!$C$3:$E$602,3,0)),\"\",VLOOKUP(D30,用語表!$C$3:$E$602,3,0))","v":"ＢＰＯ"},null,470,{"$f":"IF(ISERROR(VLOOKUP(G30,用語表!$C$3:$E$602,3,0)),\"\",VLOOKUP(G30,用語表!$C$3:$E$602,3,0))","v":"プロトタイピングモデル"},null,498,{"$f":"IF(ISERROR(VLOOKUP(J30,用語表!$C$3:$E$602,3,0)),\"\",VLOOKUP(J30,用語表!$C$3:$E$602,3,0))","v":"ベンチマーキング"}]
[415,{"$f":"IF(ISERROR(VLOOKUP(A31,用語表!$C$3:$E$602,3,0)),\"\",VLOOKUP(A31,用語表!$C$3:$E$602,3,0))","v":"情報家電"},null,443,{"$f":"IF(ISERROR(VLOOKUP(D31,用語表!$C$3:$E$602,3,0)),\"\",VLOOKUP(D31,用語表!$C$3:$E$602,3,0))","v":"ＯＥＭ"},null,471,{"$f":"IF(ISERROR(VLOOKUP(G31,用語表!$C$3:$E$602,3,0)),\"\",VLOOKUP(G31,用語表!$C$3:$E$602,3,0))","v":"スパイラルモデル"},null,499,{"$f":"IF(ISERROR(VLOOKUP(J31,用語表!$C$3:$E$602,3,0)),\"\",VLOOKUP(J31,用語表!$C$3:$E$602,3,0))","v":"ベストプラクティス"}]
[]
[null,{"$f":"\"出題範囲=\"&C45&\":\"&C46","v":"出題範囲=452:468"},null,null,{"$f":"\"印刷範囲=\"&C49&\":\"&C50","v":"印刷範囲=11:20"},null,null,null,null,5]
[1,{"$f":"IF(ISERROR(VLOOKUP(J34,用語表!$C$3:$E$537,2)),\"\",VLOOKUP(J34,用語表!$C$3:$E$537,2))","v":"開発するソフトウェアをプログラムやモジュール単位に分解し、算出したステップ数（行数）から人月などの工数に換算し、開発規模を見積もる方法。"},null,null,null,null,null,null,null,466,null,null,{"$f":"J34","v":466},{"$f":"IFERROR(VLOOKUP(J34,用語表!$C$3:$E$537,3,0),\"\")&\"  \"&VLOOKUP(J34,用語表!$C$3:$F$537,4,0)","v":"プログラムステップ法  "}]
[2,{"$f":"IF(ISERROR(VLOOKUP(J35,用語表!$C$3:$E$537,2)),\"\",VLOOKUP(J35,用語表!$C$3:$E$537,2))","v":"プログラム内の最下位のモジュールからテストを開始し、上位のモジュールを順次結合させながらテストしていく方法。上位モジュールの代わりに、ドライバという仮のモジュールを用意する。"},null,null,null,null,null,null,null,462,null,null,462,{"$f":"IFERROR(VLOOKUP(J35,用語表!$C$3:$E$537,3,0),\"\")&\"  \"&VLOOKUP(J35,用語表!$C$3:$F$537,4,0)","v":"ボトムアップテスト  "}]
[3,{"$f":"IF(ISERROR(VLOOKUP(J36,用語表!$C$3:$E$537,2)),\"\",VLOOKUP(J36,用語表!$C$3:$E$537,2))","v":"トランザクション量や変更の容易性など１４種類のチェック項目に対し、影響を受ける度合いを０（関係ない）～５（非常に影響を受ける）の範囲で評価する。その評価点の合計を公式に当てはめて算出するもの。"},null,null,null,null,null,null,null,468,null,null,468,{"$f":"IFERROR(VLOOKUP(J36,用語表!$C$3:$E$537,3,0),\"\")&\"  \"&VLOOKUP(J36,用語表!$C$3:$F$537,4,0)","v":"システム特性係数  "}]
[4,{"$f":"IF(ISERROR(VLOOKUP(J37,用語表!$C$3:$E$537,2)),\"\",VLOOKUP(J37,用語表!$C$3:$E$537,2))","v":"必要な機能を定義し、ソフトウェアをプログラム単位まで分割し、その機能や処理の手順を明確化（機能分割・構造化）したり、外部とのインターフェースの方式設計やソフトウェア結合テストの設計を行う。"},null,null,null,null,null,null,null,453,null,null,453,{"$f":"IFERROR(VLOOKUP(J37,用語表!$C$3:$E$537,3,0),\"\")&\"  \"&VLOOKUP(J37,用語表!$C$3:$F$537,4,0)","v":"ソフトウェア方式設計  "}]
[5,{"$f":"IF(ISERROR(VLOOKUP(J38,用語表!$C$3:$E$537,2)),\"\",VLOOKUP(J38,用語表!$C$3:$E$537,2))","v":"最上位モジュールからのテストと最下位モジュールからのテストを同時に挟み込むように行うテスト"},null,null,null,null,null,null,null,463,null,null,463,{"$f":"IFERROR(VLOOKUP(J38,用語表!$C$3:$E$537,3,0),\"\")&\"  \"&VLOOKUP(J38,用語表!$C$3:$F$537,4,0)","v":"サンドイッチテスト  "}]
[6,{"$f":"IF(ISERROR(VLOOKUP(J39,用語表!$C$3:$E$537,2)),\"\",VLOOKUP(J39,用語表!$C$3:$E$537,2))","v":"あらかじめ全モジュールの単体テストを済ませておき、すべてのモジュールを結合して一斉にテストを行うこと。"},null,null,null,null,null,null,null,464,null,null,464,{"$f":"IFERROR(VLOOKUP(J39,用語表!$C$3:$E$537,3,0),\"\")&\"  \"&VLOOKUP(J39,用語表!$C$3:$F$537,4,0)","v":"ビックバンテスト  "}]
[7,{"$f":"IF(ISERROR(VLOOKUP(J40,用語表!$C$3:$E$537,2)),\"\",VLOOKUP(J40,用語表!$C$3:$E$537,2))","v":"プログラム１行ごとの処理まで明確になるように詳細化していく。物理データ（ファイル）設計、入出力詳細設計、構造化設計（モジュール設計）など、各プログラム内の構造設計を行う。ユニットテスト（単体、クラス、モジュール）の仕様を定義する。"},null,null,null,null,null,null,null,454,null,null,454,{"$f":"IFERROR(VLOOKUP(J40,用語表!$C$3:$E$537,3,0),\"\")&\"  \"&VLOOKUP(J40,用語表!$C$3:$F$537,4,0)","v":"ソフトウェア詳細設計  "}]
[8,{"$f":"IF(ISERROR(VLOOKUP(J41,用語表!$C$3:$E$537,2)),\"\",VLOOKUP(J41,用語表!$C$3:$E$537,2))","v":"プログラム内の最上位のモジュールからテストを開始し、下位のモジュールを順次結合させながらテストしていく方法。下位モジュールが存在しない場合には、仮に処理結果などを返す役割をするスタブと呼ばれるテスト用のモジュールを用意する。"},null,null,null,null,null,null,null,461,null,null,461,{"$f":"IFERROR(VLOOKUP(J41,用語表!$C$3:$E$537,3,0),\"\")&\"  \"&VLOOKUP(J41,用語表!$C$3:$F$537,4,0)","v":"トップダウンテスト  "}]
[9,{"$f":"IF(ISERROR(VLOOKUP(J42,用語表!$C$3:$E$537,2)),\"\",VLOOKUP(J42,用語表!$C$3:$E$537,2))","v":"データを性質ごとのグループに分け、各グループから代表値を取ってテストデータにする方法。"},null,null,null,null,null,null,null,459,null,null,459,{"$f":"IFERROR(VLOOKUP(J42,用語表!$C$3:$E$537,3,0),\"\")&\"  \"&VLOOKUP(J42,用語表!$C$3:$F$537,4,0)","v":"同値分割  "}]
[10,{"$f":"IF(ISERROR(VLOOKUP(J43,用語表!$C$3:$E$537,2)),\"\",VLOOKUP(J43,用語表!$C$3:$E$537,2))","v":"障害を訂正、性能やその他の属性の改善のために納入後のソフトウェア製品を修正、または変更された環境に適合させることを目的としたプロセス。\n例　システムの安定稼働，情報技術の進展や経営戦略の変化に対応するためにプ口グラムの修正や変更を行う。"},null,null,null,null,null,null,null,455,null,null,455,{"$f":"IFERROR(VLOOKUP(J43,用語表!$C$3:$E$537,3,0),\"\")&\"  \"&VLOOKUP(J43,用語表!$C$3:$F$537,4,0)","v":"ソフトウェア保守  "}]
[]
[null,"開始問題番号",452,null,null,null,null,null,null,null,null,null,null,"０　「開始問題番号」と「終了問題番号」を入力する。"]
[null,"終了問題番号",468,null,null,null,null,null,null,null,null,null,null,"1～１１１までの問題番号"]
[null,"問題数",{"$f":"C46-C45+1","v":17}]
[null,"問題印刷枚数",1,null,null,null,null,null,null,null,null,null,null,"１　問題数の行分の乱数を設定する。"]
[null,"E列　印刷開始問題番号",11,null,null,null,null,null,null,null,null,null,null,"例　問題数が３８の場合は、行５４から行９１まで"]
[null,"E列　印刷終了問題番号",20]
[null,null,null,null,null,null,null,null,null,null,null,null,null,"２　問題番号を値複写する。"]
[]
["問題数","乱数＆問題番号",null,null,"値複写（作成する問題番号）",null,null,"用語範囲の確認（範囲エラー）",null,null,"重複の確認（\"重複\"の表示）",null,null,"３　「印刷開始問題番号」を入力して「問題の作成」ボタンを押す。"]
[1,{"$f":"RAND()","v":2.8408583181273039E-2},{"$f":"RANK(B54,$B$54:$B$150)+$C$45-1","v":467},null,466,null,null,{"$f":"IF(AND(E54>=$C$45,E54<=$C$46),\"\",\"範囲エラー\")","v":""},null,null,{"$f":"IF(COUNTIF($E$54:$E$150,E54)>1,\"重複\",\"\")","v":""}]
[2,3.6432636030271359E-3,{"$f":"RANK(B55,$B$54:$B$150)+$C$45-1","v":468},null,462,null,null,"",null,null,{"$f":"IF(COUNTIF($E$54:$E$150,E55)>1,\"重複\",\"\")","v":""},null,null,"４　「問題印刷枚数」を入力して「問題の印刷」を押す。"]
[3,0.48463845031018582,462,null,468,null,null,"",null,null,""]
[4,0.88311572923896797,452,null,453,null,null,"",null,null,"",null,null,"５　「解答の印刷」を押す。"]
[5,0.81610671851221761,454,null,463,null,null,"",null,null,""]
[6,0.49041373216131012,461,null,464,null,null,"",null,null,"",null,null,"※行の高さ：６８が標準"]
[7,0.73871659656298538,458,null,454,null,null,"",null,null,"重複"]
[8,2.9871362932239687E-2,466,null,461,null,null,"",null,null,"重複"]
[9,0.72036151205673082,459,null,459,null,null,"",null,null,""]
[10,0.78569310973961382,456,null,455,null,null,"",null,null,""]
[11,0.75332263989417103,457,null,460,null,null,"",null,null,""]
[12,0.10836380711910565,465,null,467,null,null,"",null,null,""]
[13,0.85146162732694319,453,null,458,null,null,"",null,null,""]
[14,0.7889703480342547,455,null,452,null,null,"",null,null,"重複"]
[15,0.41096205213580905,463,null,456,null,null,"",null,null,""]
[16,0.5476310705531614,460,null,457,null,null,"",null,null,""]
[17,0.37985050801562936,464,null,465,null,null,"",null,null,""]
[18,null,null,null,461,null,null,"",null,null,"重複"]
[19,null,null,null,454,null,null,"",null,null,"重複"]
[20,null,null,null,452,null,null,"",null,null,"重複"]
[21,null,null,null,null,null,null,"範囲エラー",null,null,""]
[22,null,null,null,null,null,null,"範囲エラー",null,null,""]
[23,null,null,null,null,null,null,"範囲エラー",null,null,""]
[24,null,null,null,null,null,null,"範囲エラー",null,null,""]
[25,null,null,null,null,null,null,"範囲エラー",null,null,""]
[26,null,null,null,null,null,null,"範囲エラー",null,null,""]
[27,null,null,null,null,null,null,"範囲エラー",null,null,""]
[28,null,null,null,null,null,null,"範囲エラー",null,null,""]
[29,null,null,null,null,null,null,"範囲エラー",null,null,""]
[30,null,null,null,null,null,null,"範囲エラー",null,null,""]
[31,null,null,null,null,null,null,"範囲エラー",null,null,""]
[32,null,null,null,null,null,null,"範囲エラー",null,null,""]
[33,null,null,null,null,null,null,"範囲エラー",null,null,""]
[34,null,null,null,null,null,null,"範囲エラー",null,null,""]
[35,null,null,null,null,null,null,"範囲エラー",null,null,""]
[36,null,null,null,null,null,null,"範囲エラー",null,null,""]
[37,null,null,null,null,null,null,"範囲エラー",null,null,""]
[38,null,null,null,null,null,null,"範囲エラー",null,null,""]
[39,null,null,null,null,null,null,"範囲エラー",null,null,""]
[40,null,null,null,null,null,null,"範囲エラー",null,null,""]
[41,null,null,null,null,null,null,"範囲エラー",null,null,""]
[42,null,null,null,null,null,null,"範囲エラー",null,null,""]
[43,null,null,null,null,null,null,"範囲エラー",null,null,""]
[44,null,null,null,null,null,null,"範囲エラー",null,null,""]
[45,null,null,null,null,null,null,"範囲エラー",null,null,""]
[46,null,null,null,null,null,null,"範囲エラー",null,null,""]
[47,null,null,null,null,null,null,"範囲エラー",null,null,""]
[48,null,null,null,null,null,null,"範囲エラー",null,null,""]
[49,null,null,null,null,null,null,"範囲エラー",null,null,""]
[50,null,null,null,null,null,null,"範囲エラー",null,null,""]
[51,null,null,null,null,null,null,"範囲エラー",null,null,""]
[52,null,null,null,null,null,null,"範囲エラー",null,null,""]
[53,null,null,null,null,null,null,"範囲エラー",null,null,""]
[54,null,null,null,null,null,null,"範囲エラー",null,null,""]
[55,null,null,null,null,null,null,"範囲エラー",null,null,""]
[56,null,null,null,null,null,null,"範囲エラー",null,null,""]
[57,null,null,null,null,null,null,"範囲エラー",null,null,""]
[58,null,null,null,null,null,null,"範囲エラー",null,null,""]
[59,null,null,null,null,null,null,"範囲エラー",null,null,""]
[60,null,null,null,null,null,null,"範囲エラー",null,null,""]
[61,null,null,null,null,null,null,"範囲エラー",null,null,""]
[62,null,null,null,null,null,null,"範囲エラー",null,null,""]
[63,null,null,null,null,null,null,"範囲エラー",null,null,""]
[64,null,null,null,null,null,null,"範囲エラー",null,null,""]
[65,null,null,null,null,null,null,{"$f":"IF(AND(E118>=$C$45,E118<=$C$46),\"\",\"範囲エラー\")","v":"範囲エラー"},null,null,""]
[66,null,null,null,null,null,null,"範囲エラー",null,null,{"$f":"IF(COUNTIF($E$54:$E$150,E119)>1,\"重複\",\"\")","v":""}]
[67,null,null,null,null,null,null,"範囲エラー",null,null,""]
[68,null,null,null,null,null,null,"範囲エラー",null,null,""]
[69,null,null,null,null,null,null,"範囲エラー",null,null,""]
[70,null,null,null,null,null,null,"範囲エラー",null,null,""]
[71,null,null,null,null,null,null,"範囲エラー",null,null,""]
[72,null,null,null,null,null,null,"範囲エラー",null,null,""]
[73,null,null,null,null,null,null,"範囲エラー",null,null,""]
[74,null,null,null,null,null,null,"範囲エラー",null,null,""]
[75,null,null,null,null,null,null,"範囲エラー",null,null,""]
[76,null,null,null,null,null,null,"範囲エラー",null,null,""]
[77,null,null,null,null,null,null,"範囲エラー",null,null,""]
[78,null,null,null,null,null,null,"範囲エラー",null,null,""]
[79,null,null,null,null,null,null,"範囲エラー",null,null,""]
[80,null,null,null,null,null,null,"範囲エラー",null,null,""]

{"sheet":"問題作成_説明中心_5","index":4,"n_rows":123,"n_cols":14,"rows_kept":123,"cut":false,"hidden":false,"merged":[[36,1,36,8],[41,1,41,8],[42,1,42,8],[39,1,39,8],[40,1,40,8],[37,1,37,8],[38,1,38,8],[0,1,0,10],[1,1,1,10],[33,1,33,8],[34,1,34,8],[35,1,35,8]]}
[null,"ITパスポート試験　用語確認問題"]
[null,"　　　年　　　組　　　席　名前"]
[]
[452,{"$f":"IF(ISERROR(VLOOKUP(A4,用語表!$C$3:$E$602,3,0)),\"\",VLOOKUP(A4,用語表!$C$3:$E$602,3,0))","v":"システム方式設計"},null,{"$f":"A31+1","v":480},{"$f":"IF(ISERROR(VLOOKUP(D4,用語表!$C$3:$E$602,3,0)),\"\",VLOOKUP(D4,用語表!$C$3:$E$602,3,0))","v":"プロジェクト"},null,{"$f":"D31+1","v":508},{"$f":"IF(ISERROR(VLOOKUP(G4,用語表!$C$3:$E$602,3,0)),\"\",VLOOKUP(G4,用語表!$C$3:$E$602,3,0))","v":"内部統制"},null,{"$f":"G31+1","v":536},{"$f":"IF(ISERROR(VLOOKUP(J4,用語表!$C$3:$E$602,3,0)),\"\",VLOOKUP(J4,用語表!$C$3:$E$602,3,0))","v":""}]
[{"$f":"A4+1","v":453},{"$f":"IF(ISERROR(VLOOKUP(A5,用語表!$C$3:$E$602,3,0)),\"\",VLOOKUP(A5,用語表!$C$3:$E$602,3,0))","v":"ソフトウェア方式設計"},null,{"$f":"D4+1","v":481},{"$f":"IF(ISERROR(VLOOKUP(D5,用語表!$C$3:$E$602,3,0)),\"\",VLOOKUP(D5,用語表!$C$3:$E$602,3,0))","v":"プロジェクトマネージャー"},null,{"$f":"G4+1","v":509},{"$f":"IF(ISERROR(VLOOKUP(G5,用語表!$C$3:$E$602,3,0)),\"\",VLOOKUP(G5,用語表!$C$3:$E$602,3,0))","v":"コンプライアンス"},null,{"$f":"J4+1","v":537},{"$f":"IF(ISERROR(VLOOKUP(J5,用語表!$C$3:$E$602,3,0)),\"\",VLOOKUP(J5,用語表!$C$3:$E$602,3,0))","v":""}]
[454,{"$f":"IF(ISERROR(VLOOKUP(A6,用語表!$C$3:$E$602,3,0)),\"\",VLOOKUP(A6,用語表!$C$3:$E$602,3,0))","v":"ソフトウェア詳細設計"},null,482,{"$f":"IF(ISERROR(VLOOKUP(D6,用語表!$C$3:$E$602,3,0)),\"\",VLOOKUP(D6,用語表!$C$3:$E$602,3,0))","v":"ＰＤＣＡサイクル"},null,510,{"$f":"IF(ISERROR(VLOOKUP(G6,用語表!$C$3:$E$602,3,0)),\"\",VLOOKUP(G6,用語表!$C$3:$E$602,3,0))","v":"ＣＯＳＯ"},null,538,{"$f":"IF(ISERROR(VLOOKUP(J6,用語表!$C$3:$E$602,3,0)),\"\",VLOOKUP(J6,用語表!$C$3:$E$602,3,0))","v":""}]
[455,{"$f":"IF(ISERROR(VLOOKUP(A7,用語表!$C$3:$E$602,3,0)),\"\",VLOOKUP(A7,用語表!$C$3:$E$602,3,0))","v":"ソフトウェア保守"},null,483,{"$f":"IF(ISERROR(VLOOKUP(D7,用語表!$C$3:$E$602,3,0)),\"\",VLOOKUP(D7,用語表!$C$3:$E$602,3,0))","v":"PDPC"},null,511,{"$f":"IF(ISERROR(VLOOKUP(G7,用語表!$C$3:$E$602,3,0)),\"\",VLOOKUP(G7,用語表!$C$3:$E$602,3,0))","v":"ＩＴガバナンス"},null,539,{"$f":"IF(ISERROR(VLOOKUP(J7,用語表!$C$3:$E$602,3,0)),\"\",VLOOKUP(J7,用語表!$C$3:$E$602,3,0))","v":""}]
[456,{"$f":"IF(ISERROR(VLOOKUP(A8,用語表!$C$3:$E$602,3,0)),\"\",VLOOKUP(A8,用語表!$C$3:$E$602,3,0))","v":"単体テスト"},null,484,{"$f":"IF(ISERROR(VLOOKUP(D8,用語表!$C$3:$E$602,3,0)),\"\",VLOOKUP(D8,用語表!$C$3:$E$602,3,0))","v":"ステークホルダ"},null,512,{"$f":"IF(ISERROR(VLOOKUP(G8,用語表!$C$3:$E$602,3,0)),\"\",VLOOKUP(G8,用語表!$C$3:$E$602,3,0))","v":"基数変換"},null,540,{"$f":"IF(ISERROR(VLOOKUP(J8,用語表!$C$3:$E$602,3,0)),\"\",VLOOKUP(J8,用語表!$C$3:$E$602,3,0))","v":""}]
[457,{"$f":"IF(ISERROR(VLOOKUP(A9,用語表!$C$3:$E$602,3,0)),\"\",VLOOKUP(A9,用語表!$C$3:$E$602,3,0))","v":"ホワイトボックステスト"},null,485,{"$f":"IF(ISERROR(VLOOKUP(D9,用語表!$C$3:$E$602,3,0)),\"\",VLOOKUP(D9,用語表!$C$3:$E$602,3,0))","v":"インセンティブ"},null,513,{"$f":"IF(ISERROR(VLOOKUP(G9,用語表!$C$3:$E$602,3,0)),\"\",VLOOKUP(G9,用語表!$C$3:$E$602,3,0))","v":"二の補数"},null,541,{"$f":"IF(ISERROR(VLOOKUP(J9,用語表!$C$3:$E$602,3,0)),\"\",VLOOKUP(J9,用語表!$C$3:$E$602,3,0))","v":""}]
[458,{"$f":"IF(ISERROR(VLOOKUP(A10,用語表!$C$3:$E$602,3,0)),\"\",VLOOKUP(A10,用語表!$C$3:$E$602,3,0))","v":"ブラックボックステスト"},null,486,{"$f":"IF(ISERROR(VLOOKUP(D10,用語表!$C$3:$E$602,3,0)),\"\",VLOOKUP(D10,用語表!$C$3:$E$602,3,0))","v":"ＰＭＢＯＫ"},null,514,{"$f":"IF(ISERROR(VLOOKUP(G10,用語表!$C$3:$E$602,3,0)),\"\",VLOOKUP(G10,用語表!$C$3:$E$602,3,0))","v":"論理積"},null,542,{"$f":"IF(ISERROR(VLOOKUP(J10,用語表!$C$3:$E$602,3,0)),\"\",VLOOKUP(J10,用語表!$C$3:$E$602,3,0))","v":""}]
[459,{"$f":"IF(ISERROR(VLOOKUP(A11,用語表!$C$3:$E$602,3,0)),\"\",VLOOKUP(A11,用語表!$C$3:$E$602,3,0))","v":"同値分割"},null,487,{"$f":"IF(ISERROR(VLOOKUP(D11,用語表!$C$3:$E$602,3,0)),\"\",VLOOKUP(D11,用語表!$C$3:$E$602,3,0))","v":"コンピテンシ"},null,515,{"$f":"IF(ISERROR(VLOOKUP(G11,用語表!$C$3:$E$602,3,0)),\"\",VLOOKUP(G11,用語表!$C$3:$E$602,3,0))","v":"論理和"},null,543,{"$f":"IF(ISERROR(VLOOKUP(J11,用語表!$C$3:$E$602,3,0)),\"\",VLOOKUP(J11,用語表!$C$3:$E$602,3,0))","v":""}]
[460,{"$f":"IF(ISERROR(VLOOKUP(A12,用語表!$C$3:$E$602,3,0)),\"\",VLOOKUP(A12,用語表!$C$3:$E$602,3,0))","v":"限界値分析"},null,488,{"$f":"IF(ISERROR(VLOOKUP(D12,用語表!$C$3:$E$602,3,0)),\"\",VLOOKUP(D12,用語表!$C$3:$E$602,3,0))","v":"ＷＢＳ"},null,516,{"$f":"IF(ISERROR(VLOOKUP(G12,用語表!$C$3:$E$602,3,0)),\"\",VLOOKUP(G12,用語表!$C$3:$E$602,3,0))","v":"ＥＢＣＤＩＣ"},null,544,{"$f":"IF(ISERROR(VLOOKUP(J12,用語表!$C$3:$E$602,3,0)),\"\",VLOOKUP(J12,用語表!$C$3:$E$602,3,0))","v":""}]
[461,{"$f":"IF(ISERROR(VLOOKUP(A13,用語表!$C$3:$E$602,3,0)),\"\",VLOOKUP(A13,用語表!$C$3:$E$602,3,0))","v":"トップダウンテスト"},null,489,{"$f":"IF(ISERROR(VLOOKUP(D13,用語表!$C$3:$E$602,3,0)),\"\",VLOOKUP(D13,用語表!$C$3:$E$602,3,0))","v":"ＰＥＲＴ図"},null,517,{"$f":"IF(ISERROR(VLOOKUP(G13,用語表!$C$3:$E$602,3,0)),\"\",VLOOKUP(G13,用語表!$C$3:$E$602,3,0))","v":"ＥＵＣ"},null,545,{"$f":"IF(ISERROR(VLOOKUP(J13,用語表!$C$3:$E$602,3,0)),\"\",VLOOKUP(J13,用語表!$C$3:$E$602,3,0))","v":""}]
[462,{"$f":"IF(ISERROR(VLOOKUP(A14,用語表!$C$3:$E$602,3,0)),\"\",VLOOKUP(A14,用語表!$C$3:$E$602,3,0))","v":"ボトムアップテスト"},null,490,{"$f":"IF(ISERROR(VLOOKUP(D14,用語表!$C$3:$E$602,3,0)),\"\",VLOOKUP(D14,用語表!$C$3:$E$602,3,0))","v":"ガントチャート"},null,518,{"$f":"IF(ISERROR(VLOOKUP(G14,用語表!$C$3:$E$602,3,0)),\"\",VLOOKUP(G14,用語表!$C$3:$E$602,3,0))","v":"シフトＪＩＳ"},null,546,{"$f":"IF(ISERROR(VLOOKUP(J14,用語表!$C$3:$E$602,3,0)),\"\",VLOOKUP(J14,用語表!$C$3:$E$602,3,0))","v":""}]
[463,{"$f":"IF(ISERROR(VLOOKUP(A15,用語表!$C$3:$E$602,3,0)),\"\",VLOOKUP(A15,用語表!$C$3:$E$602,3,0))","v":"サンドイッチテスト"},null,491,{"$f":"IF(ISERROR(VLOOKUP(D15,用語表!$C$3:$E$602,3,0)),\"\",VLOOKUP(D15,用語表!$C$3:$E$602,3,0))","v":"マイルストーン"},null,519,{"$f":"IF(ISERROR(VLOOKUP(G15,用語表!$C$3:$E$602,3,0)),\"\",VLOOKUP(G15,用語表!$C$3:$E$602,3,0))","v":"Ｕｎｉｃｏｄｅ"},null,547,{"$f":"IF(ISERROR(VLOOKUP(J15,用語表!$C$3:$E$602,3,0)),\"\",VLOOKUP(J15,用語表!$C$3:$E$602,3,0))","v":""}]
[464,{"$f":"IF(ISERROR(VLOOKUP(A16,用語表!$C$3:$E$602,3,0)),\"\",VLOOKUP(A16,用語表!$C$3:$E$602,3,0))","v":"ビックバンテスト"},null,492,{"$f":"IF(ISERROR(VLOOKUP(D16,用語表!$C$3:$E$602,3,0)),\"\",VLOOKUP(D16,用語表!$C$3:$E$602,3,0))","v":"進捗管理"},null,520,{"$f":"IF(ISERROR(VLOOKUP(G16,用語表!$C$3:$E$602,3,0)),\"\",VLOOKUP(G16,用語表!$C$3:$E$602,3,0))","v":"RSS"},null,548,{"$f":"IF(ISERROR(VLOOKUP(J16,用語表!$C$3:$E$602,3,0)),\"\",VLOOKUP(J16,用語表!$C$3:$E$602,3,0))","v":""}]
[465,{"$f":"IF(ISERROR(VLOOKUP(A17,用語表!$C$3:$E$602,3,0)),\"\",VLOOKUP(A17,用語表!$C$3:$E$602,3,0))","v":"リグレッションテスト"},null,493,{"$f":"IF(ISERROR(VLOOKUP(D17,用語表!$C$3:$E$602,3,0)),\"\",VLOOKUP(D17,用語表!$C$3:$E$602,3,0))","v":"BCP(事業継続計画)"},null,521,{"$f":"IF(ISERROR(VLOOKUP(G17,用語表!$C$3:$E$602,3,0)),\"\",VLOOKUP(G17,用語表!$C$3:$E$602,3,0))","v":"ソーシャルブックマークサービス"},null,549,{"$f":"IF(ISERROR(VLOOKUP(J17,用語表!$C$3:$E$602,3,0)),\"\",VLOOKUP(J17,用語表!$C$3:$E$602,3,0))","v":""}]
[466,{"$f":"IF(ISERROR(VLOOKUP(A18,用語表!$C$3:$E$602,3,0)),\"\",VLOOKUP(A18,用語表!$C$3:$E$602,3,0))","v":"プログラムステップ法"},null,494,{"$f":"IF(ISERROR(VLOOKUP(D18,用語表!$C$3:$E$602,3,0)),\"\",VLOOKUP(D18,用語表!$C$3:$E$602,3,0))","v":"ＥＶＭ"},null,522,{"$f":"IF(ISERROR(VLOOKUP(G18,用語表!$C$3:$E$602,3,0)),\"\",VLOOKUP(G18,用語表!$C$3:$E$602,3,0))","v":"CSS"},null,550,{"$f":"IF(ISERROR(VLOOKUP(J18,用語表!$C$3:$E$602,3,0)),\"\",VLOOKUP(J18,用語表!$C$3:$E$602,3,0))","v":""}]
[467,{"$f":"IF(ISERROR(VLOOKUP(A19,用語表!$C$3:$E$602,3,0)),\"\",VLOOKUP(A19,用語表!$C$3:$E$602,3,0))","v":"ファンクション・ポイント法"},null,495,{"$f":"IF(ISERROR(VLOOKUP(D19,用語表!$C$3:$E$602,3,0)),\"\",VLOOKUP(D19,用語表!$C$3:$E$602,3,0))","v":"ソフトウェア品質特性(JIS X 0129-1)"},null,523,{"$f":"IF(ISERROR(VLOOKUP(G19,用語表!$C$3:$E$602,3,0)),\"\",VLOOKUP(G19,用語表!$C$3:$E$602,3,0))","v":"アルゴリズム"},null,551,{"$f":"IF(ISERROR(VLOOKUP(J19,用語表!$C$3:$E$602,3,0)),\"\",VLOOKUP(J19,用語表!$C$3:$E$602,3,0))","v":""}]
[468,{"$f":"IF(ISERROR(VLOOKUP(A20,用語表!$C$3:$E$602,3,0)),\"\",VLOOKUP(A20,用語表!$C$3:$E$602,3,0))","v":"システム特性係数"},null,496,{"$f":"IF(ISERROR(VLOOKUP(D20,用語表!$C$3:$E$602,3,0)),\"\",VLOOKUP(D20,用語表!$C$3:$E$602,3,0))","v":"ＩＴサービスマネジメント"},null,524,{"$f":"IF(ISERROR(VLOOKUP(G20,用語表!$C$3:$E$602,3,0)),\"\",VLOOKUP(G20,用語表!$C$3:$E$602,3,0))","v":"リスト"},null,552,{"$f":"IF(ISERROR(VLOOKUP(J20,用語表!$C$3:$E$602,3,0)),\"\",VLOOKUP(J20,用語表!$C$3:$E$602,3,0))","v":""}]
[469,{"$f":"IF(ISERROR(VLOOKUP(A21,用語表!$C$3:$E$602,3,0)),\"\",VLOOKUP(A21,用語表!$C$3:$E$602,3,0))","v":"ウォータフォールモデル"},null,497,{"$f":"IF(ISERROR(VLOOKUP(D21,用語表!$C$3:$E$602,3,0)),\"\",VLOOKUP(D21,用語表!$C$3:$E$602,3,0))","v":"ＩＴＩＬ"},null,525,{"$f":"IF(ISERROR(VLOOKUP(G21,用語表!$C$3:$E$602,3,0)),\"\",VLOOKUP(G21,用語表!$C$3:$E$602,3,0))","v":"スタック"},null,553,{"$f":"IF(ISERROR(VLOOKUP(J21,用語表!$C$3:$E$602,3,0)),\"\",VLOOKUP(J21,用語表!$C$3:$E$602,3,0))","v":""}]
[470,{"$f":"IF(ISERROR(VLOOKUP(A22,用語表!$C$3:$E$602,3,0)),\"\",VLOOKUP(A22,用語表!$C$3:$E$602,3,0))","v":"プロトタイピングモデル"},null,498,{"$f":"IF(ISERROR(VLOOKUP(D22,用語表!$C$3:$E$602,3,0)),\"\",VLOOKUP(D22,用語表!$C$3:$E$602,3,0))","v":"ベンチマーキング"},null,526,{"$f":"IF(ISERROR(VLOOKUP(G22,用語表!$C$3:$E$602,3,0)),\"\",VLOOKUP(G22,用語表!$C$3:$E$602,3,0))","v":"キュー"},null,554,{"$f":"IF(ISERROR(VLOOKUP(J22,用語表!$C$3:$E$602,3,0)),\"\",VLOOKUP(J22,用語表!$C$3:$E$602,3,0))","v":""}]
[471,{"$f":"IF(ISERROR(VLOOKUP(A23,用語表!$C$3:$E$602,3,0)),\"\",VLOOKUP(A23,用語表!$C$3:$E$602,3,0))","v":"スパイラルモデル"},null,499,{"$f":"IF(ISERROR(VLOOKUP(D23,用語表!$C$3:$E$602,3,0)),\"\",VLOOKUP(D23,用語表!$C$3:$E$602,3,0))","v":"ベストプラクティス"},null,527,{"$f":"IF(ISERROR(VLOOKUP(G23,用語表!$C$3:$E$602,3,0)),\"\",VLOOKUP(G23,用語表!$C$3:$E$602,3,0))","v":"フローチャート"},null,555,{"$f":"IF(ISERROR(VLOOKUP(J23,用語表!$C$3:$E$602,3,0)),\"\",VLOOKUP(J23,用語表!$C$3:$E$602,3,0))","v":""}]
[472,{"$f":"IF(ISERROR(VLOOKUP(A24,用語表!$C$3:$E$602,3,0)),\"\",VLOOKUP(A24,用語表!$C$3:$E$602,3,0))","v":"RAD"},null,500,{"$f":"IF(ISERROR(VLOOKUP(D24,用語表!$C$3:$E$602,3,0)),\"\",VLOOKUP(D24,用語表!$C$3:$E$602,3,0))","v":"サービスサポート"},null,528,{"$f":"IF(ISERROR(VLOOKUP(G24,用語表!$C$3:$E$602,3,0)),\"\",VLOOKUP(G24,用語表!$C$3:$E$602,3,0))","v":"構造化プログラミング"},null,556,{"$f":"IF(ISERROR(VLOOKUP(J24,用語表!$C$3:$E$602,3,0)),\"\",VLOOKUP(J24,用語表!$C$3:$E$602,3,0))","v":""}]
[473,{"$f":"IF(ISERROR(VLOOKUP(A25,用語表!$C$3:$E$602,3,0)),\"\",VLOOKUP(A25,用語表!$C$3:$E$602,3,0))","v":"CASEツール"},null,501,{"$f":"IF(ISERROR(VLOOKUP(D25,用語表!$C$3:$E$602,3,0)),\"\",VLOOKUP(D25,用語表!$C$3:$E$602,3,0))","v":"インシデント管理"},null,529,{"$f":"IF(ISERROR(VLOOKUP(G25,用語表!$C$3:$E$602,3,0)),\"\",VLOOKUP(G25,用語表!$C$3:$E$602,3,0))","v":"二分探索法"},null,557,{"$f":"IF(ISERROR(VLOOKUP(J25,用語表!$C$3:$E$602,3,0)),\"\",VLOOKUP(J25,用語表!$C$3:$E$602,3,0))","v":""}]
[474,{"$f":"IF(ISERROR(VLOOKUP(A26,用語表!$C$3:$E$602,3,0)),\"\",VLOOKUP(A26,用語表!$C$3:$E$602,3,0))","v":"構造化手法"},null,502,{"$f":"IF(ISERROR(VLOOKUP(D26,用語表!$C$3:$E$602,3,0)),\"\",VLOOKUP(D26,用語表!$C$3:$E$602,3,0))","v":"サービスデスク"},null,530,{"$f":"IF(ISERROR(VLOOKUP(G26,用語表!$C$3:$E$602,3,0)),\"\",VLOOKUP(G26,用語表!$C$3:$E$602,3,0))","v":"バブルソート"},null,558,{"$f":"IF(ISERROR(VLOOKUP(J26,用語表!$C$3:$E$602,3,0)),\"\",VLOOKUP(J26,用語表!$C$3:$E$602,3,0))","v":""}]
[475,{"$f":"IF(ISERROR(VLOOKUP(A27,用語表!$C$3:$E$602,3,0)),\"\",VLOOKUP(A27,用語表!$C$3:$E$602,3,0))","v":"CMMＩ"},null,503,{"$f":"IF(ISERROR(VLOOKUP(D27,用語表!$C$3:$E$602,3,0)),\"\",VLOOKUP(D27,用語表!$C$3:$E$602,3,0))","v":"サービスデリバリ"},null,531,{"$f":"IF(ISERROR(VLOOKUP(G27,用語表!$C$3:$E$602,3,0)),\"\",VLOOKUP(G27,用語表!$C$3:$E$602,3,0))","v":"プログラム言語"},null,559,{"$f":"IF(ISERROR(VLOOKUP(J27,用語表!$C$3:$E$602,3,0)),\"\",VLOOKUP(J27,用語表!$C$3:$E$602,3,0))","v":""}]
[476,{"$f":"IF(ISERROR(VLOOKUP(A28,用語表!$C$3:$E$602,3,0)),\"\",VLOOKUP(A28,用語表!$C$3:$E$602,3,0))","v":"プロセス中心設計（ＰＯＡ）"},null,504,{"$f":"IF(ISERROR(VLOOKUP(D28,用語表!$C$3:$E$602,3,0)),\"\",VLOOKUP(D28,用語表!$C$3:$E$602,3,0))","v":"ＳＬＭ"},null,532,{"$f":"IF(ISERROR(VLOOKUP(G28,用語表!$C$3:$E$602,3,0)),\"\",VLOOKUP(G28,用語表!$C$3:$E$602,3,0))","v":"IDE(統合開発環境)"},null,560,{"$f":"IF(ISERROR(VLOOKUP(J28,用語表!$C$3:$E$602,3,0)),\"\",VLOOKUP(J28,用語表!$C$3:$E$602,3,0))","v":""}]
[477,{"$f":"IF(ISERROR(VLOOKUP(A29,用語表!$C$3:$E$602,3,0)),\"\",VLOOKUP(A29,用語表!$C$3:$E$602,3,0))","v":"データ中心設計（ＤＯＡ）"},null,505,{"$f":"IF(ISERROR(VLOOKUP(D29,用語表!$C$3:$E$602,3,0)),\"\",VLOOKUP(D29,用語表!$C$3:$E$602,3,0))","v":"ＳＬＡ"},null,533,{"$f":"IF(ISERROR(VLOOKUP(G29,用語表!$C$3:$E$602,3,0)),\"\",VLOOKUP(G29,用語表!$C$3:$E$602,3,0))","v":"コンパイラ"},null,561,{"$f":"IF(ISERROR(VLOOKUP(J29,用語表!$C$3:$E$602,3,0)),\"\",VLOOKUP(J29,用語表!$C$3:$E$602,3,0))","v":""}]
[478,{"$f":"IF(ISERROR(VLOOKUP(A30,用語表!$C$3:$E$602,3,0)),\"\",VLOOKUP(A30,用語表!$C$3:$E$602,3,0))","v":"オブジェクト指向設計"},null,506,{"$f":"IF(ISERROR(VLOOKUP(D30,用語表!$C$3:$E$602,3,0)),\"\",VLOOKUP(D30,用語表!$C$3:$E$602,3,0))","v":"ファシリティマネジメント"},null,534,{"$f":"IF(ISERROR(VLOOKUP(G30,用語表!$C$3:$E$602,3,0)),\"\",VLOOKUP(G30,用語表!$C$3:$E$602,3,0))","v":"インタプリタ"},null,562,{"$f":"IF(ISERROR(VLOOKUP(J30,用語表!$C$3:$E$602,3,0)),\"\",VLOOKUP(J30,用語表!$C$3:$E$602,3,0))","v":""}]
[479,{"$f":"IF(ISERROR(VLOOKUP(A31,用語表!$C$3:$E$602,3,0)),\"\",VLOOKUP(A31,用語表!$C$3:$E$602,3,0))","v":"プロジェクト憲章"},null,507,{"$f":"IF(ISERROR(VLOOKUP(D31,用語表!$C$3:$E$602,3,0)),\"\",VLOOKUP(D31,用語表!$C$3:$E$602,3,0))","v":"システム監査"},null,535,{"$f":"IF(ISERROR(VLOOKUP(G31,用語表!$C$3:$E$602,3,0)),\"\",VLOOKUP(G31,用語表!$C$3:$E$602,3,0))","v":"マークアップ言語"},null,563,{"$f":"IF(ISERROR(VLOOKUP(J31,用語表!$C$3:$E$602,3,0)),\"\",VLOOKUP(J31,用語表!$C$3:$E$602,3,0))","v":""}]
[]
[null,{"$f":"\"出題範囲=\"&C45&\":\"&C46","v":"出題範囲=472:511"},null,null,{"$f":"\"印刷範囲=\"&C49&\":\"&C50","v":"印刷範囲=31:40"},null,null,null,null,7]
[1,{"$f":"IF(ISERROR(VLOOKUP(J34,用語表!$C$3:$E$537,2)),\"\",VLOOKUP(J34,用語表!$C$3:$E$537,2))","v":"システムやプログラムを機能と機能間のデータに着目して階層構造的に分解していく手法。"},null,null,null,null,null,null,null,474,null,null,{"$f":"J34","v":474},{"$f":"IFERROR(VLOOKUP(J34,用語表!$C$3:$E$537,3,0),\"\")&\"  \"&VLOOKUP(J34,用語表!$C$3:$F$537,4,0)","v":"構造化手法  "}]
[2,{"$f":"IF(ISERROR(VLOOKUP(J35,用語表!$C$3:$E$537,2)),\"\",VLOOKUP(J35,用語表!$C$3:$E$537,2))","v":"ソフトウェア開発において、機能に着目して分析・設計していく手法。その特徴は、①人が業務を理解する方法に似ている。　②処理内容が変更された場合の修正が大幅になる。"},null,null,null,null,null,null,null,476,null,null,476,{"$f":"IFERROR(VLOOKUP(J35,用語表!$C$3:$E$537,3,0),\"\")&\"  \"&VLOOKUP(J35,用語表!$C$3:$F$537,4,0)","v":"プロセス中心設計（ＰＯＡ）  "}]
[3,{"$f":"IF(ISERROR(VLOOKUP(J36,用語表!$C$3:$E$537,2)),\"\",VLOOKUP(J36,用語表!$C$3:$E$537,2))","v":"業務改善の目標となる模範的な成功事例のことで、ベンチマーキングによって見つけ出す。"},null,null,null,null,null,null,null,499,null,null,499,{"$f":"IFERROR(VLOOKUP(J36,用語表!$C$3:$E$537,3,0),\"\")&\"  \"&VLOOKUP(J36,用語表!$C$3:$F$537,4,0)","v":"ベストプラクティス  "}]
[4,{"$f":"IF(ISERROR(VLOOKUP(J37,用語表!$C$3:$E$537,2)),\"\",VLOOKUP(J37,用語表!$C$3:$E$537,2))","v":"工程管理図ともいわれるように、作業の進み具合を表す図。予定と実績を記入し、予定に対して進んでいるのか遅れているのか、一目でわかるようにしたもの。"},null,null,null,null,null,null,null,490,null,null,490,{"$f":"IFERROR(VLOOKUP(J37,用語表!$C$3:$E$537,3,0),\"\")&\"  \"&VLOOKUP(J37,用語表!$C$3:$F$537,4,0)","v":"ガントチャート  "}]
[5,{"$f":"IF(ISERROR(VLOOKUP(J38,用語表!$C$3:$E$537,2)),\"\",VLOOKUP(J38,用語表!$C$3:$E$537,2))","v":"プロジェクトの進行の上で起こりうる事態を予想し、それが望ましい結果に結びつくように、あらかじめ複数の道筋を立てることで、円滑にプロジェクトを進めようとすること。"},null,null,null,null,null,null,null,483,null,null,483,{"$f":"IFERROR(VLOOKUP(J38,用語表!$C$3:$E$537,3,0),\"\")&\"  \"&VLOOKUP(J38,用語表!$C$3:$F$537,4,0)","v":"PDPC  Process Decision Program Chart"}]
[6,{"$f":"IF(ISERROR(VLOOKUP(J39,用語表!$C$3:$E$537,2)),\"\",VLOOKUP(J39,用語表!$C$3:$E$537,2))","v":"業務などを改善するときに、計画(Plan)、実行(Do)、確認(Check)、改善(Action)を繰り返す方法。"},null,null,null,null,null,null,null,482,null,null,482,{"$f":"IFERROR(VLOOKUP(J39,用語表!$C$3:$E$537,3,0),\"\")&\"  \"&VLOOKUP(J39,用語表!$C$3:$F$537,4,0)","v":"ＰＤＣＡサイクル  Plan-Do-Check-Act"}]
[7,{"$f":"IF(ISERROR(VLOOKUP(J40,用語表!$C$3:$E$537,2)),\"\",VLOOKUP(J40,用語表!$C$3:$E$537,2))","v":"コンピュータやネットワークを含めた施設や設備を管理すること。経営の視点から、建物や設備などの不動産の保有、運用、維持などを最適化する手法。コストを低減するとともに、働く人にとって魅力的な施設を実現する。　　例　IT関連設備について、最適な使われ方をしているかを常に監視し改善すること。"},null,null,null,null,null,null,null,506,null,null,506,{"$f":"IFERROR(VLOOKUP(J40,用語表!$C$3:$E$537,3,0),\"\")&\"  \"&VLOOKUP(J40,用語表!$C$3:$F$537,4,0)","v":"ファシリティマネジメント  "}]
[8,{"$f":"IF(ISERROR(VLOOKUP(J41,用語表!$C$3:$E$537,2)),\"\",VLOOKUP(J41,用語表!$C$3:$E$537,2))","v":"「コンピュータ支援ソフトウェア工学」の略。システム開発支援ツールと開発方法論の統合、システム開発作業の効率化を目的としている。"},null,null,null,null,null,null,null,473,null,null,473,{"$f":"IFERROR(VLOOKUP(J41,用語表!$C$3:$E$537,3,0),\"\")&\"  \"&VLOOKUP(J41,用語表!$C$3:$F$537,4,0)","v":"CASEツール  Computer Aided Software Engineering"}]
[9,{"$f":"IF(ISERROR(VLOOKUP(J42,用語表!$C$3:$E$537,2)),\"\",VLOOKUP(J42,用語表!$C$3:$E$537,2))","v":"直面する複雑な問題の解決や特定の目的達成のために業務終了までの期間限定で編成される組織による活動"},null,null,null,null,null,null,null,480,null,null,480,{"$f":"IFERROR(VLOOKUP(J42,用語表!$C$3:$E$537,3,0),\"\")&\"  \"&VLOOKUP(J42,用語表!$C$3:$F$537,4,0)","v":"プロジェクト  "}]
[10,{"$f":"IF(ISERROR(VLOOKUP(J43,用語表!$C$3:$E$537,2)),\"\",VLOOKUP(J43,用語表!$C$3:$E$537,2))","v":"経営の立場からITをマネジメントすること。組織体、共同体がITを導入、活用するに当たり、目的と戦略を適切に設定し、その効果やリスクを測定、評価して、理想とするIT活用を実現するメカニズムをその組織の中に確立すること。"},null,null,null,null,null,null,null,511,null,null,511,{"$f":"IFERROR(VLOOKUP(J43,用語表!$C$3:$E$537,3,0),\"\")&\"  \"&VLOOKUP(J43,用語表!$C$3:$F$537,4,0)","v":"ＩＴガバナンス  IT governanceの略"}]
[]
[null,"開始問題番号",472,null,null,null,null,null,null,null,null,null,null,"０　「開始問題番号」と「終了問題番号」を入力する。"]
[null,"終了問題番号",511,null,null,null,null,null,null,null,null,null,null,"1～１１１までの問題番号"]
[null,"問題数",{"$f":"C46-C45+1","v":40}]
[null,"問題印刷枚数",16,null,null,null,null,null,null,null,null,null,null,"１　問題数の行分の乱数を設定する。"]
[null,"E列　印刷開始問題番号",31,null,null,null,null,null,null,null,null,null,null,"例　問題数が３８の場合は、行５４から行９１まで"]
[null,"E列　印刷終了問題番号",40]
[null,null,null,null,null,null,null,null,null,null,null,null,null,"２　問題番号を値複写する。"]
[]
["問題数","乱数＆問題番号",null,null,"値複写（作成する問題番号）",null,null,"用語範囲の確認（範囲エラー）",null,null,"重複の確認（\"重複\"の表示）",null,null,"３　「印刷開始問題番号」を入力して「問題の作成」ボタンを押す。"]
[1,{"$f":"RAND()","v":0.57474724740759864},{"$f":"RANK(B54,$B$54:$B$120)+$C$45-1","v":485},null,481,null,null,{"$f":"IF(AND(E54>=$C$45,E54<=$C$46),\"\",\"範囲エラー\")","v":""},null,null,{"$f":"IF(COUNTIF($E$54:E120,E54)>1,\"重複\",\"\")","v":""}]
[2,0.31742436113580186,{"$f":"RANK(B55,$B$54:$B$120)+$C$45-1","v":494},null,487,null,null,"",null,null,{"$f":"IF(COUNTIF($E$54:E121,E55)>1,\"重複\",\"\")","v":""},null,null,"４　「問題印刷枚数」を入力して「問題の印刷」を押す。"]
[3,0.24227891449594252,496,null,496,null,null,"",null,null,{"$f":"IF(COUNTIF($E$54:E122,E56)>1,\"重複\",\"\")","v":""}]
[4,0.11608822014317688,506,null,486,null,null,"",null,null,{"$f":"IF(COUNTIF($E$54:E123,E57)>1,\"重複\",\"\")","v":""},null,null,"５　「解答の印刷」を押す。"]
[5,0.68263458368391883,480,null,508,null,null,"",null,null,{"$f":"IF(COUNTIF($E$54:E124,E58)>1,\"重複\",\"\")","v":""}]
[6,0.96760739027786991,474,null,477,null,null,"",null,null,{"$f":"IF(COUNTIF($E$54:E125,E59)>1,\"重複\",\"\")","v":""}]
[7,0.34819513104230615,492,null,494,null,null,"",null,null,{"$f":"IF(COUNTIF($E$54:E126,E60)>1,\"重複\",\"\")","v":""}]
[8,0.15595809397379012,503,null,484,null,null,"",null,null,{"$f":"IF(COUNTIF($E$54:E127,E61)>1,\"重複\",\"\")","v":""}]
[9,0.62832408914730786,483,null,505,null,null,"",null,null,{"$f":"IF(COUNTIF($E$54:E128,E62)>1,\"重複\",\"\")","v":""}]
[10,0.34727204380055421,493,null,478,null,null,"",null,null,{"$f":"IF(COUNTIF($E$54:E129,E63)>1,\"重複\",\"\")","v":""}]
[11,0.42347101620999661,{"$f":"RANK(B64,$B$54:$B$120)+$C$45-1","v":488},null,498,null,null,"",null,null,{"$f":"IF(COUNTIF($E$54:E130,E64)>1,\"重複\",\"\")","v":""}]
[12,0.50189572138932592,487,null,504,null,null,"",null,null,{"$f":"IF(COUNTIF($E$54:E131,E65)>1,\"重複\",\"\")","v":""}]
[13,0.21664024442621554,497,null,509,null,null,"",null,null,{"$f":"IF(COUNTIF($E$54:E132,E66)>1,\"重複\",\"\")","v":""}]
[14,0.93821360962669687,475,null,491,null,null,"",null,null,{"$f":"IF(COUNTIF($E$54:E133,E67)>1,\"重複\",\"\")","v":""}]
[15,5.3993115309755702E-2,511,null,485,null,null,"",null,null,{"$f":"IF(COUNTIF($E$54:E134,E68)>1,\"重複\",\"\")","v":""}]
[16,0.993984978114966,472,null,489,null,null,"",null,null,{"$f":"IF(COUNTIF($E$54:E135,E69)>1,\"重複\",\"\")","v":""}]
[17,0.19140956255290964,{"$f":"RANK(B70,$B$54:$B$120)+$C$45-1","v":500},null,502,null,null,"",null,null,{"$f":"IF(COUNTIF($E$54:E136,E70)>1,\"重複\",\"\")","v":""}]
[18,0.79893558904015027,478,null,493,null,null,"",null,null,{"$f":"IF(COUNTIF($E$54:E137,E71)>1,\"重複\",\"\")","v":""}]
[19,0.10017875526480524,508,null,503,null,null,"",null,null,{"$f":"IF(COUNTIF($E$54:E138,E72)>1,\"重複\",\"\")","v":""}]
[20,0.20074037407353273,499,null,497,null,null,"",null,null,{"$f":"IF(COUNTIF($E$54:E139,E73)>1,\"重複\",\"\")","v":""}]
[21,0.61977637302485267,{"$f":"RANK(B74,$B$54:$B$120)+$C$45-1","v":484},null,501,null,null,null,null,null,{"$f":"IF(COUNTIF($E$54:E140,E74)>1,\"重複\",\"\")","v":""}]
[22,0.64550932082588108,482,null,472,null,null,null,null,null,{"$f":"IF(COUNTIF($E$54:E141,E75)>1,\"重複\",\"\")","v":""}]
[23,0.9781777113538056,473,null,492,null,null,null,null,null,{"$f":"IF(COUNTIF($E$54:E142,E76)>1,\"重複\",\"\")","v":""}]
[24,0.66140037577801092,481,null,495,null,null,null,null,null,{"$f":"IF(COUNTIF($E$54:E143,E77)>1,\"重複\",\"\")","v":""}]
[25,0.80931776342204098,477,null,500,null,null,null,null,null,{"$f":"IF(COUNTIF($E$54:E144,E78)>1,\"重複\",\"\")","v":""}]
[26,0.40517193107023308,489,null,507,null,null,null,null,null,{"$f":"IF(COUNTIF($E$54:E145,E79)>1,\"重複\",\"\")","v":""}]
[27,0.14451531058827216,505,null,488,null,null,null,null,null,{"$f":"IF(COUNTIF($E$54:E146,E80)>1,\"重複\",\"\")","v":""}]
[28,0.21303329585381514,498,null,479,null,null,null,null,null,{"$f":"IF(COUNTIF($E$54:E147,E81)>1,\"重複\",\"\")","v":""}]
[29,0.16537686497228088,502,null,475,null,null,null,null,null,{"$f":"IF(COUNTIF($E$54:E148,E82)>1,\"重複\",\"\")","v":""}]
[30,0.15508439587213541,504,null,510,null,null,null,null,null,{"$f":"IF(COUNTIF($E$54:E149,E83)>1,\"重複\",\"\")","v":""}]
[31,0.16595986728473211,501,null,474,null,null,null,null,null,{"$f":"IF(COUNTIF($E$54:E150,E84)>1,\"重複\",\"\")","v":""}]
[32,0.10878794831975991,507,null,476,null,null,null,null,null,{"$f":"IF(COUNTIF($E$54:E151,E85)>1,\"重複\",\"\")","v":""}]
[33,0.56671311616038778,486,null,499,null,null,null,null,null,{"$f":"IF(COUNTIF($E$54:E152,E86)>1,\"重複\",\"\")","v":""}]
[34,8.5290627480447578E-2,510,null,490,null,null,null,null,null,{"$f":"IF(COUNTIF($E$54:E153,E87)>1,\"重複\",\"\")","v":""}]
[35,0.75362406958491635,479,null,483,null,null,null,null,null,{"$f":"IF(COUNTIF($E$54:E154,E88)>1,\"重複\",\"\")","v":""}]
[36,9.7287949009602026E-2,509,null,482,null,null,null,null,null,{"$f":"IF(COUNTIF($E$54:E155,E89)>1,\"重複\",\"\")","v":""}]
[37,0.36834089634892619,491,null,506,null,null,null,null,null,{"$f":"IF(COUNTIF($E$54:E156,E90)>1,\"重複\",\"\")","v":""}]
[38,0.87611372729557657,476,null,473,null,null,null,null,null,{"$f":"IF(COUNTIF($E$54:E157,E91)>1,\"重複\",\"\")","v":""}]
[39,0.29334182228052463,495,null,480,null,null,null,null,null,{"$f":"IF(COUNTIF($E$54:E158,E92)>1,\"重複\",\"\")","v":""}]
[40,0.39726763167966983,490,null,511,null,null,null,null,null,{"$f":"IF(COUNTIF($E$54:E159,E93)>1,\"重複\",\"\")","v":""}]
[41,null,null,null,null,null,null,null,null,null,{"$f":"IF(COUNTIF($E$54:E160,E94)>1,\"重複\",\"\")","v":""}]
[42,null,null,null,null,null,null,null,null,null,{"$f":"IF(COUNTIF($E$54:E161,E95)>1,\"重複\",\"\")","v":""}]
[43,null,null,null,null,null,null,null,null,null,{"$f":"IF(COUNTIF($E$54:E162,E96)>1,\"重複\",\"\")","v":""}]
[44,null,null,null,null,null,null,null,null,null,{"$f":"IF(COUNTIF($E$54:E163,E97)>1,\"重複\",\"\")","v":""}]
[45,null,null,null,null,null,null,null,null,null,{"$f":"IF(COUNTIF($E$54:E164,E98)>1,\"重複\",\"\")","v":""}]
[46,null,null,null,null,null,null,null,null,null,{"$f":"IF(COUNTIF($E$54:E165,E99)>1,\"重複\",\"\")","v":""}]
[47,null,null,null,null,null,null,null,null,null,{"$f":"IF(COUNTIF($E$54:E166,E100)>1,\"重複\",\"\")","v":""}]
[48,null,null,null,null,null,null,null,null,null,{"$f":"IF(COUNTIF($E$54:E167,E101)>1,\"重複\",\"\")","v":""}]
[49,null,null,null,null,null,null,null,null,null,{"$f":"IF(COUNTIF($E$54:E168,E102)>1,\"重複\",\"\")","v":""}]
[50,null,null,null,null,null,null,null,null,null,{"$f":"IF(COUNTIF($E$54:E169,E103)>1,\"重複\",\"\")","v":""}]
[51,null,null,null,null,null,null,null,null,null,{"$f":"IF(COUNTIF($E$54:E170,E104)>1,\"重複\",\"\")","v":""}]
[52,null,null,null,null,null,null,null,null,null,{"$f":"IF(COUNTIF($E$54:E171,E105)>1,\"重複\",\"\")","v":""}]
[53,null,null,null,null,null,null,null,null,null,{"$f":"IF(COUNTIF($E$54:E172,E106)>1,\"重複\",\"\")","v":""}]
[54,null,null,null,null,null,null,null,null,null,{"$f":"IF(COUNTIF($E$54:E173,E107)>1,\"重複\",\"\")","v":""}]
[55,null,null,null,null,null,null,null,null,null,{"$f":"IF(COUNTIF($E$54:E174,E108)>1,\"重複\",\"\")","v":""}]
[56,null,null,null,null,null,null,null,null,null,{"$f":"IF(COUNTIF($E$54:E175,E109)>1,\"重複\",\"\")","v":""}]
[57,null,null,null,null,null,null,null,null,null,{"$f":"IF(COUNTIF($E$54:E176,E110)>1,\"重複\",\"\")","v":""}]
[58,null,null,null,null,null,null,null,null,null,{"$f":"IF(COUNTIF($E$54:E177,E111)>1,\"重複\",\"\")","v":""}]
[59,null,null,null,null,null,null,null,null,null,{"$f":"IF(COUNTIF($E$54:E178,E112)>1,\"重複\",\"\")","v":""}]
[60,null,null,null,null,null,null,null,null,null,{"$f":"IF(COUNTIF($E$54:E179,E113)>1,\"重複\",\"\")","v":""}]
[61]
[62]
[63]
[64]
[65]
[66]
[67]
[68]
[69]
[70]

{"sheet":"問題作成_用語中心","index":5,"n_rows":93,"n_cols":14,"rows_kept":93,"cut":false,"hidden":false,"merged":[[37,2,37,5],[42,2,42,5],[41,2,41,5],[40,2,40,5],[39,2,39,5],[38,2,38,5],[0,2,0,11],[1,2,1,11],[33,2,33,5],[34,2,34,5],[36,2,36,5],[35,2,35,5]]}
[null,null,"ITパスポート試験　用語確認問題"]
[null,null,"　　　年　　　組　　　席　名前"]
[]
[null,1,null,null,29,null,null,57,null,null,85]
[null,2,null,null,30,null,null,58,null,null,86]
[null,3,null,null,31,null,null,59,null,null,87]
[null,4,null,null,32,null,null,60,null,null,88]
[null,5,null,null,33,null,null,61,null,null,89]
[null,6,null,null,34,null,null,62,null,null,90]
[null,7,null,null,35,null,null,63,null,null,91]
[null,8,null,null,36,null,null,64,null,null,92]
[null,9,null,null,37,null,null,65,null,null,93]
[null,10,null,null,38,null,null,66,null,null,94]
[null,11,null,null,39,null,null,67,null,null,95]
[null,12,null,null,40,null,null,68,null,null,96]
[null,13,null,null,41,null,null,69,null,null,97]
[null,14,null,null,42,null,null,70,null,null,98]
[null,15,null,null,43,null,null,71,null,null,99]
[null,16,null,null,44,null,null,72,null,null,100]
[null,17,null,null,45,null,null,73,null,null,101]
[null,18,null,null,46,null,null,74,null,null,102]
[null,19,null,null,47,null,null,75,null,null,103]
[null,20,null,null,48,null,null,76,null,null,104]
[null,21,null,null,49,null,null,77,null,null,105]
[null,22,null,null,50,null,null,78,null,null,106]
[null,23,null,null,51,null,null,79,null,null,107]
[null,24,null,null,52,null,null,80,null,null,108]
[null,25,null,null,53,null,null,81,null,null,109]
[null,26,null,null,54,null,null,82,null,null,110]
[null,27,null,null,55,null,null,83,null,null,111]
[null,28,null,null,56,null,null,84]
[]
[null,null,{"$f":"\"出題範囲=\"&D45&\":\"&D46","v":"出題範囲=1:34"},null,null,null,null,null,null,null,7,null,null,"答え"]
[18,"ア","システムの手法の一つで、分割された個々のプログラムのみを対象としたテストのこと。",null,null,null,8,1,"デバイスドライバ",null,null,null,null,{"$f":"VLOOKUP(G34,$A$34:$B$43,2,0)","v":"オ"}]
[10,"イ","開発の早い段階から試作品を作成して試用してもらい、ユーザの要求を確認しながら開発を進めるシステム開発手法。比較的小規模なシステムの開発に向いている。",null,null,null,10,2,"プロトタイプモデル",null,null,null,null,"イ"]
[15,"ウ","内部設計に基づいて、各プログラムの内部構造を設計する開発工程。外部設計と内部設計の機能を、プログラムにより実現する方法を設計する工程。",null,null,null,11,3,"スパイラルモデル",null,null,null,null,"ケ"]
[25,"エ","システムが目標とする稼動時間に対し、正常に稼動した時間の割合。",null,null,null,15,4,"プログラム設計",null,null,null,null,"ウ"]
[8,"オ","コンピュータに接続する周辺機器を動作させるためのソフトウェア。",null,null,null,18,5,"単体テスト",null,null,null,null,"ア"]
[27,"カ","システムの障害発生時における修復時間の平均。この時間が短いほど保守性に優れている。",null,null,null,19,6,"結合テスト",null,null,null,null,"ク"]
[33,"キ","無停電電源装置のこと。バッテリーや発電機を内蔵し、停電などの時、一定の時間コンピュータに電気を供給する。",null,null,null,25,7,"稼働率",null,null,null,null,"エ"]
[19,"ク","システムのテスト手法の一つで、複数のプログラムを組み合わせて行うテストのこと。個々のプログラムの単体テスト後に行う。",null,null,null,27,8,"平均修復時間（MTTR)",null,null,null,null,"カ"]
[11,"ケ","プロトタイプモデルとウォータフォールモデルを合わせた開発手法。独立性の高いプログラムごとに、設計→プログラミング→テストをユーザの要求に合うまで繰り返す。",null,null,null,33,9,"UPS",null,null,null,null,"キ"]
[38,"コ","ネットワーク上を流れるデータを他のネットワークに中継する機器のこと。どの経路を通して転送すべきかを判断する経路選択機能を備えている。",null,null,null,38,10,"ルータ",null,null,null,null,"コ"]
[]
[null,null,"開始問題番号",1,null,null,null,null,null,null,null,null,null,"０　「開始問題番号」と「終了問題番号」を入力する。"]
[null,null,"終了問題番号",34,null,null,null,null,null,null,null,null,null,"1～１１１までの問題番号"]
[null,null,"問題数",{"$f":"D46-D45+1","v":34}]
[null,null,"問題印刷枚数",34,null,null,null,null,null,null,null,null,null,"１　問題数の行分の乱数を設定する。"]
[null,null,"E列　印刷開始問題番号",11,null,null,null,null,null,null,null,null,null,"例　問題数が３８の場合は、行５４から行９１まで"]
[null,null,"E列　印刷終了問題番号",20]
[null,null,null,null,null,null,null,null,null,null,null,null,null,"２　問題番号を値複写する。"]
[]
[null,"問題数","乱数＆問題番号",null,null,"値複写（作成する問題番号）",null,null,"用語（ソート）",null,null,"重複の確認（\"重複\"の表示）",null,"３　「印刷開始問題番号」を入力して「問題の作成」ボタンを押す。"]
[null,1,{"$f":"RAND()","v":0.2609154174797661},{"$f":"RANK(C54,$C$54:$C$91)+$D$45-1","v":30},null,5,null,null,1,null,null,{"$f":"IF(COUNTIF($F$54:F93,F54)>1,\"重複\",\"\")","v":""}]
[null,2,0.83619771980239088,7,null,6,null,null,4,null,null,{"$f":"IF(COUNTIF($F$54:F94,F55)>1,\"重複\",\"\")","v":""},null,"４　「問題印刷枚数」を入力して「問題の印刷」を押す。"]
[null,3,0.18112239548250553,33,null,28,null,null,5,null,null,{"$f":"IF(COUNTIF($F$54:F95,F56)>1,\"重複\",\"\")","v":""}]
[null,4,0.29264140459339549,27,null,17,null,null,6,null,null,{"$f":"IF(COUNTIF($F$54:F96,F57)>1,\"重複\",\"\")","v":""},null,"５　「解答の印刷」を押す。"]
[null,5,0.981168340978541,2,null,13,null,null,9,null,null,{"$f":"IF(COUNTIF($F$54:F97,F58)>1,\"重複\",\"\")","v":""}]
[null,6,0.32310414321591974,23,null,23,null,null,13,null,null,{"$f":"IF(COUNTIF($F$54:F98,F59)>1,\"重複\",\"\")","v":""}]
[null,7,0.19632868019932603,32,null,9,null,null,17,null,null,{"$f":"IF(COUNTIF($F$54:F99,F60)>1,\"重複\",\"\")","v":""}]
[null,8,0.42899275024399142,19,null,31,null,null,23,null,null,{"$f":"IF(COUNTIF($F$54:F100,F61)>1,\"重複\",\"\")","v":""}]
[null,9,0.26872322975488638,28,null,1,null,null,28,null,null,{"$f":"IF(COUNTIF($F$54:F101,F62)>1,\"重複\",\"\")","v":""}]
[null,10,0.8757751955588442,3,null,4,null,null,31,null,null,{"$f":"IF(COUNTIF($F$54:F102,F63)>1,\"重複\",\"\")","v":""}]
[null,11,0.67240691044733669,10,null,18,null,null,8,null,null,{"$f":"IF(COUNTIF($F$54:F103,F64)>1,\"重複\",\"\")","v":""}]
[null,12,0.38572841257083534,20,null,10,null,null,10,null,null,{"$f":"IF(COUNTIF($F$54:F104,F65)>1,\"重複\",\"\")","v":""}]
[null,13,0.26625553421745241,29,null,15,null,null,11,null,null,{"$f":"IF(COUNTIF($F$54:F105,F66)>1,\"重複\",\"\")","v":""}]
[null,14,3.7267965441804884E-2,36,null,25,null,null,15,null,null,{"$f":"IF(COUNTIF($F$54:F106,F67)>1,\"重複\",\"\")","v":""}]
[null,15,0.85973060507550758,5,null,8,null,null,18,null,null,{"$f":"IF(COUNTIF($F$54:F107,F68)>1,\"重複\",\"\")","v":""}]
[null,16,0.79269751866996441,8,null,27,null,null,19,null,null,{"$f":"IF(COUNTIF($F$54:F108,F69)>1,\"重複\",\"\")","v":""}]
[null,17,0.29350707185155411,26,null,33,null,null,25,null,null,{"$f":"IF(COUNTIF($F$54:F109,F70)>1,\"重複\",\"\")","v":""}]
[null,18,0.31312637964369594,24,null,19,null,null,27,null,null,{"$f":"IF(COUNTIF($F$54:F110,F71)>1,\"重複\",\"\")","v":""}]
[null,19,1.4854256908347629E-3,38,null,11,null,null,33,null,null,{"$f":"IF(COUNTIF($F$54:F111,F72)>1,\"重複\",\"\")","v":""}]
[null,20,0.12500314283315728,34,null,38,null,null,38,null,null,{"$f":"IF(COUNTIF($F$54:F112,F73)>1,\"重複\",\"\")","v":""}]
[null,21,0.34097558492654667,22,null,20,null,null,20,null,null,{"$f":"IF(COUNTIF($F$54:F113,F74)>1,\"重複\",\"\")","v":""}]
[null,22,0.30590098986202352,25,null,30,null,null,30,null,null,{"$f":"IF(COUNTIF($F$54:F114,F75)>1,\"重複\",\"\")","v":""}]
[null,23,0.66754403312154442,11,null,36,null,null,36,null,null,{"$f":"IF(COUNTIF($F$54:F115,F76)>1,\"重複\",\"\")","v":""}]
[null,24,0.63828234463325451,14,null,22,null,null,22,null,null,{"$f":"IF(COUNTIF($F$54:F116,F77)>1,\"重複\",\"\")","v":""}]
[null,25,0.22945744121638934,31,null,26,null,null,26,null,null,{"$f":"IF(COUNTIF($F$54:F117,F78)>1,\"重複\",\"\")","v":""}]
[null,26,0.76116496972107406,9,null,32,null,null,32,null,null,{"$f":"IF(COUNTIF($F$54:F118,F79)>1,\"重複\",\"\")","v":""}]
[null,27,0.59815319107936094,15,null,35,null,null,35,null,null,{"$f":"IF(COUNTIF($F$54:F119,F80)>1,\"重複\",\"\")","v":""}]
[null,28,0.47914628629058065,16,null,37,null,null,37,null,null,{"$f":"IF(COUNTIF($F$54:F120,F81)>1,\"重複\",\"\")","v":""}]
[null,29,0.34563566679785251,21,null,12,null,null,12,null,null,{"$f":"IF(COUNTIF($F$54:F121,F82)>1,\"重複\",\"\")","v":""}]
[null,30,1.2254304811047612E-2,37,null,16,null,null,16,null,null,{"$f":"IF(COUNTIF($F$54:F122,F83)>1,\"重複\",\"\")","v":""}]
[null,31,0.64858319791510233,13,null,21,null,null,21,null,null,{"$f":"IF(COUNTIF($F$54:F123,F84)>1,\"重複\",\"\")","v":""}]
[null,32,0.46537034191313364,17,null,24,null,null,24,null,null,{"$f":"IF(COUNTIF($F$54:F124,F85)>1,\"重複\",\"\")","v":""}]
[null,33,0.85339731826902909,6,null,29,null,null,29,null,null,{"$f":"IF(COUNTIF($F$54:F125,F86)>1,\"重複\",\"\")","v":""}]
[null,34,4.1976875474079467E-2,35,null,3,null,null,3,null,null,{"$f":"IF(COUNTIF($F$54:F126,F87)>1,\"重複\",\"\")","v":""}]
[null,35,0.9904536948621725,1,null,7,null,null,7,null,null,{"$f":"IF(COUNTIF($F$54:F127,F88)>1,\"重複\",\"\")","v":""}]
[null,36,0.42908359493450643,18,null,34,null,null,34,null,null,{"$f":"IF(COUNTIF($F$54:F128,F89)>1,\"重複\",\"\")","v":""}]
[null,37,0.86303209486107335,4,null,14,null,null,14,null,null,{"$f":"IF(COUNTIF($F$54:F129,F90)>1,\"重複\",\"\")","v":""}]
[null,38,0.65307701973342869,12,null,2,null,null,2,null,null,{"$f":"IF(COUNTIF($F$54:F130,F91)>1,\"重複\",\"\")","v":""}]
[null,39,null,null,null,null,null,null,null,null,null,{"$f":"IF(COUNTIF($F$54:F131,F92)>1,\"重複\",\"\")","v":""}]
[null,40,null,null,null,null,null,null,null,null,null,{"$f":"IF(COUNTIF($F$54:F132,F93)>1,\"重複\",\"\")","v":""}]

{"sheet":"用語表","index":6,"n_rows":537,"n_cols":7,"rows_kept":537,"cut":false,"hidden":true,"merged":[[524,1,536,1],[513,0,536,0],[497,1,507,1],[508,1,512,1],[497,0,512,0],[513,1,523,1],[2,0,235,0],[236,0,335,0],[336,0,421,0],[422,0,452,0],[92,1,102,1],[103,1,119,1],[149,1,193,1],[120,1,148,1],[2,1,40,1],[41,1,70,1],[71,1,84,1],[85,1,91,1],[336,1,388,1],[389,1,421,1],[422,1,452,1],[194,1,235,1],[236,1,301,1],[302,1,335,1],[480,0,496,0],[480,1,496,1],[470,1,479,1],[453,0,479,0],[453,1,469,1]]}
[null,null,"ＩＴパスポート試験　　用語"]
[]
["コンピュータシステム","コンピュータ構成要素",1,"入力、制御、演算、記憶、出力の各機能のこと。","５大装置"]
[null,null,{"$f":"C3+1","v":2},"制御装置と演算装置をまとめたもの","ＣＰＵ","Central Processing Unit"]
[null,null,{"$f":"C4+1","v":3},"コンピュータの中核部である演算装置と制御装置を、１つの半導体チップに組み込んだもので、ＣＰＵと同じ意味で使用するもの。","マイクロプロセッサ"]
[null,null,{"$f":"C5+1","v":4},"プログラムを実行するとき、プログラムに書かれた命令をメモリに記憶するが、実行すべきプログラムをあらかじめメモリに記憶しておく方式。","プログラム内蔵方式"]
[null,null,5,"ＣＰＵがメモリから命令を１つずつ取り出して解釈し、演算を実行したり各装置に指令を送ったりする方式","逐次制御方式"]
[null,null,6,"コンピュータ内部で、ＣＰＵやメモリなどの各回路間で処理を進めるタイミングを取るための電気信号のこと。","クロック","clock frequency"]
[null,null,7,"プロセッサが１秒間に実行できる命令数","MIPS","Million Instructions Per Second"]
[null,null,8,"１命令の実行に要するクロック数","ＣＰＩ","Cycles Per Instruction"]
[null,null,9,"装置間をつなぐ配線の束。コンピュータ内部で各回路がデータをやり取りするための伝送路のこと。","バス","bus"]
[null,null,10,"電源を切ると記憶したデータが消える半導体メモリ。（揮発性）","ＲＡＭ","Random Access Memory"]
[null,null,11,"CPUが内部にもつ少量で非常に高速な記憶装置。","レジスタ"]
[null,null,12,"電源を切っても記憶したデータは消えない半導体メモリ。（不揮発性）","ＲＯＭ","Read Only Memory"]
[null,null,13,"ＥＥＰＲＯＭの代表的なもので、ディジタルカメラの記憶媒体やＩＣカードで使われているもの。","フラッシュメモリ"]
[null,null,14,"コンピュータに接続された最も基本的な入出力機器を制御するプログラムの集まり。","ＢＩＯＳ","Basic Input/Output System"]
[null,null,15,"CDやDVDなどの光学メディアをコンピュータに出し入れする際、トレイがなく、挿入口に直接メディアを挿入する方式のこと。","スロットイン"]
[null,null,16,"グラフィックスデータの読み込みとディスプレイ表示を同時に行えるように、２つの機能を持たせたメモリであり、ディスプレイに表示する画像データを一時的に蓄積するもの。","ＶＲＡＭ","Video Random Access Memory"]
[null,null,17,"コンピュータを起動するためのプログラム","ＩＰＬ","Initial Program Loader"]
[null,null,18,"ＣＰＵと主記憶装置の間にあり、主記憶装置よりも高速なデータ転送が可能なメモリのこと。使用頻度の高いデータを蓄えておき、低速な装置から何度も読み出す無駄を省ける。","キャッシュメモリ","cache memory     *cache:貯蔵品"]
[null,null,19,"ハードディスクなどの補助記憶装置と主記憶装置の間にあり、補助記憶装置よりも高速なデータ転送が可能なメモリのこと。使用頻度の高いデータを蓄えておき、低速な装置から何度も読み出す無駄を省ける。","ディスクキャッシュ","disk cache"]
[null,null,20,"Revolution Per Minuteの略で、回転数を表す単位。ハードディスクなどの記憶装置が1分間に何回転しているかを表す。","ｒｐｍ","revolutions per minute"]
[null,null,21,"キャッシュメモリにデータが存在する確率","ヒット率"]
[null,null,22,"ハードディスクの空きセクタが散らばりデータが分散した状態を解消する方法。","デフラグメンテーション"]
[null,null,23,"磁気ディスク装置の性能の指標であり、シーク時間＋サーチ時間＋データ転送時間で求める。","アクセス時間"]
[null,null,24,"ディスクアレイともいい、複数のハードディスクをまとめて1台のハードディスクとして管理する技術の総称。","ＲＡＩＤ","Redundant Arrays of Inexpensive Disks"]
[null,null,25,"一つのデータを分割し， 2台以上のハードディスクに並行して書き込むことによって，書込み動作を高速化する方法。RAID0ともいう。","ストライピング"]
[null,null,26,"2台以上のハードディスクに同じデータを書き込むことによって，データの可用性を高める方法。RAID１ともいう。","ミラーリング"]
[null,null,27,"分割したデータと誤り訂正のためのパリティ情報を3台以上のハードディスクに分散して書き込むことによって，データの可用性を高め，かつ，書込み動作を高速化する方法。","RAID5"]
[null,null,28,"エラー訂正情報。データの誤りを検出するためのビットデータ。","パリティ"]
[null,null,29,"ハードディスクの代わりに半導体ディスク装置を利用したもの。フラッシュメモリドライブとも呼ばれる。","ＳＳＤ","Solid State Drive"]
[null,null,30,"すべてのデータを１ビット単位で一列に並べて転送する方法","シリアルインターフェース"]
[null,null,31,"８ビットあるいは１６ビットでまとまっているデータを８本あるいは１６本の並列の伝送路で転送する方法","パラレルインターフェース"]
[null,null,32,"個人用の携帯情報端末。手のひらに収まるくらいの大きさの電子機器で、パソコンのもつ機能のうちいくつかを実装したものをいう。","ＰＤＡ","Personal Digital Assistant"]
[null,null,33,"赤外線を利用した近距離データ通信の技術標準を策定する業界団体。また、同団体が定めた赤外線通信の規格。","ＩｒＤＡ","Infraed Data Association"]
[null,null,34,"携帯情報機器などで数m程度の機器間接続に使われる短距離無線通信技術の一つ。２.４５ＧＨｚ帯の電波を利用し、最高２４Ｍｂｐｓの速度で通信を行うことができる。","Ｂｌｕｅｔｏｏｔｈ"]
[null,null,35,"主にパソコンの内蔵機器のパラレル転送する入出力インターフェース。","ＡＴＡ","Advanced Technology Attachment"]
[null,null,36,"ＰＣホスト側からＵＳＢデバイスに電源を供給する。","バスパワー"]
[null,null,37,"コンピュータの電源を入れたままデバイスの抜き差しができる。","ホットプラグ"]
[null,null,38,"パソコンなどに接続されるメモリ、キーボード、ディスプレイ、ハードディスク装置、フロッピーディスク装置などの周辺機器を動作させるためのソフトウェア。","デバイスドライバ","device driver       *driver:操縦者"]
[null,null,39,"コンピュータに拡張カードを追加する際、ユーザが手動で設定作業をしなくても、ＯＳが自動的にカードを検出して最適な設定を行うシステム","プラグアンドプレイ","Plug and Play"]
[null,"システム構成要素",40,"１つのホストコンピュータがすべての処理を行うシステム","集中処理システム"]
[null,null,41,"複数のコンピュータを接続して、処理を分担させることによって全体として高性能のコンピュータシステムを構築する形態","分散処理システム"]
[null,null,42,"データをまとめて処理をする方法。","バッチ処理"]
[null,null,43,"データが入力されるたびに処理をする方式","リアルタイム処理"]
[null,null,44,"ハードウェアやソフトウェアなどを集中管理するコンピュータと、サーバの管理する資源を利用するコンピュータが接続されたネットワークの形態。","クライアントサーバシステム","Cloent Server System"]
[null,null,45,"データやファイルを複数のクライアントで共有するために設置されるサーバ。","ファイルサーバ","file server"]
[null,null,46,"各クライアントで共通に利用するデータベースを格納したサーバ。","データベースサーバ","detabase server"]
[null,null,47,"プリンタを複数のクライアントで共有するために設置されるサーバ。","プリントサーバ","print server"]
[null,null,48,"１台のコンピュータを複数の仮想的なサーバに分割し、動作させる技術","サーバの仮想化技術"]
[null,null,49,"データ層、ファンクション層、プレゼンテーション層で処理をする方法","３層アーキテクチャ"]
[null,null,50,"インターネットに接続されているサーバ上のディスクスペースを，ファイル保管用に貸し出すサービスであり，自宅や外出先などから利用者がデータを読み書きできるものはどれか。","オンラインストレージ"]
[null,null,51,"ネットワークに接続する複数のコンピュータ(PCやサーバ)を結ぶことで、仮想的に高性能のコンピュータを構築すること。複数のコンピュータを使って並列処理を行うことで、個々の性能が低くても高性能なコンピュータを実現できる。\n実現するサービスとしては、計算処理とデータの保存がある。一般的には計算処理を分散して行うことを指すことが多いが、実際に実現されているシステムとしてはデータの保存も併せて実現されている場合が多い。","グリッドコンピューティング","grid computing"]
[null,null,52,"アプリケーションソフトウェアの実行やファイルなどの資源の管理は全てサーバ側で行う。サーバに依存する比重の高いクライアント・サーバシステム。クライアントは表示や入力のみを担当する。セキュリティを高めることができる。","シンクライアントシステム"]
[null,null,53,"情報システムの信頼性を高める手法の一つで、システムを2系統用意して、常に同じ処理を行なわせる方式。結果を相互に照合・比較することにより高い信頼性を得ることができ、片方に障害が生じた際も、もう片方で処理を続行しながら復旧にあたることができる。","デュアルシステム","dual System"]
[null,null,54,"情報システムの信頼性を高める手法の一つで、システムを2系統用意して、普段は片方で処理を行い、もう片方は障害発生に備えて待機させておく方式。平常時に処理を行なうシステムを主系または本番系などと呼び、主系に障害が生じたとき肩代わりするシステムを従系または待機系、予備系などと呼ぶ。待機や切り替えの仕方により、ホットスタンバイ、ウォームスタンバイ、コールドスタンバイなどの種類がある。","デュプレックスシステム","duplex System"]
[null,null,55,"コンピュータが単位時間内に処理することのできる情報量。","スループット","throughput"]
[null,null,56,"コンピュータに処理実行の指示を出してから、最初の応答を得るまでの時間。","レスポンスタイム","response time"]
[null,null,57,"コンピュータに処理実行の指示を出してから、すべての実行結果が得られるまでの時間。","ターンアラウンドタイム","turn around time"]
[null,null,58,"実際に使用するプロ不ラムを実行し、その稼働率などを計測して、処理効率を比較する方法","ベンチマークテスト"]
[null,null,59,"コンピュータシステムの信頼性を評価するときのチェック項目を示すもので、信頼性、可用性、保守性、保全性、機密性の5つの単語の頭文字を集めたもの。","ＲＡＳＩＳ","Reliability Availability Serviceability Intergrity Security"]
[null,null,60,"システムが目標とする稼動時間に対し、正常に稼動した時間の割合。","稼働率","availability"]
[null,null,61,"システムの故障と故障の間、すなわちシステムが正常に稼動している時間を平均で表したもの。","平均故障間隔（MTBF)","Mean Time Between Faliure"]
[null,null,62,"システムの障害発生時における修復時間の平均。この時間が短いほど保守性に優れている。","平均修復時間（MTTR)","Mean Time To Repair"]
[null,null,63,"コンピュータシステムの故障率の時間経過による変化をグラフ化したもの。初期故障期間、偶発故障期間、磨耗故障期間に分けることができる。","バスタブ曲線"]
[null,null,64,"システムが部分的に故障しても、システム全体としては必要な機能を維持する信頼性の高いシステム","フォールトトレランス","fault-tolerance "]
[null,null,65,"故障や操作ミス、設計上の不具合などの障害が発生することをあらかじめ想定し、起きた際の被害を最小限にとどめるような工夫をしておくという設計思想。　　　　例　壊れたら赤しかつかなくなる信号機","フェールセーフ","failsafe"]
[null,null,66,"障害が発生した場合に、システムの一部を停止しても重要な部分を停止させないようにして処理を継続する方法。\n例　与圧はやめるがエンジンは最後まで回る飛行機","フェールソフト","failsoft "]
[null,null,67,"工業製品や生産設備、ソフトウェアなどで、利用者が誤った操作をしても危険にさらされることがないよう、設計の段階で安全対策を施しておくこと。　　　　例　ドアが閉まらないと電車が発車しない。","フールプルーフ","foolproof（意味：確実な）"]
[null,null,{"$f":"C69+1","v":68},"システムの購入から運用、廃棄まで全部ひっくるめたコスト。","ＴＣＯ","Total Cost of Ownership"]
[null,null,69,"性能対価格比","コストパフォーマンス"]
[null,"ソフトウェア",70,"主にコンピュータの機能や操作といった利用環境を向上させるためのソフト","ユーティリティプログラム"]
[null,null,71,"スケジュールの共有やチーム内のコミュニケーションを行うことにより、組織としての業務効率を高めるソフトウェア","グループウェア"]
[null,null,72,"ＯＳと応用ソフトウェアの中間に位置するソフトウェア。","ミドルウェア"]
[null,null,73,"マルチプログラミングで優先度の高いジョブに処理が切り替えられたときに、それまで実行されていたジョブは実行を中断されるが、それまで行った処理が無駄にならないように退避させる処理","スワッピング"]
[null,null,74,"ハードディスクをメインメモリの代用として利用するOSの機能。また、その機能を利用して確保された、実際のメモリ容量以上のメモリ領域。主記憶の容量よりも大きなメモリを必要とするプログラムも実行できるようにする。","仮想記憶方式"]
[null,null,75,"衝突、争い、論争などの意で、コンピュータ関連では、複数のタスクが同時に同じ資源を利用しようとして発生する競合状態を表す言葉。","コンフリクト","conflict"]
[null,null,76,"プロセッサに比べて入出力装置の動作速度ははるかに遅いため、入出力装置による低速な処理をプロセッサから切り離す仕組み","スプーリング"]
[null,null,77,"通信プロトコルTCP/IPを初めとするインターネット標準の技術を用いて構築された企業内ネットワークのこと。","イントラネット"]
[null,null,78,"Adobe Systems社によって開発された、電子文書のためのフォーマット。レイアウトソフトなどで作成した文書を電子的に配布することができ、相手のコンピュータの機種や環境によらず、オリジナルのイメージをかなりの程度正確に再生することができる。","ＰＤＦ"]
[null,null,79,"authoring。文字や画像、音声、動画といったデータを編集して一本のコンテンツを作るソフトウェアのこと。","オーサリングソフト"]
[null,null,80,"Frame Per Secondの略で、動画の滑らかさを表す単位。1秒間に何枚の静止画を表示しているかを表す。","ｆｐｓ"]
[null,null,81,"アプリケーションソフトに追加機能を提供するための小さなプログラム。あるアプリケーションに特定の機能を追加するソフトウェアのことで、プラグイン単独では動作しない。アドイン(add-in)とも呼ばれている。","プラグイン"]
[null,null,82,"ワープロソフトやWebブラウザなどで採用されている文字列の入力補完機能のこと。ユーザが入力している文字を予測してくれる便利な機能だが、パスワードなどの自動補完はセキュリティ上問題となる場合もあるので注意が必要。","オートコンプリート"]
[null,null,83,"ソースコードを公開して、解析や派生ソフトウェアの作成を認めたソフトウェア。著作権は保持されている。","オープンソースソフトウェア"]
[null,"ハードウェア",84,"日本で最も普及している商品識別コード。JANコードは市販されている多くの商品に付けられており、POSシステムなどに活用されている。標準タイプ13桁と短縮タイプ8桁の2種類がある。","ＪＡＮコード","Japanese Article Number "]
[null,null,85,"標準物流コードで、段ボールに印刷されているバーコードのこと。5本のバーで1文字を表す。5本のうち2本が太いので、2 of 5 という。","ＩＴＦ","Interleaved Two of Five"]
[null,null,86,"プログラミング言語で書かれた命令を一つ一つ翻訳しながら実行するソフトウェア。実行時にいちいち翻訳するため実行速度は遅い。","インタプリタ"]
[null,null,87,"１インチ（約2.5cm）当たりのドット数","ｄｐｉ"]
[null,null,88,"Page Per Minuteの略で、ページプリンタの性能を表す単位。1分間に印刷できるページ数を表す。","ｐｐｍ"]
[null,null,89,"コンピュータの電源を切る時に直前の状態を補助記憶装置(HDD)に保存して、次に電源を入れたときに電源を切る直前の状態から作業を再開する機能。","ハイバネーション(休止状態)","hibernation"]
[null,null,90,"コンピュータの動作を一時的に停止させ、節電状態で待機させる機能。電源をオフにするのとは異なり、停止前の状態から速やかに再開することができる。","スタンバイ","standby"]
[null,"ヒューマンインターフェース",91,"画面上のアイコンやボタンをマウスでクリックして操作する、コンピュータの入出力方式。","ＧＵＩ","Graphical User Interface"]
[null,null,92,"キーボードでコマンドを入力することでコンピュータを操作し、処理結果を文字列で出力するユーザインターフェイス。GUI(Graphical User Interface)と対比して語られることもある。","CUI","Character User Interface"]
[null,null,93,"入力データが定められた書式に従っているかチェックする方法","フォーマットチェック"]
[null,null,94,"数値項目に数値以外がのデータが入力されていないかをチェックする方法","ニューメリックチェック"]
[null,null,95,"入力されたデータが定められている値に達しているか、または限度を超えていないかをチェックする方法","リミットチェック"]
[null,null,96,"入力されたデータが定められた順番どおりに並んでいるかチェックする方法","シーケンスチェック"]
[null,null,97,"符号の入力誤りなどを検出するために元の符号に付加される１桁の数字のこと。主にバーコードの読み取りなどにおける、入力値の確認に使われる。","チェックディジット","check digit"]
[null,null,98,"ソフトウェアやWebサイトの「使いやすさ」のこと。様々な機能になるべく簡単な操作でアクセスできることや、使っていてストレスや戸惑いを感じないことなどが、優れているといわれている。","ユーザビリティ\n","usability"]
[null,null,99,"年齢や文化、障害の有無や能力の違いなどにかかわらず、誰でも快適に利用できるように工夫されたデザイン。","ユニバーサルデザイン"]
[null,null,100,"情報を自己の目的に適合するように使用できる能力のこと。情報機器やネットワークにより、豊富な情報を容易に手に入れられるため、目的に合った情報を適切に収集、選択、判断、評価する能力が必要になっている。","情報リテラシ","information literacy"]
[null,null,101,"高齢者や障がい者などを含めて、Webサイトが誰もが利用できるかどうかということ","Webアクセシビリティ"]
[null,"マルチメディア",102,"データを保存する際に圧縮はするものの元に戻すときに完全に復元できる方式。圧縮率は低め。","可逆圧縮方式",null,1]
[null,null,103,"圧縮したときにデータの欠落が生じ、完全には元に戻せない方式。圧縮率が大きい。","非可逆圧縮方式",null,1]
[null,null,104,"静止画を保存するデータ形式で、高い圧縮率を持ち、ディジタルカメラに使われている。データを完全に復元できない非可逆圧縮方式。\nフルカラーあるいはグレースケール画像を対象とした圧縮方式で、白黒２値の画像は対象としていない。圧縮率が高いわりに画質の低下が少ないのが特徴。圧縮率が変更できるので、圧縮での画質の低下の程度を変えることで、画像の品質とファイルサイズ、および処理時間の組み合わせの中から最適なものを選べる。","ＪＰＥＧ","Joint Photographic Experts Group",2]
[null,null,105,"静止画を保存するデータ形式で、データは圧縮するが、元に戻せる可逆圧縮方式。色数が256色と限定されていて、データ量が小さいため、Webページのロゴに使われている。","ＧＩＦ",null,2]
[null,null,106,"Windowsが標準でサポートしている画像形式。白黒(2値)の画像からフルカラー(1677万7216色)までの色数を指定できる。基本的には無圧縮で画像を保存するが、16色と256色の形式では、圧縮するオプションが選択できる。圧縮しないで画像をそのまま保存するため、データ量はとても大きくなる。","ＢＭＰ","Windows bitmap image",2]
[null,null,107,"静止画を保存するデータ形式で、GIFの代替として開発された。色数はGIFと異なり、フルカラー。データを元に戻せる可逆圧縮方式。","ＰＮＧ",null,2]
[null,null,108,"音声を保存するデータ形式で、インターネットの音楽配信や、音楽プレーヤーに用いられている。音声データを約1/10に圧縮することができるが、データを完全に復元できない不可逆圧縮方式。MPEG1の音声を取り出した規格。","ＭＰ３",null,3]
[null,null,109,"動画を保存するデータ形式で、データを完全に元に戻せない不可逆圧縮方式。ディジタルビデオカメラで使われている。\nMPEG2･･･ハイビジョン高画質　MPEG4･･･携帯機器向け","ＭＰＥＧ",null,3]
[null,null,110,"Microsoft社が開発した、Windowsで音声付きの動画を扱うためのフォーマット。Windows上でマルチメディアデータを格納する際に用いられるRIFFというフォーマットを応用し、画像データと音声データを交互に折り混ぜた構造になっているところから、この名前が付けられている。","AVI","Audio Video Interleaving"]
[null,null,111,"Ａｐｐｌｅ社が開発した動画圧縮方式。MPEG4にも採用されており、MPEG4のほとんどはQuickTimeベースのフォーマットになっている。動画ファイルの拡張子は「.mov」","QuickTime"]
[null,null,112,"アドビシステムズ社が提供する、主にベクターベースのオブジェクトやイメージからなるアニメーションやWebアプリケーションを表示するファイルフォーマット。Flashで使用される。","SWF"]
[null,null,113,"3次元の物体に関する情報を記述するためのファイルフォーマット。WWW上で利用されることを前提に設計された。","VRML","Virtual Reality Modeling Language"]
[null,null,114,"電子楽器のデータを扱うファイル形式。データを圧縮しない。","ＭＩＤＩ"]
[null,null,115,"パソコンで外部から映像を取り込むための拡張カード","キャプチャカード"]
[null,null,116,"サウンド編集ソフトのこと","DTMソフト"]
[null,null,117,"与えられたルールを基にして、自立的に自分自身の動作を決定できるようなソフトウェア","エージェントソフトウェア","agent "]
[null,null,118,"ビデオテープなどに記録された動画をいったんハードディスクなどの記憶装置にデジタルデータとして取り込み、それをパソコンなどで編集する手法。","ノンリニア編集","nonlinear editing"]
[null,"データベース",119,"データベースの代表的な形式。データを表の形に整理し、その表がいくつか集まったもの。","リレーショナルデータベース"]
[null,null,120,"データ（エンティティ）とその関連（リレーションシップ）を可視化して、業務活動をモデル化する方法。関連の種類には、１対１、１対多、多対多　がある。個々のデータ同士の間にどのような関係が成り立っているかを表す方法で、現実の世界のデータ（実体）とその関係を図に置き換え、一般化する。","Ｅ－Ｒ図","Entity-Relationship Chart"]
[null,null,121,"E-R図で使用される記号名で、一単位として扱われるデータのまとまりのこと。また、データベースとして表現すべき対象物のこと。","エンティティ（実体）"]
[null,null,122,"E-R図で使用される記号名で、エンティティが持つ値のこと。","アトリビュート（属性）"]
[null,null,123,"E-R図で使用される記号名で、エンティティとエンティティの相関関係のこと。","リレーションシップ（関係）"]
[null,null,124,"データベースの中から、ある一組のデータセット(レコード)を一意に識別するための情報。これに設定された項目は、複数のレコード間で重複することは許されない。一つの表において、複数の項目を組み合わせてもよい。","主キー"]
[null,null,125,"新しい行の入力や削除を行っても、表間のリレーションシップが維持されるようにするための規則。","整合性制約（参照整合性）"]
[null,null,126,"あるユーザが処理を行っている間は他のユーザがデータベースを使えないようにロックし、トランザクションが終了した時点で他のユーザが処理を行えるようにすること。","排他制御"]
[null,null,127,"分散データベース環境において、使用するすべてのリソース(資源)をロックする第1フェーズと、操作の終了したリソースのロックを解除する第2フェーズからなる制御方式。この方式では、トランザクション中に一度でもロックの解除を行ったら、それ以降はロックを行わない。デッドロックを回避しながら排他制御を実現する手法。","２相ロック","Two-Phase Locking"]
[null,null,128,"２つ以上の処理が、それぞれのロックのかかったデータにアクセスしようとして、ロックの開放ができず、待ち状態が無限に続くような状態のこと。","デッドロック"]
[null,null,129,"複数のトランザクションを同時に実行する場合に，互いに影響しあわないように直列的な実行となるよう，トランザクション処理の順番を変更する手法。 ","トランザクションスケジューリング"]
[null,null,130,"問い合わせ文の条件式部分に、別の問い合わせ文が埋め込まれたもの。問い合わせが入れ子になっている。","副問合せ"]
[null,null,131,"ソフトウェアの開発工程で、実際に使われている帳票や帳簿類を参考にして、業務内容を分析し、どのようなデータが必要で、どれを管理対象とするのかを検討する作業。","概念設計"]
[null,null,{"$f":"C133+1","v":132},"利用するデータベース管理システムに合わせて、データベースの論理的な構造として表と索引を設計する作業。","論理設計"]
[null,null,133,"論理設計の結果を用いて、利用するデータベース管理システムに応じた設計を行う作業。","物理設計"]
[null,null,134,"データベースで使われる用語で、必要最低限のものに加えて、余分や重複がある状態のこと。","データの冗長性"]
[null,null,135,"関係データベースを構築するときに、①データの冗長性（じょうちょうせい）の排除②データの一貫性の確保と効率的なアクセスの実現.③更新時に起きる異常や不整合の発生を防ぐために行うこと。","データの正規化"]
[null,null,136,"正規化において、重複して繰り返し現れる項目が存在しない状態にすること。","第１正規化"]
[null,null,137,"正規化において、主キーと関連のある項目を別のテーブルに分割すること。","第２正規化"]
[null,null,138,"正規化において、主キーでない項目について関連のある項目を別のテーブルに分割すること。","第３正規化"]
[null,null,139,"データベースのテーブルから必要な行だけを抜き出してくる演算のこと","選択"]
[null,null,140,"データベースのテーブルから必要な列だけを抜き出してくる演算のこと","射影"]
[null,null,141,"データベースの複数の表（テーブル）から1つの表にすること","結合"]
[null,null,142,"データベースの更新前ジャーナルを使って、データベースに障害が発生したときに、記録してあるチェックポイントにまでデータを巻き戻して、改めて処理を開始すること。バックアップ時のデータは再現されるが、それ以降に行った処理は失われる。主に、データベースの論理的障害に対して用いられる。","ロールバック","rollback"]
[null,null,143,"データベースの更新後ジャーナルを使って、データベースに障害が発生したときに、記録してあるチェックポイントのデータを再現した上で、ログファイルに残っているチェックポイント後の処理を再現し、障害直前の状態にまで戻すこと。障害直前のデータが再現される。主に、ディスクの損傷などの物理的障害に対して用いられる。","ロールフォワード","roll forward"]
[null,null,144,"物流や販売などの部門ごとに散在していた、過去から現在までの全社のデータを統合して管理することによって、経営戦略の立案に役立てる仕組み。","データウェアハウス"]
[null,null,145,"データウェアハウスの特定の部分を取り出してデータベース化したもの","データマート"]
[null,null,146,"データウェアハウスに蓄積されている大量の生データから、データの規則や因果関係を見つけ出す手法。　　例　顧客に応じた商品の推薦","データマイニング"]
[null,null,147,"容器、貯蔵庫、倉庫、集積所などの意味を持つ英単語。何らかのデータや情報、プログラムなどが体系だてて保管されている場所。アプリケーションやシステムの設定情報（メタデータ）がまとめて記録されているファイルやフォルダのことや、複数の開発者が参加するプログラミング環境においてソースコードや仕様に関する情報をまとめて保管してくれるシステムなどを指すことが多い。","リポジトリ　"]
[null,"ネットワーク",148,"「広域通信網」の略。電話回線や専用線を使って、本社－支社間など地理的に離れた地点にあるコンピュータ同士を接続し、データをやり取りすることを言う。","ＷＡＮ","Wide Area Network",1]
[null,null,149,"LANの代表的な接続形態。バス型、スター型、リング型がある。","トポロジ",null,1]
[null,null,150,"LANに接続されているパソコンなどの端末やハブなどの一台一台のネットワーク機器を指す。","ノード","node",1]
[null,null,151,"LANで利用される通信方式の一つで、Ethernetがこれを採用している。データを送信したいノード(機器)はケーブルの通信状況を監視し(Carrier Sense)、ケーブルが空くと送信を開始する。このとき、もし複数のノードが同時に送信を開始するとケーブル内でデータが衝突して壊れるので(Collision Detection)、両者は送信を中止し、ランダムな時間だけ待って送信を再開する。","ＣＳＭＡ／ＣＤ方式",null,1]
[null,null,152,"伝送媒体として光ファイバーケーブルを使用した１００Ｍｂｐｓの伝送速度を持つ高速ＬＡＮの規格","FDDI",null,1]
[null,null,153,"無線LANにおけるネットワークの識別子の一つで、最大32文字までの英数字を任意に設定できる。","ESSID(ESS-ID)","Extended SS-ID"]
[null,null,154,"2本のメタリックケーブルをより合わせて対にしたもの。","ツイストペアケーブル",null,1]
[null,null,155,"スター型ネットワークで使われる集線装置のこと。各機器に接続されたケーブルはいったんここに接続され、これを介して相互に通信する。","ハブ",null,2]
[null,null,156,"ネットワーク上を流れるデータを他のネットワークに中継する機器のこと。どの経路を通して転送すべきかを判断する経路選択機能を備えている。","ルータ",null,2]
[null,null,157,"ハブ同士をケーブルでつなぎ、接続できる機器を増やす方法","カスケード接続",null,2]
[null,null,158,"LANの伝送距離を長くするための信号の増幅装置で、ＯＳＩ参照モデルの物理層（第1層）での中継を行う。","リピータ",null,2]
[null,null,159,"データリンク層に属する通信機器。MACアドレスを使って通信を制御し、ネットワークのトラフィックを軽減したり、伝送媒体が異なるネットワーク間での相互接続を可能にする。","ブリッジ",null,2]
[null,null,160,"規格の異なったネットワーク同士を接続する場合に使われるハードウェア、ソフトウェアの総称。\n双方のネットワーク間のプロトコルの違いなどを調整して接続をする。","ゲートウェイ",null,2]
[null,null,161,"ＮＴＴのＢフレッツなど、光ファイバーによる家庭向けのデータ通信サービス。","ＦＴＴＨ","Fiber To The Home",2]
[null,null,162,"電話線を使い高速なデータ通信を行なう技術。電話の音声を伝えるのには使わない高い周波数帯を使って通信を行なうxDSL技術の一種で、一般の加入電話に使われている1対の電話線を使って通信する。「非対称(asymmetric)」の名の通り、ユーザ側から見てダウンロードに相当する電話局→利用者方向(下り)の通信速度は1.5～約50Mbps、その逆のアップロードにあたる利用者→電話局方向(上り)の通信速度は0.5～約12Mbpsと、通信方向によって最高速度が違っている。","ＡＤＳＬ",null,2]
[null,null,163,"屋内の電力線を使ってLANを構築するときに，電力と通信用信号の重ね合わせや分離を行う機器。","PLCモデム"]
[null,null,164,"NIC（ネットワークフェースカード）につけられた４８ビットの固有の番号のこと。全世界のEthernetカードには1枚1枚固有の番号が割り当てられており、これを元にカード間のデータの送受信が行われる。","MACアドレス",null,3]
[null,null,165,"無線LANの通信規格であるIEEE 802.11a/IEEE 802.11bを利用した無線機器間の相互接続性が業界団体「Wi-Fi Alliance」に認証されたことを示す名称で、ノートパソコンのほかにもニンテンドーDSやPSPなどの携帯ゲーム機，音楽プレイヤー，ディジタルカメラなどの家電製品にも搭載されている。","Wi-Fi","wireless fidelity"]
[null,null,166,"現在最も普及しているインターネットの標準プロトコル。","TCP/IP",null,3]
[null,null,167,"ネットワークにおいてデータを送受信する際の手順を定めた規約のこと。","プロトコル",null,3]
[null,null,168,"ネットワークに接続される機器が持つ時計を同期させるためのプロトコル。\n複数の装置で処理を行うシステムにおいて、装置毎の時間が合っていないと、クライアントサーバシステムのように複数台の装置で行った処理の記録(ログ)などの時刻にずれがあるため、検証のために処理の追跡を行うときや、障害発生時の原因の特定、データの復旧が困難になってしまうために同期させる。","NTP","Network Time Protocol"]
[null,null,169,"WWWサーバのデータ（HTML文書）をブラウザに表示させるためのプロトコル。","HTTP",null,3]
[null,null,170,"データの転送のやりとりをするためのプロトコル。","FTP",null,4]
[null,null,171,"TCP/IPプロトコルを用いたネットワーク上で、コンピュータを識別するためのアドレス。","IPアドレス",null,4]
[null,null,172,"構内ネットワークに接続されたコンピュータやプリンタに割り当てられたＩＰアドレス。このアドレスでは直接インターネットに接続することはできない。","プライベートIPアドレス",null,4]
[null,null,173,"インターネットで用いる世界唯一のＩＰアドレス。インターネットの中での住所にあたり、インターネット通信を行うために必ず必要。","グローバルIPアドレス",null,4]
[null,null,174,"ネットワークをいくつかのネットワークに区切るために用いられるビット列。ＩＰアドレスはこの値をマスキングすることで、ネットワークアドレスを求められる。","サブネットマスク",null,4]
[null,null,175,"ＩＰアドレス（ＩＰｖ４）を構成する３２ビットのビット列のうち、個々の組織が管理するネットワークを識別するのに使われるアドレス。","ネットワークアドレス",null,4]
[null,null,176,"ＩＰアドレス（ＩＰｖ４）を構成する３２ビットのビット列のうち、個々の端末を識別するのに使われるアドレス。","ホストアドレス",null,4]
[null,null,177,"インターネット上の資源を特定するための記号の並びで、WWWをはじめとするインターネットアプリケーションで使用される資源の場所を特定するためのもの。資源とは、Webページや、イメージ画像のパスや電子メールの宛先のこと。","URL","Uniform Resource Locator"]
[null,null,178,"インターネット上でのコンピュータの名前にあたるドメイン名を、住所にあたるＩＰアドレスに変換するコンピュータのこと。","DNSサーバ",null,4]
[null,null,179,"電子メールを受信するためのサーバのこと。ユーザがメールを受信するときは、電子メールソフトを使ってこのサーバに接続し、自分宛のメールを取り出す。","POPサーバ",null,4]
[null,null,180,"電子メールを送信するためのサーバのこと。ユーザから送信されたメールを受け取り、送信先を探して、そこに送信する。","SMTPサーバ",null,4]
[null,null,181,"インターネットに一時的に接続するコンピュータに、ＩＰアドレスなど必要な情報を自動的に割り当てるサーバ。","DHCPサーバ",null,4]
[null,null,182,"構内ネットワークとインターネットの境にあって、直接インターネットに接続できない内部ネットワークのコンピュータに代わってインターネットとの接続を行うサーバのこと。","プロキシサーバ",null,4]
[null,null,183,"Webサーバの動作を記録したもので、アクセス元のIPアドレス、アクセス元のドメイン名、アクセスされた日付と時刻、アクセスされたファイル名、リンク元のページのURL、訪問者のWebブラウザ名やOS名、処理にかかった時間、受信バイト数、送信バイト数、サービス状態コードなどが記録されている。","アクセスログ","access log"]
[null,null,184,"ネットワークのデータ伝送速度を表す単位。1秒間に転送できるビット数を表す。","ｂｐｓ","Bits Per Second"]
[null,null,185,"通信回線を効率よく利用するためにデータを分割して送受信を行うときのデータのまとまり。","パケット",null,4]
[null,null,186,"ＩＰアドレスからＭＡＣアドレスを特定するプロトコル","ＡＲＰ",null,4]
[null,null,187,"プライベートＩＰアドレスとグローバルＩＰアドレスをルータ上で変換する機能で、ひとつのグローバルアドレスをひとつのプライベートアドレスに固定して変換する。","ＮＡＴ","Network Address Translation",4]
[null,null,188,"インターネットに接続された企業などで、一つのグローバルなIPアドレスを複数のコンピュータで共有する技術。組織内でのみ通用するIPアドレス(ローカルアドレス)と、インターネット上のアドレス(グローバルアドレス)を透過的に相互変換することにより実現される。NATと異なりTCP/UDPのポート番号まで動的に変換されるため、一つのグローバルアドレスで複数のマシンから同時に接続することが可能である。","ＩＰマスカレード",null,4]
[null,null,189,"TCP/IPで通信する場合、送信するパケットにはIP層レベルで宛先アドレス(IPアドレス)が付与されているが、これを元にして順次パケットを目的のノードまで届けること。そのための装置をIPルーターと呼ぶ。","ＩＰルーティング","IP routing",4]
[null,null,190,"インターネットやイントラネットなどのTCP/IPネットワーク上でやりとりされる電子メールで、各国語や画像、音声、動画などを扱うための規格。","ＭＩＭＥ","Multipurpose Internet Mail Extension",4]
[null,null,191,"インターネットなどのネットワークを通じて映像や音声などのマルチメディアデータを視聴する際に、データを受信しながら同時に再生を行う方式。","ストリーミング","streaming"]
[null,null,192,"インターネット通信で使われるIP(Internet Protocol、パケット通信プロトコル)の機能を利用した電話サービスのことです。音声をIPで転送するのでVoIP(Voice over IP)と呼ばれる。通話音声を短い時間に分割して、ディジタルデータに変換(音声符号化)して、IPパケットとして相手に送信する。従来の電話と違い回線を占有しないので、他の通信と同時に利用することができ、低コストの通信を実現できる。ただし、緊急番号(110番、119番)への発信などの課題がある。","IP電話、VoIP","Voice over IP"]
[null,"セキュリティ",193,"コンピュータネットワークに繋がれたシステムに不正に侵入したり、コンピュータシステムを破壊・改竄（かいざん）などをしたり、悪用の目的でソフトウェアを改変等、コンピュータを不正に利用する行為のこと。","クラッキング",null,4]
[null,null,194,"ネットワークの管理者や利用者などから、話術や盗み聞き、盗み見などの「社会的」な手段によって、パスワードなどのセキュリティ上重要な情報を入手すること。","ソーシャルエンジニアリング",null,1]
[null,null,195,"ネットワークを通じた攻撃の一つで、相手のコンピュータやルータなどに不正なデータを送信して使用不能に陥らせたり、トラフィックを増大させて相手のネットワークを麻痺させる攻撃のこと。","Ｄoｓ攻撃",null,1]
[null,null,{"$f":"C197+1","v":196},"メモリ領域に許容量を超えるデータを送り、システムを停止させる攻撃。","バッファオーバーフロー攻撃"]
[null,null,197,"ソフトウェアのセキュリティホールの一つで、Webサイトの訪問者の入力をそのまま画面に表示する掲示板などのプログラムが、悪意のあるコードを訪問者のブラウザに送ってしまう脆弱性のこと。","クロスサイトスクリプティング",null,1]
[null,null,198,"サーバとクライアント間の正規のセッションに割り込んで，正規のクライアントに成りすますことで，サーバ内のデータを盗み出すこと。","セッションハイジャック"]
[null,null,199,"データベースに連携しているWebページのユーザ入力領域に悪意あるSQLコマンドを埋め込み，サーバ内のデータを盗み出すこと。","SQLインジェクション"]
[null,null,200,"銀行やクレジット会社などを装った偽のWebページを開設し、金融機関や公的機関などを装った偽の電子メールなどで、利用者を巧みに誘導して、暗証番号やクレジットカード番号などの個人情報を盗み取る行為のこと。","フィッシング"]
[null,null,201,"Webページの内容をチェックし、有害と思われるページへのアクセスを防止すること","コンテンツフィルタリング",null,1]
[null,null,202,"コンピュータやネットワークなどの情報システムにおいて、第三者が保安上の脅威となる行為(システムの乗っ取りや機密情報の漏洩など)に利用できる可能性のあるシステム上の欠陥や仕様上の問題点。","脆弱性",null,3]
[null,null,203,"企業全体の情報セキュリティに関する基本方針。広義には、セキュリティ対策基準や個別、具体的な実施手順などを含む。","セキュリティポリシ",null,1]
[null,null,204,"デジタル文書の正当性を保証するために付けられる暗号化された署名情報。また、そのような署名を行なうための技術および一連の手順。公開鍵暗号を応用したもので、文書の送信者を証明し、かつその文書が改ざんされていないことを保証する。\n　送信者は、メッセージの原文から一定の計算手順で割り出した短いデータを文書に添付して送信する。受信者は受け取った署名データを一定の手順でこれを検証することにより、文書に署名を行なったのが送信者本人であることや、文書が通信途上で改ざんされていないことなどを確認することができる。","ディジタル署名",null,2]
[null,null,205,"正体を偽ってコンピュータへ侵入し、データ消去やファイルの外部流出、他のコンピュータの攻撃などの破壊活動を行なうプログラム。ウイルスのように他のファイルに寄生したりはせず、自分自身での増殖活動も行わない。","トロイの木馬",null,3]
[null,null,206,"電子商取引事業者などに、暗号通信などで必要となるデジタル証明書を発行する機関のこと。\nデジタル証明書とは、取引当事者（ショッピングサイトや企業）とのデータ通信のときに使われる公開鍵が、正当な送信者なものであることを証明するもの。","認証局（CA)",null,1]
[null,null,207,"指紋や眼球の虹彩、声紋などの身体的特徴によって本人確認を行なう認証方式のこと。暗証番号やパスワードなどに比べ、原理的に極めて「なりすまし」にくい認証方式である。","バイオメトリクス認証",null,3]
[null,null,208,"ルータやファイアウォールが持っている機能の一つで、送られてきたパケットをチェックして不要なものは遮断する機能。アクセス制御ともいう。","パケットフィルタリング",null,3]
[null,null,209,"コンピュータウイルスに感染したファイルや、ネットワーク上で自己複製を繰り返すワームプログラムの特徴を収録したファイル。アンチウィルスソフト(ワクチンソフト)がコンピュータウイルスやワームを検出するのに使う。","パターンファイル(ウィルス定義ファイル）",null,3]
[null,null,210,"インターネットからLANへの不正侵入を防ぐもの。","ファイアウォール"]
[null,null,211,"ワープロソフトや表計算ソフトなどで、特定の操作手順をプログラムとして記述して自動化する機能。","マクロ"]
[null,null,212,"ワープロ文書などに埋め込まれて実行される「マクロ」と呼ばれる簡易プログラムの仕組みを悪用したコンピュータウイルス。これは通常の文書ファイルに感染するため、企業活動などを通じて交換されやすい。最近では電子メールに添付されてインターネットなどを通じて拡散することも一般的である。","マクロウィルス"]
[null,null,213,"コンピュータウイルス、ワーム、スパイウェアなどの「悪意のこもった」ソフトウェアのこと。「mal-」という接頭辞には「悪の」という意味があり、これとソフトウェアを組み合わせた造語である。","マルウェア"]
[null,null,214,"利用者に気づかれないようにPCにプログラムを常駐させ，ファイルのデータやPC操作の情報を不正に取得する行為。","スパイウェア"]
[null,null,215,"ネットワークを利用して，他のコンピュータに自分自身のコピーを送り込んで自己増殖するプログラム。","ワーム"]
[null,null,216,"コンピュータのキー入力を監視してそれを記録することで、IDやパスワードなどを盗み出す手法。ソフトウェアタイプのものはコンピュータウイルス検出ソフトで見つけられることができるがキーボードのPS/2やUSB端子に通りつけるタイプのものは不審物が取り付けられていないか目で確認する以外に対策方法がない。ネットカフェのような不特定多数の人が使用するコンピュータに仕掛けられたケースが有名だが、銀行ATMの操作パネルを撮影するカメラが仕掛けられたケースもある。","キーロガー","key logger"]
[null,null,217,"無線LANの電波を検知できるPCを持って街中を移動し、不正に利用が可能なアクセスポイントを見つけ出すこと。","war driving"]
[null,null,218,"攻撃者の手法を調査するために、インターネット上に設置されたシステムのこと。","ハニーポット","honey pot"]
[null,null,219,"ウィルスやワーム、ボットなどに感染し、実際に情報資産が損なわれてしまった状態のこと。","インシデント"]
[null,null,220,"Webサーバに対するアクセスがどのPCからのものであるかを識別するために，WebサーバやWebページの指示によってWebブラウザにユーザ情報などを保存する仕組み","クッキー","cookie"]
[null,null,221,"「非武装地帯」の略。インターネットに接続されたネットワークにおいて、ファイアウォールによって外部ネットワーク(インターネット)からも内部ネットワーク(組織内のネットワーク)からも隔離された区域のこと。外部に公開するサーバをここに置いておけば、ファイアウォールによって外部からの不正なアクセスを排除でき、また万が一公開サーバが乗っ取られた場合でも、内部ネットワークにまで被害が及ぶことはない。","ＤＭＺ","DeMilitarized Zone"]
[null,null,222,"組織や個人が個人情報の収集・活用・保護などの取り扱いの方針を定めた規範のことで、公表され誰でも確認できるようになっていることが多い。個人情報保護法が制定されたことにより、多くの組織で作成し公表している。","個人情報保護方針(プライバシーポリシー)","privacy policy"]
[null,null,223,"公開鍵暗号方式において、暗号化されたデータを復号する際に必要な情報（鍵）のこと。","秘密鍵"]
[null,null,224,"公開鍵暗号方式において、データを暗号化する際に必要な情報（鍵）のこと。","公開鍵"]
[null,null,225,"暗号化と復号化に同じ鍵を用いる暗号方式のこと。扱いが簡単であり、処理速度が速い半面、相手先ごとに固有の鍵を作成しなければならないこと、あらかじめ安全な方法で相手に鍵を渡さなければならないことから、限られた特定の相手とのやり取りに向いている。また自分のパソコンにデータを暗号化して保存する場合などにも有効。共通鍵暗号方式ではDESが有名。","共通鍵暗号方式"]
[null,null,226,"対になる２つの鍵を使ってデータの暗号化・復号を行う暗号方式のこと。、“暗号文を作り出す鍵”と“暗号文を元に戻す鍵”が異なる。暗号通信をしたい人は、まず独自に2つの鍵のペアを作成する。1つは暗号文を作り出す鍵で公開鍵と呼ばれ、通信相手に知らせる鍵としてインターネット上でもやりとりできる。だれでもこの公開鍵で暗号文を作成でき、鍵を公開している人に送ることができる。暗号文の受け手は、公開鍵とペアになっている、本人だけが分かるように厳重に管理された秘密鍵で復号する。","公開鍵暗号方式"]
[null,null,227,"インターネット上で情報を暗号化して送受信するプロトコル。プライバシー情報やクレジットカード番号、企業秘密などを安全に送受信する。暗号化・認証(正当性の確認)・改ざん検知の機能を持っている。","SSL","Secure Sockets Layer"]
[null,null,228,"一度の認証で許可されている複数のサーバやアプリケーションなどを利用できる仕組み。","シングルサインオン"]
[null,null,229,"一度しか使用しない使い捨てのパスワードのこと。同じパスワードは二度と使えないため、盗聴などのリスクに対しての安全度を高めることが可能。","ワンタイムパスワード"]
[null,null,230,"無線LANにおいて、一定時間経過後に暗号鍵を自動的に変更するプロトコル。","TKIP","Temporal Key Integrity Protocol"]
[null,null,231,"ファイルがある時刻以前に存在していたことを保証する証明書を発行すること。","タイムスタンプ","time stamp"]
[null,null,232,"ブラウザとWebサーバ間で、データを暗号化して送受信するプロトコル。","HTTPS","HTTP over Secure Socket Layer"]
[null,null,233,"パケットの情報をもとに、不必要な通信データを排除する機能のこと。","フィルタリング"]
[null,null,234,"コンピュータの利用状況やデータ通信の状況を記録したファイル。","ログファイル"]
["企業と法務","企業活動",235,"企業が活動する際に指針となる基本的な考え方であり、企業の存在意義や価値観などを示したもの。","経営理念"]
[null,null,236,"企業が事業展開のために利用できる人、物、金、情報のこと。\n1人ト・・・従業員  　 2.物・・・所有する土地、建物、設備など　　 3.金・・・資金 　　４．情報","経営資源"]
[null,null,237,"経営戦略を実現するための情報戦略の立案及び実施を主導する最高情報責任者。","ＣＩＯ","Chef information officer",1]
[null,null,238,"経営戦略を実現するための人事制度を構築し，勤務の実態を把握するなど管理・運営全般を掌握する最高人事責任者。","CHO","Chief Human resource Officer"]
[null,null,239,"自社の資金効率の向上，及び財務会計の正確性を維持する最高財務責任者。","CFO","Chief financial Officer"]
[null,null,240,"最高執行責任者のこと。日々の業務執行、特に営業活動の責任を請け負う。","COO","Chief Operating Officer"]
[null,null,241,"企業の経営全般に対しての責任者","CEO","chief executive officer"]
[null,null,242,"企業活動において経済的成長だけでなく、環境や社会からの要請に対し、責任を果たすことが、企業価値の向上につながるという考え方。企業の社会的責任。","ＣＳＲ","Corporate Social Responsibility ",1]
[null,null,243,"自社の経営状況を外部に公開し、企業経営の透明性を確保すること。","ディスクロージャー",null,1]
[null,null,244,"職場内訓練とも呼ばれ実際の現場で上司や先輩の指導のもとで仕事を習得させていく教育方法。","OJT","On the Job Training"]
[null,null,245,"投資家向け広報活動。\n投資家やアナリストに対して、投資判断に必要な正確な経営情報を適時に、かつ継続して提供すること。","ＩＲ","Investor Relations",1]
[null,null,246,"PCやサーバ、ネットワークなどの情報通信機器の省エネや資源の有効利用だけでなく、それらの機器を利用することによって社会の省エネを推進し、環境を保護していくという考え方。","グリーンIT"]
[null,null,247,"ピラミッド型組織のこと。\n長所・・・企業方針や戦略が徹底しやすく、各組織の役割が明確。\n短所・・・経営者が実態をとらえづらく、意思決定に時間がかかる。","階層別組織",null,1]
[null,null,248,"株式会社の最高意志決定機関。","株主総会",null,1]
[null,null,249,"企業組織の一種で、事業部制組織と似ているが、事業部制組織よりも各事業部に大きな権限を持たせ、それぞれを独立した会社のように扱う組織。","カンパニー制組織",null,2]
[null,null,250,"製品別や地域別に事業部を設け、その中に職能別組織がある会社組織。事業部ごとに利益を上げなければならない独立採算制が特徴。","事業部制組織",null,2]
[null,null,251,"新規事業を立ち上げることを目的とした組織。成功すると、子会社として分離することもある。","社内ベンチャー組織",null,2]
[null,null,252,"組織全体を職種ごとに生産や販売を担当するライン部門と経理など専門化された職種を担当するスタック部門に分けて組織化するもの。一般的な会社の組織。","職能別組織",null,2]
[null,null,253,"業務などを改善するときに、計画(Plan)、実行(Do)、確認(Check)、改善(Act)を繰り返す方法。","ＰＤＣＡサイクル",null,2]
[null,null,254,"特定業務を行うために組織の垣根を越えた臨時に編成される組織。業務終了までの期間限定でチームを作る。\n長所：組織編成がフレキシブルにできる。　　短所：調整が複雑になりやすい。　","プロジェクト制組織",null,2]
[null,null,255,"プロジェクトと各職種別部門とを区分けするのではなく、一人のメンバが２つの組織に属することによって、職務横断的な意思決定を目指そうとする柔軟な組織構造。","マトリックス組織",null,2]
[null,null,256,"グループ企業の株式を保有することによって，本社機能に特化した会社形態として経営を行うことができる。","持株会社(ホールディングカンパニー)"]
[null,null,257,"職場のメンバでグループを作り，職場内で発生する様々な問題を継続的に解決する方法","QCサークル","Quality Control Circle"]
[null,null,258,"品質に関する活動を手順化・文書化・記録化することによって，品質の保証と顧客満足の向上を図ること。","TQC","Total Quality Management"]
[null,null,259,"管理図の一種で、製品寸法などの平均値を管理する図。","Ｘバー管理図",null,2]
[null,null,{"$f":"C261+1","v":260},"工場の製造工程に異常が発生していないか、監視するための図。Xバー管理図や、R管理図などがある。上下の管理限界にデータが収まっていれば、工程に異常はないと判断できる。","管理図",null,3]
[null,null,261,"2つのデータの間の関連性を調べるためのグラフ。2つのデータをそれぞれX軸、Y軸にとり、点をプロットしていく。右上がりのグラフになれば「正の相関」、右下がりのグラフになれば「負の相関」、ばらばらならば「相関なし」となる。","散布図",null,3]
[null,null,262,"折れ線グラフを3つ組み合わせたもので、Zの文字の形をしているグラフ。月別売上高の推移のグラフによく用いられる。","Ｚグラフ",null,3]
[null,null,263,"件数の多い順に並べた棒グラフと、累計を表す折れ線グラフを組み合わせたグラフ。重点項目を調べるABC分析によく使われる。","パレート図",null,3]
[null,null,264,"新QC７つ道具の１つで、関係を分析したい２つの要素を縦軸と横軸にとり、その交点に関係の有無や関係の度合いを書き込むことで、問題の所在を明らかにしていく手法。","マトリックス図法",null,3]
[null,null,265,"複数の項目間のバランスを見るグラフ。","レーダチャート",null,3]
[null,null,266,"ものごとを決めるときに、数学的、統計的なモデルを用いることによって最適な選択をしようとする考え方。","オペレーティングリサーチ(OR)",null,3]
[null,null,267,"新QC７つ道具の１つで、マトリックス図法で要素同士の関連が数値で表せた場合は、主成分分析して散布図を作ることができる手法。","マトリックスデータ解析法",null,3]
[null,null,268,"データをいくつかの区間にわけ、その範囲に含まれるデータの度数に比例する量を長方形の棒で、表現したグラフ。","ヒストグラム",null,3]
[null,null,269,"現状業務がどのように行われているかを的確に把握し、調査の事前準備において想定した課題点や改善方法の検証、同業他社の基準値などとの比較検討を行うこと。","現状分析",null,3]
[null,null,270,"グループによるアイデア発想法のひとつで、各自の自由な意見を出し合い、多数のアイデアを生み出す方法。","ブレーンストーミング",null,3]
[null,null,271,"グループによるデータの整理や分析をする方法のひとつで、各自の意見をカードに書き出し、整理することで意見をまとめていく方法。","KJ法",null,3]
[null,null,272,"条件と処理を対比させた表形式で論理を表現し、複雑な条件判定を伴う要求仕様の記述手段として有効な表のこと。プログラム制御の条件漏れなどのチェックにも効果がある。","決定表（デシジョンテーブル）",null,3]
[null,null,273,"業務の流れをデータの流れとしてとらえ、業務を構成する一群のプロセスの流れを記述する手法。\n長所：業務の内容を多元的にとらえられるため、曖昧さや抜けが排除できる。　　短所：時間の概念やプロセスの発生時期が分からない。","DFD",null,3]
[null,null,274,"日程計画や管理手法のひとつで、仕事全体を構成する各作業の作業日数などを図であらわしたもの。","パート図","PERT",3]
[null,null,275,"パート図において、作業開始から終了までをつなぐまったく余裕のない経路のこと。","クリティカルパス",null,3]
[null,null,276,"対象の要素を重要な順に並べ、上位からABCの３グループにわけて分析すること。","ABC分析",null,3]
[null,null,277,"散布図において、２項目間に比例する関係があること。","正の相関",null,3]
[null,null,278,"散布図において、２項目間で一方が高くなると一方が低くなるような比例関係があること。","負の相関",null,3]
[null,null,279,"原因（要因）と結果（特性）の関係を視覚化し体系化することで、ある問題の原因を明らかにした図で、影響を与えるものを矢印で結ぶ。図の形が魚の骨に見えることから、フィッシュボーンチャート（Fish Bone Chart）とも呼ばれる。","特性要因図",null,3]
[null,null,280,"顧客から注文された商品と、在庫の商品を対応させること。これをされた倉庫の商品は売約済みとなり、在庫管理上販売可能な在庫の数量は減少する。","在庫引当"]
[null,null,281,"作業に着手してから終了するまでに要する時間(日数)のことで、商品や原材料の調達の場合には発注から納入までにかかる日数になる。顧客(消費者)からするとこの日数が短いほうが満足度の向上につながるので、製造業、流通業などの全ての業界でこの日数を短縮するための努力が行われている。","リードタイム","lead time"]
[null,null,282,"複数のデータ間に相関関係がありそうなときに、そのデータを直線や曲線で近似して、そこから関数式を得る手法。","回帰分析",null,3]
[null,null,283,"一定期間における企業の収益と費用をまとめた表。売上総利益、営業利益、経常利益、税引前当期純利益、当期純利益がこの表からわかる。Profit and Loss statement,P/L ともいう。","損益計算書",null,3]
[null,null,284,"ある時点での企業の財務状態を表す。資産、負債、純資産で構成され、資産＝負債＋純資産となる。バランスシート（Balance Sheet,B/S）ともいう。","貸借対照表",null,4]
[null,null,285,"資本がどれくらいのサイクルで回収できているかを示す指標。","資本回転率",null,4]
[null,null,286,"流動負債に対する流動資産の割合。","流動比率",null,4]
[null,null,287,"財務諸表の一つで、現金（キャッシュ）の出入りを記録するもの。\n1　.営業活動によるキャッシュフロー 　　　　 2　.投資活動によるキャッシュフロー \n3.　財務活動によるキャッシュフロー  　　　　4　.現金及び現金同等物の期末残高","キャッシュフロー計算書",null,4]
[null,null,288,"企業において、ある商品をいくつ売れば利益が出るのかを知ることはとても大切。商品を売るにしても元手がかかっているので、一定数以上売らないと利益がでない。この利益が出るか出ないかの境目をいう。","損益分岐点",null,4]
[null,null,289,"金融商品取引法で規定されている、事業年度ごとに作成する企業内容の外部への開示資料。","有価証券報告書"]
[null,null,290,"売上高や生産高の変化に応じて、原価がどのように変化するのかいという原価計算の方法。費用を固定費と変動費に分けて管理する。","直接原価計算",null,4]
[null,null,291,"変動費を売上高で割った値","変動費率"]
[null,null,292,"会社の本業での収益力を示す営業利益の売上高に対する割合のことで、計算式は\n　営業利益 = 売上高 - 売上原価 - 販売費及び一般管理費\n　売上高営業利益率 = 営業利益÷売上高\nになる。","売上高営業利益率"]
[null,null,293,"日本語訳は自己資本利益率や株主資本利益率といわれるもの。企業の自己資本(株主資本)に対する当期純利益の割合のことをで、値が大きいほど利益率が高く、資産(設備投資など)がうまくまわっている(機能している)ことを表す。","ROE（自己資本利益率）","Return On Equity"]
[null,null,294,"株主に対する収益還元に重点を置いた経営指標。","EVA(経済付加価値)","Economic Value Added"]
[null,null,295,"利益と株価の関係示す指標。","PER(株価収益率)","Price Earnings Ratio"]
[null,null,296,"企業が保有する総資産に対する収益性を示す指標。","ROA(総資産利益率)","Return On Asset、"]
[null,null,297,"先に仕入れた商品から先に払い出されると仮定して単価を計算する方法","先入れ先出し法"]
[null,null,298,"仕入れのつど、残高金額と仕入れ金額とを合計し、その合計額を数量の合計で割って、新しい平均単価を計算し、これを単価とする方法","移動平均法"]
[null,null,299,"減価償却額＝取得価額×償却率　で計算する方法","定額法"]
[null,null,300,"減価償却額＝未償却残高×償却率　で計算する方法","定率法"]
[null,"法務",301,"知的創造活動を保護する権利。小説や映画といった芸術作品や特許、デザインなどの工業創作物に対する権利。","知的財産権"]
[null,null,302,"小説や脚本・音楽・舞踏・写真・絵画など、文化的創造物に対する権利。保護期間は著作者の死後50年間（法人著作物の場合は公表後50年間、映画は公表後70年間）","著作権"]
[null,null,303,"著作物に付加価値を付けた人に対して与えられる権利で、著作権に準じた権利。保護期間は50年","著作隣接権"]
[null,null,304,"ソフトウェアを許された範囲内で使用する権利。","ソフトウェアライセンス"]
[null,null,305,"企業や学校など、多数が使用する場合には、ソフトウェアの購入形態の１つとして、インストールできる許容数をあらかじめ取り決める方法","ボリュームライセンス契約"]
[null,null,306,"ソフトウェアで、一定期間試用することができ、気に入った場合は後から料金を支払う形態。","シェアウェア"]
[null,null,307,"発明やデザインといった、主に無形のものの創造に対する権利。特許権、実用新案権、意匠権、商標権の総称。","産業財産権"]
[null,null,308,"高度なアイデアや発明を保護する権利。出願日から20年間保護、","特許権"]
[null,null,309,"物品の形状や構造に関する考案を保護する権利。出願日から10年間保護。","実用新案権"]
[null,null,310,"製品のデザインや外観を保護する権利。登録日から20年間保護。","意匠権"]
[null,null,311,"商品名やマークを保護する権利。登録日から10年間保護。","商標権"]
[null,null,312,"２つまたは複数の企業等が、自らの持つ特許権の知的財産権の行使を互いに許諾すること。\n契約を結ぶ企業のそれぞれが自らの保有する特許権を利用して、他企業が保有する特許権を使用料を支払わずに使用することができるほか、開発を推進させ技術の向上を図ることができるメリットがある。","クロスライセンス"]
[null,null,313,"企業間の公正な競争を維持するために企業の持っている機密を保護する法律で、他者を妨害するなど、商売上の競争的地位を不正に優位にしようとする行為を規制する法律","不正競争防止法"]
[null,null,314,"他人のＩＤやパスワードを無断で使用したり、情報システムのセキュリティ上の弱点をついてアクセスしたりといった不正なアクセスを禁じる法律。","不正アクセス禁止法"]
[null,null,315,"個人情報の取得、利用、管理、対応について取り決めた法律。","個人情報保護法"]
[null,null,316,"労働時間・休憩・休暇など労働条件の最低ラインや男女同一賃金などを定め、弱い立場にある労働者を保護することを目的とした法律。","労働基準法"]
[null,null,317,"労働者を他の企業に派遣する際に適用される法律。労働者との雇用関係は派遣元企業。指揮命令は派遣先企業から行われる。","労働者派遣法"]
[null,null,318,"仕事の完成を目的として、受託者に対して委託者が報酬を支払う契約形態。","請負契約"]
[null,null,319,"親事業者による下請事業者に対する優越的地位の濫用行為を取り締まるために制定された法律。\n1.下請代金支払遅延の禁止   2.受領拒否の禁止  3.支払い期日を定める義務","下請法"]
[null,null,320,"製造物の欠陥により消費者側に被害が生じた際に製造業者の損害賠償の責任について定めることで、被害者の保護を目的とした法律。この法律にいう欠陥とは「当該製造物の特性、その通常予見される使用形態、その製造業者等が当該製造物を引き渡した時期その他の当該製造物に係る事情を考慮して、当該製造物が通常有すべき安全性を欠いていること」と定義されており（2条2項）、設計上の問題や製造上の問題，及び取扱説明書の記述に不備がある場合なども欠陥に該当する。","製造物責任法(PL法)"]
[null,null,321,"正式名称を「特定電気通信役務提供者の損害賠償責任の制限及び発信者情報の開示に関する法律」といい、特定通信による情報流通によって権利の侵害があった場合に、その特定通信の提供者の損害賠償責任の制限および発信者情報の開示請求をする権利を定めた法律。特にプロバイダ等を主な対象とした法律だが、電子掲示板やインターネット放送(動画サイト含む)などの運営者なども特定通信の提供者として法律の対象となる。","プロバイダ責任制限法"]
[null,null,322,"会社の設立・解散、組織、運営、資金調達、管理などについて規律する法律。","会社法"]
[null,null,323,"企業統治といい、企業経営の公平性・健全性・透明性を維持するしくみのこと。企業の経営者が持つ権力が正しく行使されるように経営者を牽(けん)制する制度。","コーポレートガバナンス"]
[null,null,{"$f":"C325+1","v":324},"日本語で「法令遵守」という意味。企業が活動する上で、法令や社会的ルールを守ること。","コンプライアンス","Compliance"]
[null,null,325,"アカウンティング（会計）とレスポンシビリティ（責任）の合成語で、「説明責任」と訳される。元は出資者に対する会計報告のことだったが、現在では意味が拡張され、「広く社会に影響をもちうる活動を行う団体が、利害関係者に対して、その活動や権限行使の予定、内容、結果等の報告をする必要がある」とする考え方を表している。","アカウンタビリティ"]
[null,null,326,"次々に転送されるように仕組まれたものや、多くの人に転送を促す内容のメール。","チェーンメール"]
[null,null,327,"受信者の承諾なしに無差別に送付されるメールのこと。不特定多数にばらまかれる広告や詐欺まがいの情報、勧誘などの迷惑電子メール。","スパムメール","Spam Mail"]
[null,null,328,"国際標準化機構の略で、電気・電子分野を除く工業分野の国際規格を決める団体。ISO9000とは、品質マネジメントシステムを構築するための標準規格。ISO14000とは、環境管理マネジメントシステム。ISO27000とは、セキュリティ管理マネジメントシステム","ＩＳＯ","International Organization for Standardization "]
[null,null,329,"情報システムやこれを構成するハードウェアおよびソフトウェアなどの製品に組み込まれた情報セキュリティ技術が、ユーザのセキュリティ要件を満たしているかを評価するための国際標準規格。","ＩＳＯ／ＩＥＣ　１５４０８","International Organization for Standardization"]
[null,null,330,"日本で一番普及している二次元バーコード。特徴は、3つの角には切り出しシンボルが配置されていて、360度どの向きから読み取っても正確に情報が読み出せる。最近では携帯電話にQRコードの読み取り機能が搭載され、インターネットのURLなど入力するのが面倒なデータを簡単に入力できる手段として普及している。数字だけなら最大7089文字を記録できる。","ＱＲコード","Quick Response "]
[null,null,331,"国際電気標準会議の略で、電気・電子分野で各国の規格・標準の調整を行なう国際機関。ISOの電気・電子分野を担当している。","ＩＥＣ","International Electrotechnical Commission"]
[null,null,332,"電気・電子分野の標準化を進めているアメリカの電気電子技術者協会のこと。IEEE802とは、LANの標準化。","ＩＥＥＥ","Institute of Electrical and Electronic Engineers "]
[null,null,333," アメリカ国内の工業製品の規格を決める団体。日本のJIS。","ＡＮＳＩ","American National Standard Institute"]
[null,null,334,"工業標準化法に基づいて、すべての工業製品について定められる日本の国家規格。JIS Q27001･･･セキュリティマネジメントのガイドラインで、機密性、安全性、可用性（ユーザが必要なときにいつでも使えるという概念）がある。","ＪＩＳ","Japan Industrial Standard"]
["経営戦略","経営・技術戦略マネジメント",335,"企業が活動する際に指針となる基本的な考え方であり、企業の存在意義や価値観などを示したもの。","企業理念"]
[null,null,336,"グループによるアイデア発想法のひとつで、各自の自由な意見を出し合い、多数のアイデアを生み出す方法。次のことを守りながら、会議などで意見を出していく方法。       1.批判禁止　2.便乗歓迎　3.自由奔放　4.質より量","ブレーンストーミング","Brainstorming",3]
[null,null,337,"他社が真似できない自社のノウハウや技術などに経営資源を集中し、競争優位を確立すること。","コアコンピタンス","Core Competence  (能力、力量)"]
[null,null,338,"企業の活動の範囲や事業領域のことで、市場における自社の位置づけを示すもの。","企業ドメイン","Domain"]
[null,null,339,"商品市場での過当な競争を避け、まだ顧客のニーズが満たされていない市場のすきま、すなわち小さな市場セグメントに焦点を合わせた事業展開で、競争優位を確保しようとする企業戦略。","ニッチ戦略","Niche Strategy "]
[null,null,340,"合併と買収。他の企業を取得しようとする際には買収者やその子会社などに吸収合併させるほか、買収先企業の株式を買収して子会社化する手段が用いられることからおよそ企業の取得という効果に着目して合併と取得を総称するものである。\nこれは新規事業や市場への参入、企業グループの再編、業務提携、経営が不振な企業の救済などを目的として実施される。広義には包括的な業務提携やOEM提携なども含まれる。","Ｍ＆Ａ","Mergers and Acquisitions"]
[null,null,341,"企業同士が連携し、共同行動をとること。製造・販売の提携、資本参加などがある。軽減が期待できるリスクとして、事業投資リスクが上げられる。","アライアンス","alliance（同盟）"]
[null,null,342,"商品やサービスを購入した顧客がそれに対してどのくらい満足したか、何かに期待していた顧客になにを提供できたかということ。","顧客満足度"]
[null,null,343,"品質に関する活動を手順化・文書化・記録化することによって，品質の保証と顧客満足の向上を図る。","TQM","Total Quality Management"]
[null,null,344,"この用語は、次の4つの単語の頭文字を並べたもので、組織に様々な影響を与える要因を、内的要因、外的要因に分け、ある要因は強みなのか弱みなのか、また、脅威なのか機会なのかを分析する方法である。これを活用することにより、的確な販売戦略などが立てられる。（内的要因（強み、弱み）：ブランド、価格など　　外的要因（機会、脅威）：政治・経済状況、競合他社など）\n 1.Strengths(ストレングス)（強み）  2.Weaknesses(ウィークネス)（弱み）　3.Oppotunities(オポチュニティ)（機会）  4.Threats(スレット)（脅威）　","ＳＷＯＴ分析","Strength Weakness Opportunity Threat"]
[null,null,345,"経営資源の配分が最も効果的となる事業を決定するための手法。横軸を市場占有率、縦軸を市場成長率とすると、次の4種類に分けられる。1.花形・・・占有率が高いので儲かるが成長率が高いので、さらに投資が必要。2.金のなる木・・・大きな投資をしなくても、ある程度の収益が見込める。3.問題児・・・占有率は低いが成長率は高いので投資をすることにより花形事業になる可能性がある。4.負け犬・・・投資をしても今後の成長の見込みが少ない分野なので撤退することが妥当。","ＰＰＭ","Product Portfolio Management"]
[null,null,346,"企業がターゲットとする市場で目標を達成するために、複数のマーケティング要素を組み合わせること。マッカーシーの4Pとしてよく知られる概念。　4つのPとは、製品・サービス（Product）、価格（Price）、流通（Place）、プロモーション（Promotion）の4つのマーケティング要素。例　流通･･･従来、代理店を通じて販売していた商品のECサイトでの直売を開始する","マーケティングミックス","Marketing Mix"]
[null,null,347,"経営陣が金融機関などから資金調達して株式を買い取り，経営権を取得することである。","MBO","Management Buyout"]
[null,null,348,"製品を生産するために必要となる部品や資材の量を計算し，生産計画に反映させる資材管理手法のことである。","MRP","Materials Requirements Planning"]
[null,null,349,"発言した意見や感想が顧客の購買行動に重要な影響を与える人々のことで、医薬品業界における著名教授、ファッション業界におけるモデルや芸能人などが挙げられる。これらの人達に商品の魅力を十分に伝えられるかどうかが販売上の鍵となっていることも多い。","オピニオンリーダ","Opinion leader"]
[null,null,350,"多くの人が当該商品を利用していることを確認してから購入する層。レイトマジョリティとも言う。","フォロワーズ"]
[null,null,351,"比較的慎重であり，早期購入者に相談するなどしてから当該商品を追随的に購入する層。.アーリーマジョリティとも言う。","ブリッジピープル"]
[null,null,352,"冒険的で率先して当該商品を購入する層","イノベーター","Innovators：革新者"]
[null,null,353,"企業活動の中心は顧客を創造し維持することだと考え、マーケティングを企業活動の中心的な機能に位置付ける考え方","マーケティングコンセプト","Marketing Concept"]
[null,null,354,"商品が顧客に届くまでのプロセスに関わる、相互依存的な組織集団を指す。","マーケティングチャネル","marketing channel "]
[null,null,355,"消費者の欲求に合った商品を、適切な数量・価格・タイミングで提供するための企業活動のこと。","マーチャンダイジング","merchandising"]
[null,null,356,"単一の商品だけでなくその商品に関連する別の商品や組合せ商品を薦めることで購入品目を増加させ、結果として売上げの拡大を目指す手法。  例　スキー板を購入した顧客にスキーウェアの購入を薦める。","クロスセリング","Cross Selling"]
[null,null,357,"ある商品に対してより価格や付加価値の高い商品の販売を促進する手法。\n例　エコノミークラスのチケットを求めている顧客にビジネスクラスの利用を薦める。","アップセリング","Up-selling"]
[null,null,358,"レビュー参加者が持ち回りで責任者を務めながら対象内容の検証を遂行していく手法。","ウォークスルー","Walk Through"]
[null,null,359,"「業務を遂行する際に必要とされる人間的側面のスキル」のことで、具体的にはコミュニケーション・ネゴシエーション（negotiation　交渉）・リーダーシップの３つのスキルを指している。","パーソナルスキル"]
[null,null,360,"在庫を一切持たないでWebサイト上で販売を行うこと。","ドロップショッピング","Drop Shipping"]
[null,null,361,"主に製造業において、統計分析手法、品質管理手法を体系的に用いて製品製造工程などの各種プロセスの分析を行い、原因の特定やそれへの対策を行って、不良率の引き下げや顧客満足度の向上などを目指す品質管理手法、または経営手法。","シックスシグマ","six sigma"]
[null,null,362,"ネットオークションなどでの売買代金のトラブルを防ぐために、第三者が代金を一時的に預かり、決済を仲介するサービス。","エスクロー","escrow"]
[null,null,363,"動物の長いしっぽのように幅広い商品が少しずつ長く売れること。","ロングテール","the long tail"]
[null,null,364,"誘導実績に応じた報酬を支払うことを条件に、ほかのWebサイトにリンクを掲載し、自社商品の購入Webサイトへの顧客誘導を図る。","アフィリエイト","affiliate"]
[null,null,365,"インターネット広告の一種でWebサイトに広告の画像に広告主のWebサイトへのリンクを設置して表示させ、Webサイトの閲覧者が画像をクリックすることで広告主のWebサイトに誘導する手法。インターネット広告としては最も広く用いられているタイプの広告になる。","バナー広告","banner advertisement"]
[null,null,366,"自社の業務過程の一部を国外への業務委託すること。主な狙いは、人件費が安い国外にアウトソーシングすることで、コストの削減を進めること。","オフショアアウトソーシング","offshore"]
[null,null,367,"業績評価手法の一つ。企業のビジョンと戦略を4つの視点（財務、顧客、業務プロセス、学習と成長）で分類し、各視点ごとに、目標、業績評価指標、ターゲット、具体的プログラムを設定する。これにより、財務的な数値だけでない、総合的な評価が行える。","バランススコアカード\n（ＢＳＣ)","Balanced Score Card"]
[null,null,368,"重要成功要因。競争優位性を確立するために、経営侵略上必要とされるコアとなる成功要因のことで、経営戦略を実行する上で、何をすればよいかを決定するもの。","ＣＳＦ","Critical Success Factors"]
[null,null,369,"民間企業、学校、地方自治体などの組織や個人が一定の目標を達成するため、目標に向かってのプロセスが順調に進んでいるかどうかを点検するもっとも重要な指標。経営学から発生した概念で、「重要業績評価指標」と訳されることが多い。","ＫＰＩ","key performance indicator "]
[null,null,370,"重要目標達成指標。企業目標やビジネス戦略を実現するために設定した具体的な業務プロセスをモニタリングする指標の1つで、何を持って成果とするかを定量的に定めたもの。","ＫＧＩ"," Key Goal Indicator"]
[null,null,371,"製品やサービスの価値を機能とコストの関係で把握し、体系化された手順によって価値の向上を図る手法。","バリューエンジニアリング（VE)","Value Engineering"]
[null,null,372,"設計から生産に至るまでの各プロセスを同時並行的に行うことで開発期間や納期を短縮や生産の効率化などを進める手法","コンカレントエンジニアリング","concurrent engineering（同時発生）"]
[null,null,373,"設計から生産に至るまでの各プロセスを順番に行っていく手法","シーケンスエンジニアリング"," sequence  engineering"]
[null,null,374,"生産工学のことで、分析や統計など科学的な方法を用いることで生産現場やサービスにおいて最も効率的なシステムを考える手法","インダストリアルエンジニアリング","industrial　engineering（工業の）"]
[null,null,375,"ソフトウェアの動作を解析するなどして製品の構造を分析し、そこから製造方法や動作原理、設計図、ソースコードなどを調査する技法","リバースエンジニアリング","reverse　engineering（逆の）"]
[null,null,376,"営業支援システム。CRMの一環として位置づけられ、一元管理された顧客データベースを用いて効率的で質の高い営業活動を行うことの他、優良顧客の抽出なども行われる。管理ずべき情報：顧客への訪問回数，商談進捗状況，取引状況などの情報","ＳＦＡ","Sales Force Automation"]
[null,null,377,"顧客関係管理。何を購入したかなどの顧客情報をデータベース化（記録・管理）し、社内で共有する経営手法。この手法により、企業は顧客に対して最適な対応をすることができ、顧客から信頼を得て、より多くの商品・サービスを購入してもらえるようになる。\n【例】　アマゾンのレコメンド機能（ある商品を購入すると、興味があるであろう別商品を紹介するシステム）や、家電量販店などのポイント","ＣＲＭ","Customer Relationship Management"]
[null,null,378,"従業員の創造性、行動能力や知恵、データベース上に蓄積された知識や情報をばらばらなものとしてではなく、統合された経営資源として活用を図る。","ナレッジマネジメント","knowledge management"]
[null,null,379,"技術に立脚する事業を行う企業が，技術開発に投資してイノベーションを促進し，事業を持続的に発展させていく経営の考え方のこと。","MOT","Management of Technology"]
[null,null,380,"コンピュータと電話の融合のこと。電話，FAX，電子メールなど多様な手段による顧客からの各種問合せに対し，即時に対応することができる。","ＣＴＩ","Computer Telephony Integration"]
[null,null,381,"各部門で情報を共有することにより、調達から製造、物流、販売までの一連のプロセスを改善し、納期、コストの最適化を図ることができる考え方。日本語では供給連鎖管理という。","ＳＣＭ","Supply Chain Management"]
[null,null,382,"製品やサービスを顧客に提供するという企業活動を、調達／開発／製造／販売／サービスといったそれぞれの業務が、一連の流れの中で順次、価値とコストを付加・蓄積していくものととらえ、この連鎖的活動によって顧客に向けた最終的な“価値”が生み出されるとする考え方。","バリューチェーン","Value Chain"]
[null,null,383,"どの技術にどの程度の投資を行うかを決定すること。","技術開発戦略"]
[null,null,384,"仕事のプロセスで発生する可能性がある障害をあらかじめ予測し，対応策を計画すること。","FMEA","Failure Mode and Effect Analysis"]
[null,null,385,"専門家に対するアンケートを繰り返し、意見をまとめていく方法。まず、複数の専門家にアンケートを取り集約し、そのアンケート結果を添え、同じ専門家に対して、同じアンケートを行う。これを複数回繰り返すと、意見が収束する。","デルファイ法","delphi method "]
[null,null,386,"1人又は数人の作業員が，生産の全工程を担当する方式","セル生産方式"]
[null,null,387,"必要な物を、必要なときに、必要な量だけ生産する方式","ジャストインタイム生産方式","Just In Time"]
[null,"ビジネスインダストリ",{"$f":"C389+1","v":388},"販売時点情報管理システムといい、品名、価格、日時などの販売実績情報を収集するシステム。コンビニやスーパーなど、販売店のレジでデータを収集し、売れ行きを調査する目的で使われている。","ＰＯＳ","Point Of Sales"]
[null,null,389,"日本で最も普及している商品識別コード。このコードは市販されている多くの商品に付けられており、POSシステムなどに活用されている。標準タイプ13桁と短縮タイプ8桁の2種類がある。","ＪＡＮコード","Japanese Article Number "]
[null,null,390,"標準物流コードで、段ボールに印刷されているバーコードのこと。5本のバーで1文字を表す。5本のうち、2本が太いので、2 of 5 という。","ＩＴＦ","Interleaved Two of Five"]
[null,null,391,"自動受発注システム。受発注業務を自動化し、オンラインで管理するためのシステム。","ＥＯＳ","Electric Ordering System"]
[null,null,392,"微小な無線チップにより人やモノを識別・管理する仕組み。","ＲＦＩＤ","Radio Frequency Identification"]
[null,null,393,"ICチップへの情報の格納や情報の暗号化を行っているので、磁気カードに比べて偽造されにくい。","ＩＣカード","integrated circuit "]
[null,null,394,"(株)パスモが発行する鉄道・バス共通乗車カードで、FeliCaの技術を用いた、乗車券や電子マネーとして利用できるICカード。","ＰＡＳＭＯ"]
[null,null,395,"自動料金収受システムといい、有料道路の自動料金支払いシステムのこと。料金所ゲートに設置されたアンテナと、ETC車載器との無線通信により、自動的に通行料金を決済する。","ＥＴＣ","Electronic Toll Collection"]
[null,null,396,"本部が契約した加盟店に対して、営業権や商標の使用権、出店や運営のノウハウを提供し、その見返りとして加盟店からロイヤルティを徴収するという関係を有した小売り形態。","フランチャイズチェーン","franchise chain"]
[null,null,397,"多数の独立した小売事業者が連携・組織化し、商標使用・仕入れ・物流などを共同化し、これを行う事業形態のこと。 仕入先との取引が大口化され、仕入れ単価の引き下げが期待できるなどのメリットがある。","ボランタリチェーン","voluntary chain"]
[null,null,398,"経営資源の有効活用の観点から企業活動全般を統合的に管理し、業務を横断的に連携させることによって経営資源の最適化と経営の効率化を図る。\n経営資源計画のことで、受注・販売管理、在庫管理、生産管理、会計といった基幹業務用の情報システムのこと。以前は各企業ごとに同様のシステムを開発することが多かったが、このソフトウェアパッケージを導入することにより、短期間・低コストで基幹業務システムを利用することができるようになった。　　例　パッケージとしては、SAPの「R/3]、オラクルの「Oracle Applications」がある。","ＥＲＰ","Enterprise Resource Planning(Enterprise：企業）"]
[null,null,399,"世界測位システムのことで、人工衛星を利用して現在地を調べるしくみ。身近なところでは、カーナビゲーションに使われている。","ＧＰＳ","Global Positioning System"]
[null,null,400,"コンピュータを使って製品の設計の一部分を自動化するシステム。","ＣＡＤ","Computer Aided Design"]
[null,null,401,"製品の製造工程をコンピュータによって支援するシステム。","ＣＡＭ","Computer Aided manufacturing"]
[null,null,402,"経営戦略を含めた企業の活動全体を、部署だけの事情を考えるのではなく、全社横断的に管理するシステム。","ＣＩＭ","Computer Integrated Manufacturing"]
[null,null,403,"研究開発をコンピュータによって支援するシステム、主に工業製品の新規開発に用いられる。","ＣＡＥ","Computer Aided Engineerring"]
[null,null,404,"コンピュータを利用して工場の自動化を図る統合システム。","ＦＡシステム","Factory Automation"]
[null,null,405,"インターネットを介して行われる商取引全般。","電子商取引（ＥＣ）","Electronic Commerce"]
[null,null,406,"契約書や取引の受発注書などの企業間取引に関わる書類を電子化し、ネットワークを通じて交換するシステム。","ＥＤＩ","Electronic Data Interchange"]
[null,null,407,"製品の調達から開発・生産・保守管理までのライフサイクルすべてに関する情報をデータベース化し、一元管理するシステムであり、製品に関する情報を主に扱う。","ＣＡＬＳ","Continuous Acquisition and Life-cycle Support "]
[null,null,408,"企業間の電子商取引。","ＢｔｏＢ","Business to Business"]
[null,null,409,"企業と消費者がやりとりする電子商取引。","ＢｔｏＣ","Business to Consumer"]
[null,null,410,"企業と政府が行う電子商取引。","ＢｔｏＧ","Business to "]
[null,null,411,"消費者と消費者の電子商取引。例　オークション","ＣｔｏＣ","Consumer to Consumer"]
[null,null,412,"インターネット上に複数の仮想商店からなるWebサイトを構築し、出店料を徴収する仕組み。","バーチャルモール","virtual mall"]
[null,null,413,"インターネット上で、一般消費者が買いたい品物とその購入条件を提示し、単一または複数の売り手がそれに応じる取引形態。","逆オークション","Reverse Auction"]
[null,null,414,"特定の機能を実現するために家電製品や機械などに組み込まれたコンピュータシステムのこと。","組込みシステム"]
[null,null,415,"インターネットなどのネットワークに接続できる通信機能を備えた家電。","情報家電"]
[null,null,416,"コンピュータの存在を意識させることなく、人間がどこに移動しても利用できる環境。","ユビキタスコンピューティング","ubiquitous computing :至る所に存在する"]
[null,null,417,"高齢者・障害者を含む誰もが、様々な製品や建物やサービスなどを支障なく利用できるかどうか、あるいはその度合いをいう。\n　例えば、手や腕の障害のためにマウスを使えない場合、ソフトウェアはキーボードだけで利用可能である必要がある。弱視や老眼の人にとってはフォントサイズや配色は容易にカスタマイズ可能でなくては見にくい。視覚障害の人は読み上げソフトを使うので、それに適したレイアウトや記述方法が求められる。","アクセシビリティ","accessibility。「近づきやすさ」「接近容易性」"]
[null,null,418,"現実感を伴った仮想的な世界をコンピュータで作り出す技術","バーチャルリアリティ","virtual reality"]
[null,null,419,"PCやインターネットなどのITを利用する能力や機会の違いにより、経済的又は社会的な格差が生じること。","ディジタルディバイド","digital divide  分けられた"]
[null,null,420,"従来は手元のコンピュータで管理・利用していたようなソフトウェアやデータなどを、インターネットなどのネットワークを通じてサービスの形で必要に応じて利用する方式。IT業界ではシステム構成図でネットワークの向こう側を雲(cloud：クラウド)のマークで表す慣習があることから、このように呼ばれる。","クラウドコンピューティング"]
[null,"システム戦略",421,"何の商売をし、どのように収益を得て、そのビジネスを成り立たせるかという、儲けを生み出すビジネスの仕組み。","ビジネスモデル"]
[null,null,422,"ビジネスモデルの目的に沿って、それぞれの業務の一連の流れを整合性のあるモデルとして表す。","ビジネスプロセスモデル"]
[null,null,423,"個々のビジネスプロセスの実現を効果的に行うため、ビジネスプロセス間の連携を円滑に行い、情報が円滑に流れて処理されるシステムとしてまとめること。","情報システムモデル"]
[null,null,424,"組織が経営戦略に沿って効果的な情報システム戦略を立案し、戦略に基づいて情報システムの企画、開発、運用、保守を行う中で、効果的な管理をするための基準。","システム管理基準"]
[null,null,425,"各部門間にまたがる業務の一連の流れを図に表したもの。非効率や無駄などの問題発見とその改善点を探り、業務プロセスの円滑化に結びつけることができる。","ワークフロー分析"]
[null,null,426,"E-R図やUMLを用いて、データを構造化し組織化して表現すること。","データモデリング／モデル化"]
[null,null,427,"データ（エンティティ）とその関連（リレーションシップ）を可視化して、わかりやすくしたもの。関連の種類には、１対１、１対多、多対多　がある。データモデリングで使用する。","Ｅ－Ｒ図","Entity-Relationship Chart"]
[null,null,428,"業務の流れをデータの流れとしてとらえ、業務を構成する一群のプロセスの流れを、次の4種類の記号で記述する手法。\n1.データフロー  2.処理（プロセス）  3.データストア（ファイル）  4.データの源泉と吸収\n長所：業務の内容を多元的にとらえられるために、曖昧さや抜けが排除できる。\n短所：時間の概念や、プロセスの発生時期が分からない。","ＤＦＤ","Data Flow Diagram "]
[null,null,429,"様々なケースが考えられるときにどのケースを選択すればいいかという決定理論の一つで、各ケースの最悪値を比較し、最も良い場合を選択する方法。ミニマックス原理とも呼ばれる。決定理論には他に、ラプラスの原理、マクシマックス原理、ハーヴィッツの原理、リグレット・ミニマックス原理などがある。","マキシミン戦略(マクシミン原理)"]
[null,null,430,"企業の業務効率や生産性を改善するために、既存の組織やビジネスルールを全面的に見直して、最新のＩＴ技術を活用して再構築すること。コスト、品質、サービスなどを改善するために、これを行うと、業務の流れが大きく変わる。","ＢＰＲ","Business Process Reengineering"]
[null,null,431,"業務改善は一定のサイクルで継続的に行われるものであるという考えに基づき、業務の流れを分析・整理することによって、問題点を見出し、最適な業務プロセスを追求する手法。業務の可視化，デザイン，業務プロセス構築、業務モニタリング，業務実績評価といった一連の業務改善サイクルを、ＩＴを利用し継続的に行えるようにするものです。IDSシェアーのモデリングツール「ARIS」が有名である。","ＢＰＭ","Business Process Management"]
[null,null,432,"ワークフローの図を事務処理の流れとしてコンピュータに組み込み、業務の流れの効率化を図るグループウエアの機能の一つ。稟議書などの電子文書の承認など、人為的ミスの削減に役立つ。\n活用事例：機器を購入するにあたり、申請書類の起案からりん議決裁に至るまでの一連の流れをネットワーク上で行う。","ワークフローシステム"]
[null,null,433,"スケジュールの共有やチーム内のコミュニケーションを行うことにより、組織としての業務効率を高めるソフトウェア\n特徴：コミュニケーションの円滑化、データ共有、スケジュール管理","グループウェア"]
[null,null,434,"ＩＴ技術を活用して企業などの組織がかかえる問題の解決を図るビジネスを提供すること。\n1.ホスティングサービス　2.ハウジングサービス　3.ASP　4.SaaS","ソリューションビジネス"]
[null,null,435,"アプリケーションなどの一部の機能を部品化し、それらを組み合わせてシステムを設計する手法。\nそれを実現する具体的な技術基盤の標準として「Webサービス」が有望視されている。ソフトウェアをWebサービス化することにより、各サービスがXMLで記述されたメッセージをSOAPでやり取りし、連携して動作する。\n特徴：変化に柔軟に対応できるシステム開発が容易になり、開発生産性の向上を図ることができる。","ＳＯＡ","Service Oriented Architecture"]
[null,null,436,"利用者のサーバやコンピュータを預かって運用してくれるサービス。","ハウジングサービス","housing service "]
[null,null,437,"ベンダが所有するサーバや運用資源を多数のユーザが共同利用する形態。サーバの利用度などに応じて課金される。\n特徴：コストの削減や信頼性の向上が図れる。","ホスティングサービス","hosting service"]
[null,null,438,"サービス提供事業者が、インターネット経由で業務ソフトウェアを提供するサービス。\n特徴：コストの削減が図れる。バージョンアップ等による保守の負担の軽減。","ＡＳＰ","Application Service Provider"]
[null,null,439,"ソフトウェアの機能を複数の企業にインターネット経由でサービスとして提供し、使用料を課金するもの。ユーザは必要な機能のみを必要なときに利用でき、利用する機能に応じた分だけの料金を支払う。","ＳａａＳ","Software as a Service"]
[null,null,440,"ソフトウェアの開発や実行を行うためのプラットフォームを提供するサービス。\n特徴　ソフトウェアを自社で開発したり、使い慣れたアプリケーションを使用したいという時に便利。\n例　Ｗｅｂメールサービス・・・サーバーやＯＳ，ミドルウェアクラウド上に用意されるが、メールソフトは自社で用意することができる。","PaaS","Platform as a Service"]
[null,null,441,"コンピュータが動作する環境を提供するサービス。\n特徴　さまざまなＯＳが使用できるため、自社の環境に合わせたシステムがすぐに構築できる。","IaaS","Infrastructure as a Service"]
[null,null,442,"自社の業務の一部を他の企業に企画・設計・運営まで一括して委託すること。","ＢＰＯ","Business Process Outsourcing"]
[null,null,443,"他社で製造されたものを購入し、自社ブランドで売ること。","ＯＥＭ","Original Equipment Manufacturer"]
[null,null,444,"自社では工場を持たずに製品の企画を行い、ほかの企業に生産委託すること。自社の得意分野への経営資源の特化、他企業との戦略提携などによって可能になる。","ファブレス","fabless"]
[null,null,445,"他社から委託された半導体チップの生産業務だけを専門的に行うこと。","ファウンドリ","foundry"]
[null,null,446,"電子機器の設計、試作、製造を一括して生産受託すること。特徴：コストダウン、材料調達や在庫管理などの負担減","ＥＭＳ","Electronics Manufacturing Service "]
[null,null,447,"顧客である企業や家庭のコンピュータをインターネットに接続するインターネット接続業者のこと。","ISP","Internet Services Provider"]
[null,null,448,"システム企画のなかで、情報システムの有効性および投資対効果を明確にしていく作業。","システム化計画"]
[null,null,449,"与えられた要求を、システムの立場からどのように機能として取り込むのか、その範囲やシステムの仕様を明確にすること。","要求定義"]
[null,null,450,"情報システムの開発時に発注予定のベンダに発行する情報提供依頼書のこと。","ＲＦＩ","Request For Information"]
[null,null,451,"情報システムの開発時に発注予定のベンダに発行する提案依頼書のこと。\n目的：業務システムの開発を依頼するために，ベンダの示す提案内容から最適な依頼先を選定するため。\n方法：あらかじめ設定しておいた評価基準を用いて、提案内容を比較して選定する。","ＲＦＰ","Request For Proposal"]
["開発技術","システム開発技術",{"$f":"C453+1","v":452},"システムで使用するハードウェア、ソフトウェア、データベースなどの方式を決定し、システム結合テストの設計を行う。","システム方式設計"]
[null,null,453,"必要な機能を定義し、ソフトウェアをプログラム単位まで分割し、その機能や処理の手順を明確化（機能分割・構造化）したり、外部とのインターフェースの方式設計やソフトウェア結合テストの設計を行う。","ソフトウェア方式設計"]
[null,null,454,"プログラム１行ごとの処理まで明確になるように詳細化していく。物理データ（ファイル）設計、入出力詳細設計、構造化設計（モジュール設計）など、各プログラム内の構造設計を行う。ユニットテスト（単体、クラス、モジュール）の仕様を定義する。","ソフトウェア詳細設計"]
[null,null,455,"障害を訂正、性能やその他の属性の改善のために納入後のソフトウェア製品を修正、または変更された環境に適合させることを目的としたプロセス。\n例　システムの安定稼働，情報技術の進展や経営戦略の変化に対応するためにプ口グラムの修正や変更を行う。","ソフトウェア保守"]
[null,null,456,"モジュールテストともいわれ、システムの最小単位であるモジュールに対して行うテストのこと。\n例　　システム開発時に，詳細設計に基づいて作成した個々のプログラムに誤りがないかを確認し，必要に応じて修正する。","単体テスト"]
[null,null,457,"プログラムの内部構造がきちんと動いているかも含めて確認するテスト方法。","ホワイトボックステスト"]
[null,null,458,"システム内部で何が行われているかには、あえて触れないで外部からみた機能について検証するテスト方法。","ブラックボックステスト"]
[null,null,459,"データを性質ごとのグループに分け、各グループから代表値を取ってテストデータにする方法。","同値分割"]
[null,null,460,"正常値となる範囲と異常値となる範囲の境界付近の値を選択してチェックする方法。","限界値分析"]
[null,null,461,"プログラム内の最上位のモジュールからテストを開始し、下位のモジュールを順次結合させながらテストしていく方法。下位モジュールが存在しない場合には、仮に処理結果などを返す役割をするスタブと呼ばれるテスト用のモジュールを用意する。","トップダウンテスト"]
[null,null,462,"プログラム内の最下位のモジュールからテストを開始し、上位のモジュールを順次結合させながらテストしていく方法。上位モジュールの代わりに、ドライバという仮のモジュールを用意する。","ボトムアップテスト"]
[null,null,463,"最上位モジュールからのテストと最下位モジュールからのテストを同時に挟み込むように行うテスト","サンドイッチテスト"]
[null,null,464,"あらかじめ全モジュールの単体テストを済ませておき、すべてのモジュールを結合して一斉にテストを行うこと。","ビックバンテスト"]
[null,null,465,"機能テスト等によって発見された不具合に対してプログラム修正を行った場合、プログラム修正箇所が今まで正常に動作していた部分に影響してエラーを発生させることがないかどうかを検証する。","リグレッションテスト","regression test"]
[null,null,466,"開発するソフトウェアをプログラムやモジュール単位に分解し、算出したステップ数（行数）から人月などの工数に換算し、開発規模を見積もる方法。","プログラムステップ法"]
[null,null,467,"ソフトの持つ機能に着目し、開発の難しさ、複雑さなどからポイントを算出して見積もりを行う方法。\n　FPの算出にあたってはソフトウェア内でどのような処理が行われているかを抽出し、入出力など機能ごとに分類、それぞれを「ファンクション」(機能)と定義する。さらに、ファンクションごとにレコードの種類の数やデータ項目数などからファンクションの「複雑さ」を定義し、個別のファンクションの評価値を算出する。　評価値のアプリケーション全体での合計が「未調整ファンクションポイント」で、さらにソフトウェアの影響度(上下35%)を掛け合わせて「調整済みファンクションポイント」を算出する。","ファンクション・ポイント法"]
[null,null,468,"トランザクション量や変更の容易性など１４種類のチェック項目に対し、影響を受ける度合いを０（関係ない）～５（非常に影響を受ける）の範囲で評価する。その評価点の合計を公式に当てはめて算出するもの。","システム特性係数"]
[null,"ソフトウェア開発管理技術",469,"システム開発手法で、水が流れるように作業手順が進んでいくこと。大規模開発でよく使われる。長所は、開発の進捗状況の把握が容易。","ウォータフォールモデル"]
[null,null,470,"開発の早い段階から試作品を作成して試用してもらい、ユーザの要求を確認しながら開発を進めるシステム開発手法。比較的小規模なシステムの開発に向いている。","プロトタイピングモデル"]
[null,null,471,"プロトタイプモデルとウォータフォールモデルを合わせた開発手法。独立性の高いプログラムごとに、設計→プログラミング→テストをユーザの要求に合うまで繰り返す。大規模システム向きで、少人数で行う小規模システムには向かない。オブジェクト指向型の開発に採用されることが多い。","スパイラルモデル"]
[null,null,472,"開発を支援するCASEツールを積極的に活用して、利用部門と密接に関わりあいながら、早く、安く、品質の高いソフトウェアを開発することを目的とする開発モデルのこと。","RAD","Radio Application Development"]
[null,null,473,"「コンピュータ支援ソフトウェア工学」の略。システム開発支援ツールと開発方法論の統合、システム開発作業の効率化を目的としている。","CASEツール","Computer Aided Software Engineering"]
[null,null,474,"システムやプログラムを機能と機能間のデータに着目して階層構造的に分解していく手法。","構造化手法"]
[null,null,475,"統合能力成熟度モデルと呼ばれ、組織におけるプロセス改善をガイドするモデル。\nプロジェクト管理，プロセス管理，エンジニアリング，支援に関するプロセスについて、それらが効果的なプロセスであるために重要な要素をゴール及びプラクティスという概念を用いて整理されている。また、未成熟なプロセスから有効性を持った秩序ある成熟したプロセスへの進化の改善経路も記述していて、自らの組織の状況に合わせて適用内容を徐々に高度化できるようにもなっている。","CMMＩ","Capability Maturity Model Integration"]
[null,null,476,"ソフトウェア開発において、機能に着目して分析・設計していく手法。その特徴は、①人が業務を理解する方法に似ている。　②処理内容が変更された場合の修正が大幅になる。","プロセス中心設計（ＰＯＡ）"]
[null,null,477,"ソフトウェア開発において、データが最も安定した情報資源であることに着目し、データ側からシステムの設計を行う手法。その特徴は、①まずデータベースがあり、それを創生したり、更新したり、参照したりするのがプログラム　②システムの変更に柔軟に対応できる。","データ中心設計（ＤＯＡ）","Data Oriented Approach"]
[null,null,478,"ソフトウェアの設計や開発において、操作手順よりも操作対象（データと機能）に重点を置く考え方。\n関連するデータの集合と、それに対する手続き(メソッド)を「オブジェクト」と呼ばれる一つのまとまりとして管理し、その組み合わせによってソフトウェアを構築する。オブジェクトに外部からメッセージを送れば機能するので、利用に際してその内部構造や動作原理の詳細を知る必要がない。特徴として、①カプセル化　②クラスとインスタンス　③インヘリタンス（継承）　がある。","オブジェクト指向設計"]
["プロジェクトマネジメント","プロジェクトマネジメント",479,"プロジェクトの背景と目的、内容など、これから実施するプロジェクトの定義を明記した文書のことを指す。一般的に、上記の項目の他に、プロジェクトの成果を示すものとプロジェクトの期間、利用可能な予算やプロジェクトのメンバーと組織構成、また、プロジェクトを実施していく上でのルールなどが盛り込まれる。","プロジェクト憲章"]
[null,null,480,"直面する複雑な問題の解決や特定の目的達成のために業務終了までの期間限定で編成される組織による活動","プロジェクト"]
[null,null,481,"プロジェクトマネジメントを遂行する専門職の人。対象範囲、納期、予算を考慮する。","プロジェクトマネージャー"]
[null,null,482,"業務などを改善するときに、計画(Plan)、実行(Do)、確認(Check)、改善(Action)を繰り返す方法。","ＰＤＣＡサイクル","Plan-Do-Check-Act"]
[null,null,483,"プロジェクトの進行の上で起こりうる事態を予想し、それが望ましい結果に結びつくように、あらかじめ複数の道筋を立てることで、円滑にプロジェクトを進めようとすること。","PDPC","Process Decision Program Chart"]
[null,null,484,"企業の利害関係者のことで、株主、顧客、取引先、従業員、地域住民、政府などを指す。","ステークホルダ"]
[null,null,485,"刺激、奨励、誘因などの意で、人々の物事に対する意欲を引き出す外部から与えられる要因のこと。例えば「目標を達成するためにプロジェクトチームに対して与えられる出来高の仕組み」(インセンティブ制度)を設けることでノーリスクでプロジェクト進行に対する要員の意欲を高めることが可能。","インセンティブ","incentive"]
[null,null,486,"情報システム開発プロジェクトを効果的に管理する手法。プロジェクトマネジメントの基礎知識を体系化したもの。プロジェクトを「立ち上げ」「計画」「実行」「コントロール」「終結」という５つのプロセスに分解し、それぞれでやるべきことを次の９つの知識エリアごとに規定している。①スコープ（目標）　②スケジュール　③コスト　④品質　⑤人的資源（組織）　⑥コミュニケーション　⑦リスク　⑧調達　⑨統合 のバランスを取りながら、業務を遂行することで結果的に品質、納期、コストを管理する方法。　","ＰＭＢＯＫ","Project Management Body Of Knowledge"]
[null,null,487,"ビジネスにおいて高い業績を上げる人材の思考傾向や行動特性のこと。","コンピテンシ","competency"]
[null,null,488,"プロジェクトマネジメントで計画を立てる際に用いられる手法の一つで、プロジェクト全体を細かい作業に分割した構成図。「作業分割構成」「作業分解図」などとも呼ばれる。\n　その方法は、まずプロジェクトの成果物をできるだけ細かい単位に分解していく。その際、全体を大きな単位に分割してから、それぞれの部分についてより細かい単位に分割していき、階層的に構造化していく。成果物の細分化が終わったら、それぞれの部分を構成するのに必要な作業(一つとは限らない)を考え、最下層に配置していく。個々の部分を構成する一連の作業のかたまりのことを「ワークパッケージ」と呼ぶ。この作業のそれぞれのワークパッケージに担当する人員を配置していけば、プロジェクトを遂行する組織図ができる。これをOBS(Organization Breakdown Structure)と呼ぶ。","ＷＢＳ","Work Breakdown Structure"]
[null,null,489,"それぞれの作業に要する時間からスケジュールと重点管理作業を割り出す手法。複数の仕事を並行して行うプロジェクトの管理などに使われる。プロジェクトを図解し、どの工程に時間がかかると、プロジェクト全体に影響を及ぼすのかがわかる。この工程をクリティカルパスという。クリティカルパス上にある各作業の所要日数の合計がプロジェクト全体の所要日数。","ＰＥＲＴ図"]
[null,null,490,"工程管理図ともいわれるように、作業の進み具合を表す図。予定と実績を記入し、予定に対して進んでいるのか遅れているのか、一目でわかるようにしたもの。","ガントチャート"]
[null,null,491,"プロジェクトの段階的なゴールのことであり、工程管理や品質管理をどの段階で何を確認するのかを予め設定する行為。日本語で里程標　　　例　設計レビュー開始日","マイルストーン","milestone。"]
[null,null,492,"スケジュール計画に照らし合わせてプロジェクトの進行状況を把握することで、納期の短縮、あるいは遅れを最小限にとどめるための手段。進捗の遅れはコストの増大を招く。その方法として、①スケジュール計画の進捗管理　②担当者レベルの進捗管理　がある。","進捗管理"]
[null,null,493,"災害や事故、システム障害などの発生により、限られた経営資源で最低限の事業活動を継続し、目標復旧時間以内に再開するために、事前に策定する計画。\nこれを作成するときには自社の抱えているリスクを洗出し、各リスクの優先順位付けを行い、行動計画を決めていく。","BCP(事業継続計画)","Business Continuity Plan"]
[null,null,494,"プロジェクトの計画や成果物、労働力を同じ指標（出来高）に換算して管理することで、プロジェクトの遅延やコスト超過を早期に発見する手法。指標としては一般的に、工数（人月）が用いられる。その時点までに完成した成果物を工数に換算し直した出来高実績値（EV:Earned Value）と、実際の工数であるコスト実績値（AC:Actual Cost）を比較する。それぞれの累積を、成果物の作成期限と作成に必要な金額を見積もることで算出される予算(PV:Planned Value)のグラフに重ね合わせると、計画と現状とのずれが分かる。PVとEVの差がスケジュールのずれ、ACとEVの差がコストのずれとなる。","ＥＶＭ","Earned Value Management"]
[null,null,495,"■外部及び内部品質として、\n①機能性…目的から求められる必要な機能の実装　②信頼性…機能が正常動作し続ける　③使用性…分かりやすさ、使いやすさ　④効率性…目的達成のために使用する資源　⑤保守性…保守(修正、改造)作業に必要な努力　⑥移植性…別環境へ移した際そのまま動作する　\n■利用時の品質として \n①有効性…指定された目標を達成できる　　②生産性…適切な量の資源を使うことができる　③安全性…財産又は環境への害に対して、容認できるリスクの水準を達成する　④満足性…利用者を満足させる　\nの点で評価するための指針。","ソフトウェア品質特性(JIS X 0129-1)"]
["サービスマネジメント","サービスマネジメント",496,"システムの品質や性能、システム運用、ヘルプデスクなど、利用者に対して提供するシステムに関連するサービス全体を維持し、向上するためのマネジメント。インシデント管理、問題管理、変更管理、リリース管理、構成管理の活動がある。","ＩＴサービスマネジメント"]
[null,null,497,"1989年に英国政府が立てた、政府官公庁の情報化推進のためにＩＴサービスマネジメントのベストプラクティス（成功事例）を収集する計画に基づき、数冊の書籍の形でまとめたもの。現在では、ＩＴを活用して業務の遂行を支援するＩＴサービスマネジメントのガイドラインとして広く利用されている。","ＩＴＩＬ","Information Technology Infrastructure Library"]
[null,null,498,"企業が経営の仕方や業務プロセスを分析し、優れた点を学び、取り入れようとする手法。","ベンチマーキング"]
[null,null,499,"業務改善の目標となる模範的な成功事例のことで、ベンチマーキングによって見つけ出す。","ベストプラクティス"]
[null,null,500,"ユーザからの問い合わせに適切に対応し、障害の根本的原因を見出して迅速に処理を行うといったサービスを確実に提供すること。これは、5つのプロセスと1つの機能で構成され、それぞれのプロセスごとに異なる役割と責任を持たせている。プロセスとして「インシデント管理」、「問題管理」、「構成管理」、「変更管理」、「リリース管理」、ファンクション（機能）として「サービスデスク」とそれぞれ名称定義されている。　　　　　例　構成管理の役割･･･あらかじめ定義されたIT資産の情報を管理する。","サービスサポート"]
[null,null,501,"サービスマネジメントのベストプラクティスを集めたITILのサービスサポートを構成するプロセス。システムの異常終了や構成機器の障害発生などのようにサービスの中断やサービス品質の低下につながるような事象のことで、これらが発生した時に、サービスの中断時間を最小限に抑えて速やかに回復することを目的としている。","インシデント管理"]
[null,null,502,"利用者の利便性を向上させるため、トラブルなどの問い合わせに対応する。単に問い合わせに回答するだけでなく、ＩＴＩＬのほかの管理とも密接に連携しながらサービスレベルを維持・管理することを目的とする。","サービスデスク"]
[null,null,503,"中長期的な運用管理計画の策定と改善のプロセス。ＳＬＭで策定したサービスレベルを達成するため、可用性管理、キャパシティ管理、ＩＴサービス財務管理、ＩＴサービス継続性管理の４つのプロセスを実施することによって、安定したＩＴサービスを実現する。","サービスデリバリ"]
[null,null,504,"サービス提供側と顧客やユーザの間でサービスレベルに関する合意（SLA）を結んでおき、サービスがSLAに基づいて提供されているかを管理すること。","ＳＬＭ","Service Level Managementの略。"]
[null,null,505,"サービスレベル合意書。サービスマネジメントの目標です。あるサービスについて、どの程度の水準を求めるか、サービス提供側とユーザ側が合意、明文化したもの。　　　例　処理性能の最小化、許容できるシステム停止時間、サービス提供時間帯","ＳＬＡ","Service Level Agreementの略です。（Agreement：合意、同意）"]
[null,null,506,"コンピュータやネットワークを含めた施設や設備を管理すること。経営の視点から、建物や設備などの不動産の保有、運用、維持などを最適化する手法。コストを低減するとともに、働く人にとって魅力的な施設を実現する。　　例　IT関連設備について、最適な使われ方をしているかを常に監視し改善すること。","ファシリティマネジメント"]
[null,"システム監査",507,"組織体の情報システムを独立した第三者であるシステム監査人が、専門的な立場で検証または評価すること。\n実施手順：　1.基本計画　2.個別計画　3.予備調査　4.本調査　5.評価結論　6.監査報告　７フォローアップ","システム監査"]
[null,null,508,"経営者が組織目的の達成について合理的な保証を得るためのマネジメントプロセス。社員がきちんと仕事をするようなしくみや、不正行為を防止するしくみのこと。\n目的：1.業務の有効性・効率性　2.財務報告の信頼性　3.法令遵守　4.資産の保全\n例　作業の実施者と承認者を分ける。","内部統制"]
[null,null,509,"日本語で「法令遵守」という意味。企業が活動する上で、法令や社会的ルールを守ること。","コンプライアンス","Compliance"]
[null,null,510,"1992年に米国のトレッドウェイ委員会が公表した内部統制のフレームワーク。内部統制の構成要素として「統制環境」「リスクの評価」「統制活動」「情報と伝達」「監視活動」の5つを挙げ、これらを内部統制を評価する際の基準として位置付けている。今日、事実上の世界標準として知られている。　企業の不正を防止し、適正な財務報告を可能にするための社内の仕組みである内部統制の考え方の枠組みを表したものである。","ＣＯＳＯ","the Committee of Sponsoring Organization of the Treadway Commission"]
[null,null,511,"経営の立場からITをマネジメントすること。組織体、共同体がITを導入、活用するに当たり、目的と戦略を適切に設定し、その効果やリスクを測定、評価して、理想とするIT活用を実現するメカニズムをその組織の中に確立すること。","ＩＴガバナンス","IT governanceの略"]
["基礎理論","基礎理論",512,"二進数を十進数に直したり、その逆をしたりすること。","基数変換"]
[null,null,513,"二進数で負の数を表すときに使う方法。０と１の各ビットを反転させて１を加えたもの。","二の補数"]
[null,null,514,"ANDとも表記します。「～かつ～」の意味。","論理積"]
[null,null,515,"ORとも表記します。　「～または～」の意味。","論理和"]
[null,null,{"$f":"C517+1","v":516},"汎用コンピュータ用の1バイトコード。","ＥＢＣＤＩＣ","Extended Binary Coded Decimal Interchange Code"]
[null,null,517,"UNIXで使用されている、複数バイト文字を扱えるコード","ＥＵＣ","Extended Code Code"]
[null,null,518,"JISコードをASCIIコードと混在できるようにしたもので、日本のPCの標準文字コードとして普及している。2バイト文字。","シフトＪＩＳ"]
[null,null,519,"世界各国の文字コードを統一するために作られた。最大4バイト。","Ｕｎｉｃｏｄｅ"]
[null,null,520,"ブログやニュースサイト，電子掲示板などのWebサイトで，効率の良い情報収集や情報発信を行うために用いられている文書フォーマットの総称。ページの見出しや要約，更新時刻などのメタデータを、構造化して記述するためのXMLベースで記述されている。","RSS"]
[null,null,521,"ネットワーク上にブックマークを登録することによって，利用価値の高いWebサイト情報を他のユーザと共有するサービス","ソーシャルブックマークサービス"]
[null,null,522,"HTMLやXMLの要素を、どのように修飾して表示させるかを定義する文書で、構造とデザインを別の文書に分離させるために提唱されたスタイルシートの仕様のひとつ。現在のWebサイトのデザインになくてはならないものになっている。","CSS","Cascading Style Sheets"]
[null,"アルゴリズムとプログラミング",523,"「明確に定義された規則の集まり」で、コンピュータの扱うデータを制御する仕組みであり、「与えられた問題を解決するための手順」","アルゴリズム"]
[null,null,524,"複数の同じ型のデータをポインタによってつないだデータ構造","リスト"]
[null,null,525,"データを格納する順番に下から積み上げていくデータ構造。後入れ先出し法(LIFO)","スタック"]
[null,null,526,"データ構造の一種で、先に入れたデータが先にでてくる。先入先出法（ＦＩＦＯ）","キュー"]
[null,null,527,"流れ図ともいう。仕事の手順を図式化したもの。","フローチャート"]
[null,null,528,"一つの入口と１つの出口を持つプログラムは、順次、選択、繰り返しの３つの制御構造によって記述できるという構造化定理に基づき、３つの構造だけを使ってプログラムを作成する方法","構造化プログラミング"]
[null,null,529,"データの探索を行うアルゴリズムの1種。検索対象を二分割していくことで、徐々に検索範囲を絞り込んでいく。単純に先頭から検索していくより速い。","二分探索法"]
[null,null,530,"整列アルゴリズムの一種。隣のデータと大小を比較して、目的とする並び順と違っていたら場所を交換していくことで整列する方法。","バブルソート"]
[null,null,531,"ソフトウェアを作るためのソフトウェア。書かれたものをプログラム、ソースコードと呼ぶ。その種類としては、Ｃ言語、Ｊａｖａ言語、ＣＯＢＯＬなどがある。","プログラム言語"]
[null,null,532,"エディタ、コンパイラ、デバッガなど、プログラミングに必要なツールが一つのインターフェースで統合して扱えるような環境のこと。","IDE(統合開発環境)","Integrated Development Environment"]
[null,null,533,"プログラム言語で書かれた命令群を一括翻訳して実行ファイルを作るソフトウェア。翻訳済みのマシン語命令を連続して実行できるので高速。","コンパイラ"]
[null,null,534,"プログラム言語で書かれた命令を一つ一つ翻訳しながら実行するソフトウェア。実行時にいちいち翻訳するため実行速度は遅い。","インタプリタ"]
[null,null,535,"文書の一部を「タグ」と呼ばれる特別な文字列で囲うことにより、文章の構造(見出しやハイパーリンクなど)や、修飾情報(文字の大きさや組版の状態など)を、文章中に記述していく記述言語。","マークアップ言語"]